Workbook

Sheet Title Page
A1: U.S. EPA Office of Ground Water and Drinking Water
A2: Work Breakdown Structure (WBS) Model for Anion Exchange Treatment
A3: Release Date: March 2023
A4: · The primary purpose of this model is to assist EPA in estimating national compliance costs.
A5: · As such, the costs are intended to be representative of the central tendency of typical facilities.
A6: · The default settings, however, do not account for all of the site-specific factors that could affect the cost of any given individual facility or project.
A7: · Still, other uses of the model might be reasonable if sufficient care is taken by the user to account for site- or project-specific factors.
A8: · The model results are point estimates shown to the nearest $1, but this precision is not meant to imply that the results are accurate to $1.
A9: · Instead, users should review all documentation, modify inputs/assumptions as appropriate to their specific purpose, and form their own informed opinions about the accuracy and suitability of the results.
A10: · Use of this model requires Excel 2007 or later.
A11: · The model should be opened as Read-only, so that any changes you make are saved under a new file name.
A12: · To function properly, macros ("active content") must be enabled. If a security warning appears, click "options" and "enable this content."
A13: · For further information see the following document distributed with this file:
A14: USEPA. 2023. Work Breakdown Structure-Based Cost Model for Anion Exchange Drinking Water Treatment. Office of Water.
A15: · To begin using the model, go to the INPUT sheet.

Sheet Index
A1: INDEX
A2: This page provides an index to all user-adjustable inputs and assumptions. Click on a variable name to go directly to the adjustable cells.
A4: User-adjustable Input or Assumption | B4: Variable Name and Link
A5: 1st Freundlich constant (Kf) | B5: freund_1
A6: 2nd Freundlich constant (n) | B6: freund_2
A7: Access space per pump for custom designed systems | B7: space_pumps_cust
A8: Access space per pump for pre-engineered packages | B8: space_pumps_pre
A9: Add a redundant unit per x parallel lines | B9: redund_freq
A10: Add coagulant to holding tank/basin? | B10: coag_res
A11: Additional building after… | B11: add_2nd_building
A12: Additional conductivity meters | B12: add_cond
A13: Additional freeboard | B13: sec_cont_freeboard
A14: Additional sampling ports | B14: add_ports
A15: Additional turbididy meters | B15: add_turb
A16: Additional turbididy meters for small systems | B16: add_turb_small
A17: Administrative LOE as a percent of average technical labor | B17: Clerical_percent
A18: Air conditioning EER | B18: EER
A19: Always include NEPA compliance costs? | B19: include_NEPA
A20: Anion resin type | B20: resin_type_I
A21: Annual cooling degree days | B21: cool_DD
A22: Annual heating degree days | B22: heat_DD
A23: Annual resin loss | B23: resin_loss_annual
A24: Apply POTW discharge base charge (i.e., $/month) | B24: POTW_base_fee
A25: Apply POTW discharge TSS charge (i.e., $/lb of TSS over limit below) | B25: POTW_TSS_fee
A26: Apply POTW discharge volume charge (i.e., $/1000 gallons) | B26: POTW_volume_fee
A27: Average annual pan evaporation rate | B27: pan_evap
A28: Average annual precipitation | B28: precip
A29: Average Flow (including bypass) | B29: average_flow_I
A30: Backwash frequency outside of regeneration/initial rinse | B30: add_backwash_freq
A31: Backwash loading rate | B31: h2oflush_backwash_rate
A32: Backwash pipe length multiplier | B32: back_pipe_mult
A33: Backwash pumping | B33: no_backwash_I
A34: Backwash storage | B34: no_back_tank_I
A35: Backwash time | B35: backwash_time
A36: Basin excavation depth above which deeper boreholes are needed | B36: deep_bore_need
A37: Bed depth | B37: bed_depth
A38: Bedding depth below pipe | B38: bedding_depth
A39: Bedding depth surrounding the pipe | B39: bedding_pct
A40: Borehole depth for deep basins | B40: bore_depth_max
A41: Borehole depth for shallow basins | B41: bore_depth_min
A42: Borehole depth without basins | B42: bore_depth_nobasin
A43: Borehole needed every x square feet | B43: hole_per_sf
A44: Boreholes per job | B44: hole_per_job
A45: Breakthrough contaminant concentration | B45: C_b
A46: Brine delivery method | B46: brine_method_I
A47: Builder's risk insurance percentage | B47: br_ins_pct
A48: Bypass percentage | B48: bp_pct
A49: Bypass pipe length multiplier | B49: bp_pipe_mult
A50: Characteristics of holding tank or evaporation pond solids | B50: solids_haz_I
A51: Characteristics of spent resin | B51: media_haz_I
A52: Chemical pipe length multiplier | B52: chem_pipe_mult
A53: Chemical resistant coating coverage | B53: sec_cont_coating_cvg
A54: Chemical storage height | B54: storage_height
A55: Chemical tank mixer horsepower | B55: cmix_hp_per
A56: City Index for Total Capital Cost | B56: City_Index
A57: City Index for Total O&M Cost | B57: OM_City_Index
A58: Clean holding tank/basin when solids accumulation =x% of capacity | B58: htank_clean_pct
A59: Clearance space beneath the ceiling | B59: ceiling_clearance
A60: Coefficient of passive pressure | B60: Coeff_Kp
A61: Component level | B61: component_level_I
A62: Computer workstations per x operators | B62: workstation_ratio
A63: Concrete pad thickness | B63: pad_thick
A64: Concrete pad thickness for small systems | B64: pad_thick_small
A65: Concrete thickness for holding basins | B65: conc_thick
A66: Conductivity meters per vessel | B66: cond_tank
A67: Cooling table for buildings 500 square feet or greater | B67: cooling_table
A68: Cooling table for buildings less than 500 ft2 | B68: cooling_table_shed
A69: Cooling ventilation/infiltration load | B69: cool_viload
A70: Cost estimating method | B70: curve
A71: Cost for parts & maintenance for pumps | B71: booster_pump_maintenance
A72: Days of chemical storage | B72: cstore_days
A73: Days of winter (i.e., days of storage during periods with no net evaporation) | B73: winter_days
A74: Default number of residuals basins | B74: hbasins_default
A75: Design Flow (including bypass) | B75: design_flow_I
A76: Design safety factor for standby power | B76: std_safety_factor
A77: Desired treated water pH | B77: pHf
A78: Discharge option for spent brine | B78: res_s2_opt_I
A79: Disposal method for non-hazardous secondary solids | B79: solids_method
A80: Distance between drain field trenches | B80: sept_trench_dist
A81: Distance to discharge point or evaporation pond | B81: add_res_pipe_length
A82: Drive controllers per backwash pump | B82: S_back_pump
A83: Drive controllers per booster pump | B83: S_booster_pump
A84: Drive controllers per eductor | B84: S_eductor
A85: Drive controllers per mixer | B85: S_mixer
A86: Drive controllers per residuals pump | B86: S_res_pump
A87: Electric resistance heating efficiency | B87: resist_eff
A88: Electrical percentage | B88: elect_pct
A89: Engineering percentage for large systems | B89: eng_pct_large
A90: Engineering percentage for medium systems | B90: eng_pct_medium
A91: Engineering percentage for small systems | B91: eng_pct_small
A92: Ethernet modules | B92: plc_ethernet
A93: Evaporation pond dike cross-sectional area | B93: dike_xsection
A94: Evaporation pond freeboard | B94: ep_freeboard
A95: Evaporation pond safety factor | B95: ep_safety_factor
A96: Evaporation pond solids density | B96: ep_solids_density
A97: Evaporation pond solids removal frequency | B97: dredging_freq
A98: Evaporation ratio | B98: evap_ratio
A99: Fast final rinse volume | B99: f_rinse_bv
A100: Fast rinse loading rate | B100: f_rinse_rate
A101: Ferric chloride dosage | B101: coag_dose
A102: Ferric chloride sludge production factor | B102: coag_spf
A103: Ferric chloride solution concentration | B103: coag_pct
A104: Ferric chloride solution density | B104: coag_density
A105: Financing percentage | B105: finance_pct
A106: Financing percentage for small systems | B106: finance_pct_small
A107: Fire Buffer for Buildings | B107: fire_buffer
A108: Flow meters for backwash line | B108: tot_fm_back
A109: Flow meters for influent and treated water line | B109: tot_fm_in
A110: Flow meters for process line per vessel | B110: fm_proc
A111: Flow meters for residuals line | B111: tot_fm_res
A112: Free board above media at full expansion | B112: free_board
A113: Frost depth | B113: frost
A114: Head loss sensors per vessel | B114: head_tank
A115: Head loss sensors per vessel for small systems | B115: head_tank_small
A116: Heat pump cooling mode EER | B116: hp_EER
A117: Heat pump heating coefficient of performance | B117: COP
A118: Heating Oil Heat Content | B118: diesel_heat_content
A119: Heating table for buildings 500 square feet or greater | B119: heating_table
A120: Heating table for buildings less than 500 ft2 | B120: heating_table_shed
A121: Heating ventilation/infiltration load | B121: heat_viload
A122: High/Low alarms per backwash tank | B122: alarm_back
A123: High/Low alarms per brine tank | B123: alarm_brine
A124: High/Low alarms per holding tank/basin | B124: alarm_res
A125: High/Low alarms per NaOH tank | B125: alarm_caustic
A126: Holding basin depth to volume ratio | B126: holding_ratio
A127: Holding basin freeboard | B127: holding_freeboard
A128: Holding tank for spent brine | B128: res_s1_opt_I
A129: Holding tank/basin capacity factor | B129: res_cap_factor
A130: Holding tank/basin mixer horsepower (if coagulant is used) | B130: hmix_hp_per
A131: Holding tank/basin solids density | B131: ht_solids_density
A132: Holding tank/basin solids transfer method | B132: res_transfer_method
A133: Holding tank/basin suspended solids removal efficiency with coagulant | B133: coag_TSSrem
A134: Holding tank/basin suspended solids removal efficiency without coagulant | B134: htank_TSSrem
A135: Hours per resin changeout | B135: uloe_throwaway
A136: I/O port table | B136: port_table
A137: Include a separate day tank if daily volume is x or greater | B137: day_tank_needed
A138: Include architectural fee for small systems? | B138: include_arch_small
A139: Include architectural fee? | B139: include_arch
A140: Include buildings? | B140: include_buildings_I
A141: Include concrete pad in total capital cost? | B141: include_pad
A142: Include construction management cost for pre-engineered packages? | B142: include_cm_pre
A143: Include construction management cost? | B143: include_cm
A144: Include contingency costs for high cost systems? | B144: include_conting_high
A145: Include contingency costs for low cost systems? | B145: include_conting_low
A146: Include contingency costs for medium cost systems? | B146: include_conting_medium
A147: Include cooling in standby power | B147: need_cool
A148: Include geotechnical costs for high cost systems? | B148: include_geo_high
A149: Include geotechnical costs for low cost systems? | B149: include_geo_low
A150: Include geotechnical costs for medium cost systems? | B150: include_geo_medium
A151: Include heating in standby power | B151: need_heat
A152: Include HVAC? | B152: include_HVAC_I
A153: Include land? | B153: include_land_I
A154: Include mixers for chemical tanks | B154: include_cmix
A155: Include performance bond cost? | B155: include_bond
A156: Include permit costs? | B156: include_permits
A157: Include pilot study costs? | B157: include_pilot
A158: Include secondary containment | B158: include_sec_cont
A159: Include sitework costs? | B159: include_sitework
A160: Include standby power costs for small systems? | B160: include_standby_small
A161: Include standby power costs? | B161: include_standby
A162: Include yard piping costs? | B162: include_yardpipe
A163: Influent and treated water pipe length multiplier | B163: in_out_pipe_mult
A164: Influent contaminant concentration | B164: C_0
A165: Influent sulfate concentration | B165: SO4_in
A166: Influent water alkalinity | B166: alk_i
A167: Influent water temperature | B167: t_I
A168: Influent water total dissolved solids | B168: TDS_I
A169: Installation, Transportatation, and O&P percentage | B169: inst_pct
A170: Instrumentation and control percentage | B170: i_c_pct
A171: Legal percentage | B171: legal_pct
A172: Level of effort for chemical supply systems | B172: uloe_chem_maint
A173: Level of effort for instruments (includes calibration) | B173: uloe_inst_maint
A174: Level of effort for pumps | B174: uloe_pump_maint
A175: Level of effort for valves | B175: uloe_valve_maint
A176: Level switch/alarms per vessel | B176: level_switch
A177: Level switch/alarms per vessel for small systems | B177: level_switch_small
A178: Lighting power per sf, high-quality buildings | B178: lighting_power_high
A179: Lighting power per sf, low-quality buildings and sheds | B179: lighting_power_low
A180: Lighting power per sf, mid-quality buildings | B180: lighting_power_mid
A181: Linear feet bored per day | B181: hole_per_day
A182: Loading rate maximum | B182: load_max
A183: Loading rate minimum | B183: load_min
A184: Long term acceptance rate | B184: sept_LTAR
A185: Mangerial LOE as a percent of average technical labor | B185: Manager_percent
A186: Maximum access space per vessel or tank for custom designed systems | B186: max_space_vessels_cust
A187: Maximum access space per vessel or tank for pre-engineered systems | B187: max_space_vessels_pre
A188: Maximum bed depth for autosize | B188: max_bed_depth
A189: Maximum curb thickness | B189: sec_cont_max_thick
A190: Maximum distribution pipe connections per distribution box | B190: sept_dist_connections
A191: Maximum evaporation pond cell area | B191: max_ep_cell_area
A192: Maximum hazardous waste shipment size | B192: max_haz_ship
A193: Maximum liquid hazardous waste shipment size | B193: max_lhaz_ship
A194: Maximum radioactive (non-hazardous) waste shipment size | B194: max_rad_ship
A195: Maximum radioactive hazardous waste shipment size | B195: max_hazrad_ship
A196: Maximum septic drain field trench length | B196: sept_max_trench_l
A197: Maximum vessel diameter | B197: max_diam_override
A198: Maximum vessel height (circular vessels) | B198: max_height
A199: Maximum vessel length (longitudinal vessels) | B199: max_length
A200: Mid-efficiency oil furnace efficiency | B200: diesel_eff
A201: Miles to hazardous solid waste disposal site | B201: haz_miles
... 155 more rows

Sheet INPUT
A1: ANION EXCHANGE SYSTEM DESIGN AND COST INPUT
E3: STEP 1
E4: Select Contaminant | H4: =IF(contam<>3,"","For other contaminants, the buttons shown in Step 2 will enter flows only, and clear all other inputs. Advanced users can change this behavior by entering inputs on the Standard Inputs sheet") -> 
E6: STEP 2:
E7: Select one of the eight standard designs at right OR select "CLEAR FOR MANUAL ENTRY" | H7: =IF(OR('Standard Inputs'!AL9,'Standard Inputs'!AL17,'Standard Inputs'!AL25),"<- Using this design",IF(OR('Standard Inputs'!AM9,'Standard Inputs'!AM17,'Standard Inputs'!AM25),"<- You modified this design","")) -> <- Using this design | I7: The standard design buttons are for EPA's use in estimating national costs, but other users might find them useful as a starting point. See documentation for more information
H8: =IF(OR('Standard Inputs'!AL10,'Standard Inputs'!AL18,'Standard Inputs'!AL26),"<- Using this design",IF(OR('Standard Inputs'!AM10,'Standard Inputs'!AM18,'Standard Inputs'!AM26),"<- You modified this design","")) -> 
H10: =IF(OR('Standard Inputs'!AL11,'Standard Inputs'!AL19,'Standard Inputs'!AL27),"<- Using this design",IF(OR('Standard Inputs'!AM11,'Standard Inputs'!AM19,'Standard Inputs'!AM27),"<- You modified this design","")) -> 
H12: =IF(OR('Standard Inputs'!AL12,'Standard Inputs'!AL20,'Standard Inputs'!AL28),"<- Using this design",IF(OR('Standard Inputs'!AM12,'Standard Inputs'!AM20,'Standard Inputs'!AM28),"<- You modified this design","")) -> 
H14: =IF(OR('Standard Inputs'!AL13,'Standard Inputs'!AL21,'Standard Inputs'!AL29),"<- Using this design",IF(OR('Standard Inputs'!AM13,'Standard Inputs'!AM21,'Standard Inputs'!AM29),"<- You modified this design","")) -> 
H16: =IF(OR('Standard Inputs'!AL14,'Standard Inputs'!AL22,'Standard Inputs'!AL30),"<- Using this design",IF(OR('Standard Inputs'!AM14,'Standard Inputs'!AM22,'Standard Inputs'!AM30),"<- You modified this design","")) -> 
H18: =IF(OR('Standard Inputs'!AL15,'Standard Inputs'!AL23,'Standard Inputs'!AL31),"<- Using this design",IF(OR('Standard Inputs'!AM15,'Standard Inputs'!AM23,'Standard Inputs'!AM31),"<- You modified this design","")) -> 
H20: =IF(OR('Standard Inputs'!AL16,'Standard Inputs'!AL24,'Standard Inputs'!AL32),"<- Using this design",IF(OR('Standard Inputs'!AM16,'Standard Inputs'!AM24,'Standard Inputs'!AM32),"<- You modified this design","")) -> 
H22: =IF(COUNTIF(H7:H21,"")=16,"Using a manual design","") -> 
I23: =IF(COUNTIF(H7:H21,"")=16,"Fill in all gold cells below, then consider using AutoSize button","") -> 
E25: STEP 3:
E26: (Optional for standard designs) | G26: =IF(input_complete,IF('Standard Inputs'!AL35,"Input Complete -- Results Ready","Input Complete -- Press 'Generate Results'"),"Input Incomplete -- Check for Error Messages Below") -> Input Complete -- Results Ready | I26: =IF(AND(C66,C67,C68,C69,C71),"","Fill in all gold cells below. If errors persist, consider using AutoSize button.") -> 
C27: =AND(C41,C52,C66,C67,C68,C69,C71,C79,C97) -> TRUE | E27: Enter or change values in the gold and blue cells below, under "Manual Inputs"
E29: STEP 4: | I29: ="Resulting Costs (in year "&TEXT(current_year_cl,0)&" dollars, see OUTPUT sheet for details)" -> Resulting Costs (in year 2021 dollars, see OUTPUT sheet for details)
E30: =IF(G26="input complete -- results ready","Results are ready (no need to click button)","Click here to generate results -->") -> Results are ready (no need to click button) | I30: ="Direct Capital Cost: " & IF(input_status<>"Input Complete -- Results Ready",input_status,IF(Missing_Cost,"Missing cost!",IF(cost_buildup_error,"Cost buildup error!",IF(ISERROR(direct_cost),"Calculation error!",TEXT(direct_cost,"$0,0"))))) -> Direct Capital Cost: $46,139
I31: ="Total Capital Cost: " & IF(input_status<>"Input Complete -- Results Ready",input_status,IF(Missing_Cost,"Missing cost!",IF(cost_buildup_error,"Cost buildup error!",IF(ISERROR(system_cost),"Calculation error!",TEXT(system_cost,"$0,0"))))) -> Total Capital Cost: $87,701
I32: ="Annualized Capital Cost: "&IF(input_status<>"Input Complete -- Results Ready",input_status,IF(Missing_Cost,"Missing Price!",IF(cost_buildup_error,"Cost buildup error!",IF(ISERROR(Annualized_Capital_Cost),"Calculation error!",TEXT(Annualized_Capital_Cost,"$0,0")&" per year"&" (over "&useful_life&" years at "&Discount_rate*100&"%)")))) -> Annualized Capital Cost: $9,252 per year (over 16.1 years at 7%)
E33: MANUAL INPUTS | I33: ="Annual O&M Cost: "&IF(G26<>"input complete -- results ready",input_status,IF(ISERROR(OM_cost),"Calculation error!",TEXT(OM_cost,"$0,0")&" per year")) -> Annual O&M Cost: $7,010 per year
E34: Cells in gold are required; cells in blue are optional | I34: ="Total Annualized Cost: "&IF(input_status<>"Input Complete -- Results Ready",input_status,IF(Missing_Cost,"Missing Price!",IF(cost_buildup_error,"Cost buildup error!",IF(ISERROR(Annualized_Cost),"Calculation error!",TEXT(Annualized_Cost,"$0,0")&" per year ("&TEXT(TAC_pct_cap,"0%")&" capital, "&TEXT(TAC_pct_OM,"0%")&" O&M)")))) -> Total Annualized Cost: $16,261 per year (57% capital, 43% O&M)
B35: Used? | C35: Valid input? | D35: Invalid reason? | H35: Select units | I35: =IF(input_status="Input Incomplete -- check for error messages below","",IF(Missing_Cost,"A price is not available for at least one required component. See Use? column on OUTPUT sheet.",IF(cost_buildup_error,"There is an Excel error in the price for at least one component. Please see the Use? column on OUTPUT sheet.",""))) -> 
E36: Design Flow (including bypass) | F36: design_flow_I | G36: 0.03 | H36: MGD
E37: Average Flow (including bypass) | F37: average_flow_I | G37: 0.007 | H37: MGD
E38: For information:
E39: Treatment system design flow | G39: =IF(ISERROR(design_flow),"",IF(df_units="gpm",design_flow_rate, design_flow)) -> 0.03 | H39: =df_units -> MGD | I39: ="Current bypass percentage is "&TEXT(bp_pct,"0%")&". Go to Critical Design Assumptions to change this value." -> Current bypass percentage is 0%. Go to Critical Design Assumptions to change this value.
E40: Bypass design flow | G40: =IF(ISERROR(design_flow),"",IF(df_units="gpm",bp_flow_rate, bp_flow_rate*60*24/10^6)) -> 0 | H40: =df_units -> MGD | I40: Adjust bypass percentage
C41: =IF(OR(df_units="",af_units=""),FALSE,IF(average_flow>design_flow,FALSE,IF(AND(design_flow_I=0,average_flow_I=0),FALSE,IF(average_flow<design_flow*min_avg_flow,FALSE,TRUE)))) -> TRUE | D41: =IF(OR(df_units="",af_units=""),"Choose units for design and average flow",IF(average_flow>design_flow,"The average flow should not be greater than the design flow",IF(AND(design_flow_I=0,average_flow_I=0),"Input incomplete",IF(average_flow<design_flow*min_avg_flow,"The average flow must be at least " & min_avg_flow & " times design flow","OK")))) -> OK | H41: =IF(C41,"Flow Input OK",D41) -> Flow Input OK
C43: =IF(resin_type_I="",FALSE,TRUE) -> TRUE | E43: Select anion resin type | F43: resin_type_I | G43: Strong base polystyrenic gel-type Type II | H43: <-- pick one
C44: =IF(C_0="",FALSE,TRUE) -> TRUE | E44: ="Influent "&VLOOKUP(contam,contam_table,2,FALSE)&" concentration" -> Influent arsenic concentration | F44: C_0 | G44: 0.05 | H44: =IF(contam=2,"mg/L as nitrate (NO3)","mg/L") -> mg/L | I44: =IF(contam=2,"Equals "&TEXT(C_0/4.427,"0.0")&" mg/L as N; "&TEXT(C_0*3.57/4.427,"0.0")&" mg/L as CaCO3","") -> 
C45: =IF(regen_calc_type="",FALSE,TRUE) -> TRUE | E45: Select method for determining bed life | F45: regen_calc_type | G45: calculate based on sulfate | H45: <-- pick one | I45: For arsenic treatment with polystyrenic gel-type Type II resin, the model can calculate based on influent sulfate concentration, if desired. For other contaminants and resin selections, use manual entry or Freundlich isotherm.
B46: =IF(regen_calc_type="calculate based on sulfate",TRUE) -> TRUE | C46: =IF(B46,IF(OR(BV_regen<0,SO4_in=""),FALSE,TRUE),TRUE) -> TRUE | E46: Influent sulfate concentration | F46: SO4_in | G46: 50 | H46: =IF(regen_calc_type="calculate based on sulfate","ppm","not required") -> ppm | I46: =IF(regen_calc_type="calculate based on sulfate","The model is using this input to calculate bed volumes before regeneration for arsenic treatment with polystyrenic gel-type Type II resin. The calculation will not be valid for other contaminants or resins.","") -> The model is using this input to calculate bed volumes before regeneration for arsenic treatment with polystyrenic gel-type Type II resin. The calculation will not be valid for other contaminants or resins.
B47: =IF(regen_calc_type="calculate from Freundlich isotherm",TRUE) -> FALSE | C47: =IF(B47,IF(freund_1="",FALSE,TRUE),TRUE) -> TRUE | E47: 1st Freundlich constant (Kf) | F47: freund_1 | H47: =IF(regen_calc_type="calculate from Freundlich isotherm","mg/g","not required") -> not required | I47: =IF(regen_calc_type="calculate from Freundlich isotherm","Guidance: Bed life is best determined by pilot tests. Use Freundlich isotherms only in the absence of such data for initial assessment of bed life and suitability of anion exchange for treatment.","") -> 
B48: =IF(regen_calc_type="calculate from Freundlich isotherm",TRUE) -> FALSE | C48: =IF(B48,IF(freund_2="",FALSE,TRUE),TRUE) -> TRUE | E48: 2nd Freundlich constant (n) | F48: freund_2 | H48: =IF(regen_calc_type="calculate from Freundlich isotherm","dimensionless","not required") -> not required
B49: =IF(regen_calc_type="calculate from Freundlich isotherm",TRUE) -> FALSE | C49: =IF(B49,IF(C_b="",FALSE,TRUE),TRUE) -> TRUE | E49: ="Breakthrough "&VLOOKUP(contam,contam_table,2,FALSE)&" concentration" -> Breakthrough arsenic concentration | F49: C_b | H49: =IF(regen_calc_type="calculate from Freundlich isotherm","mg/L","not required") -> not required
B50: =IF(regen_calc_type="manual entry",TRUE) -> FALSE | C50: =IF(AND(B50,BV_regen_I=0),FALSE,TRUE) -> TRUE | E50: Number of bed volumes before regeneration | F50: BV_regen_I | H50: =IF(regen_calc_type="manual entry","bed volumes","not required") -> not required | I50: =IF(regen_calc_type="manual entry","Important: bed volumes vary based on water quality and resin selected. Select data for input carefully, based on the scenario being modeled.","") -> 
E51: For information: number of bed volumes | G51: =IF(ISERROR(BV_regen),"",BV_regen) -> 779 | I51: =IF(regen_calc_type="calculate based on sulfate","This value assumes arsenic treatment with sulfate as the primary competitor. To override this calculation, select another calculation method above.","") -> This value assumes arsenic treatment with sulfate as the primary competitor. To override this calculation, select another calculation method above.
C52: =IF(AND(NOT(C46),BV_regen<0),FALSE,AND(C42:C50)) -> TRUE | D52: =IF(AND(regen_calc_type="calculate based on sulfate",BV_regen<0),"Calculation method not valid for high sulfate; use manual entry",IF(C52=FALSE,"Input incomplete","OK")) -> OK | H52: =IF(C52,"Regeneration Input OK",D52) -> Regeneration Input OK
E54: Minimum number of vessels in series (i.e., parallel or series operation) | F54: num_tanks_I | G54: 1 | H54: <-- enter 1 for parallel, 2 or more for series | I54: Series operation is rarely required for anion exchange for arsenic removal
E55: Theoretical total empty bed contact time (EBCT) | F55: EBCT_I | G55: 2 | H55: minutes | I55: Guidance: EBCT is between 1.5 minutes and 7.5 minutes. Appropriate value will vary based on water quality and resin selected. Select data for input carefully, based on the scenario being modeled.
B56: yes | C56: <- Autosize Std Inputs | E56: For information: EBCT per Vessel | G56: =IF(ISERROR(EBCT_tank),"",EBCT_tank) -> 2 | H56: minutes
E57: The next four inputs may be entered manually, or calculated with Auto Size button
E58: Bed depth | F58: bed_depth | G58: 2.5 | H58: feet | I58: Guidance: between 2.5 and 6 ft
E59: Vessel geometry | F59: tank_geom_I | G59: upright | H59: <-- pick one
E60: =IF(tank_geom=1,"Height (straight)",IF(tank_geom=2,"Length (straight)","")) -> Height (straight) | F60: comm_height_length | G60: 4.5 | H60: =IF(tank_geom<>"","feet","") -> feet
E61: Diameter | F61: comm_diam | G61: 1.5 | H61: =IF(tank_geom<>"","feet","") -> feet
E62: For information:
E63: Number of treatment trains | G63: =IF(ISERROR(num_treat_lines),"",num_treat_lines) -> 2 | H63: trains
E64: Number of operating vessels | G64: =IF(ISERROR(op_num_tanks),"",op_num_tanks) -> 2 | H64: vessels
E65: Total vessels (incl. redundancy, below) | G65: =IF(ISERROR(final_num_tanks),"",final_num_tanks) -> 2 | H65: vessels
C66: =IF(H66="bed depth ok",TRUE) -> TRUE | H66: =IF(OR(num_tanks_I="",EBCT_I="",bed_depth="",comm_height_length="",comm_diam="",tank_geom_I=""),"Input incomplete",IF(bed_depth>max_bed_depth,"Warning: bed depth too great",IF(bed_depth>2*comm_diam,"Warning: bed depth should be less than twice the vessel diameter",IF(bed_depth<min_bed_depth,"Warning: bed depth too shallow","Bed Depth OK")))) -> Bed Depth OK | I66: Adjust bed depth constraints
C67: =IF(OR(H67="height ok",H67="length ok"),TRUE) -> TRUE | H67: =IF(H66="Input incomplete","",IF(tank_geom=1,IF(IF(AND(comm_diam>=min_diam,comm_diam<=max_diam_std_size),(OR(comm_height_length>=max_comm_height,comm_height_length>max_height)),comm_height_length>max_height),"Warning: vessel too high",IF(IF(AND(comm_diam>=min_diam,comm_diam<=max_diam_std_size),(AND(comm_height_length>=min_comm_height,comm_height_length>=height)),comm_height_length>=height),"Height OK","Warning: vessel not high enough")),IF(tank_geom=2,IF(comm_height_length>max_length,"Warning: vessel too long","Length OK"),"Invalid tank geometry input"))) -> Height OK | I67: Adjust vessel size constraints
C68: =IF(H68="diameter ok",TRUE) -> TRUE | H68: =IF(H66="Input incomplete","",IF(tank_geom=1,IF(comm_diam>max_diam,"Warning: vessel diameter too great",IF(comm_diam<diameter,"Warning: vessel diameter too small","Diameter OK")),IF(tank_geom=2,IF(comm_diam>max_diam,"Warning: vessel diameter too great",IF(comm_diam>max_height,"Warning: vessel diameter too great",IF(comm_SA<SA,"Warning: vessel surface area too small",IF(comm_diam<height,"Warning: vessel diameter too small","Diameter OK")))),""))) -> Diameter OK
C69: =IF(H69="volume ok",TRUE) -> TRUE | H69: =IF(H66="Input incomplete","",IF(input_vol_vess<media_volume_expanded,"Warning: vessel too small for this bed depth","Volume OK")) -> Volume OK | I69: =IF(input_vol_vess>vol_vessel*(1+vol_tol),CHOOSE(tank_geom,"Note: vessel may be oversized, given resin quantity required. Increase bed depth or reduce height.","Note: vessel may be oversized, given resin quantity required. Increase bed depth or reduce diameter."),"") -> Note: vessel may be oversized, given resin quantity required. Increase bed depth or reduce height.
H70: =IF(H66="Input incomplete","",IF(input_vol_vess<media_volume_expanded,CHOOSE(tank_geom,"Hint: reduce bed depth or increase diameter or height","Hint: reduce bed depth or increase diameter"),"")) -> 
C71: =IF(H71="loading ok",TRUE) -> TRUE | H71: =IF(H66="Input incomplete","",IF(tank_geom=1,IF(comm_load_rate>load_max,"Warning: design exceeds maximum loading",IF(comm_load_rate<load_min,"Warning: design below minimum loading","Loading OK")),IF(comm_load_rate>load_max,"Warning: design exceeds maximum loading",IF(comm_load_rate<load_min,"Warning: design below minimum loading","Loading OK")))) -> Loading OK | I71: Adjust loading constraints
H72: =IF(H66="Input incomplete","",IF(tank_geom=1,IF(comm_load_rate>load_max,"Hint: increase vessel diameter or decrease bed depth",IF(comm_load_rate<load_min,"Hint: reduce vessel diameter or increase bed depth","")),IF(comm_load_rate>load_max,"Hint: increase vessel length and diameter or decrease bed depth",IF(comm_load_rate<load_min,"Hint: reduce vessel length and diameter or increase bed depth","")))) -> 
C74: =IF(brine_method_I="",FALSE,TRUE) -> TRUE | E74: Brine delivery method | F74: brine_method_I | G74: brine mixing tanks | H74: <-- pick one
C75: =IF(res_s2_opt_I="",FALSE,TRUE) -> TRUE | E75: Discharge option for spent brine | F75: res_s2_opt_I | G75: POTW | H75: <-- pick one
B76: =IF(res_s2_opt=5,FALSE,IF(res_s2_opt>2,FALSE,TRUE)) -> TRUE | C76: =IF(B76,IF(res_s1_opt_I="",FALSE,TRUE),TRUE) -> TRUE | E76: Holding tank for spent brine | F76: res_s1_opt_I | G76: no holding tank | H76: =IF(res_s2_opt=5,"always included",IF(res_s2_opt>2,"not required","<--pick one")) -> <--pick one | I76: =IF(res_s1_opt=1,"Model selects between holding tank or basin based upon coagulant use and priority lookups on the Output sheet","") -> 
C77: =IF(media_haz_I="",FALSE,TRUE) -> TRUE | E77: Characteristics of spent resin | F77: media_haz_I | G77: non-hazardous | H77: <-- pick one
B78: =IF(res_s2_opt=4,FALSE,IF(res_s2_opt=3,TRUE,IF(res_s1_opt=1,TRUE,FALSE))) -> FALSE | C78: =IF(B78,IF(solids_haz_I="",FALSE,TRUE),TRUE) -> TRUE | E78: =IF(res_s2_opt=3,"Characteristics of evaporation pond solids","Characteristics of holding tank solids") -> Characteristics of holding tank solids | F78: solids_haz_I | H78: =IF(res_s2_opt=4,"not required",IF(res_s2_opt=3,"<-- pick one",IF(res_s1_opt=1,"<-- pick one","not required"))) -> not required
C79: =IF(ISERROR(regen_redun),FALSE,IF(AND(res_s2_opt=5,regen_redun>1),FALSE,AND(C74:C78))) -> TRUE | D79: =IF(ISERROR(regen_redun),"Complete Regeneration Inputs Above",IF(AND(res_s2_opt=5,regen_redun>1),"Liquid hazardous waste disposal is not feasible with continuous regeneration",IF(C79,"OK","Input incomplete"))) -> OK | H79: =IF(C79,"Residuals Input OK",D79) -> Residuals Input OK
E81: Number of booster pumps | F81: lines_pump_I | H81: pumps | I81: Enter 0 to exclude booster pumps (i.e., use existing pumps). Leave blank to accept model defaults (no pumps for systems <1 MGD, otherwise sized per average and design flows)
E82: For information: # of booster pumps | G82: =IF(ISERROR(booster_pumps),"",booster_pumps) -> 0 | H82: pumps
E83: Number of redundant vessels to be added | F83: NRD_I | H83: units | I83: Leave blank to accept redundancy frequency specified in critical design assumptions
E84: For information: Redundant vessels | G84: =IF(ISERROR(NRD),"",NRD) -> 0 | H84: units
E85: Treated water corrosion control? | F85: pH_adj_I | H85: <-- pick or leave blank | I85: Leave blank to exclude pH adjustment for corrosion control
E86: Backwash pumping | F86: no_backwash_I | H86: <-- pick or leave blank | I86: Leave blank to accept model defaults (systems <1 MGD backwash using existing supply or treated water pumps, other systems add new backwash pumps)
E87: Backwash storage | F87: no_back_tank_I | H87: <-- pick or leave blank | I87: Leave blank to accept model defaults (only systems between 1 and 10 MGD require separate backwash tanks)
E88: For information: # of backwash pumps | G88: =IF(ISERROR(backwash_pumps),"",backwash_pumps) -> 0 | H88: units
E89: # of backwash tanks | G89: =IF(ISERROR(back_tanks),"",back_tanks) -> 0 | H89: units
E90: Component level | F90: component_level_I | H90: <-- pick or leave blank | I90: Leave blank to use low cost components
E91: System automation | F91: manual_I | G91: fully automated | H91: <-- pick or leave blank | I91: Leave blank to allow model to pick based on component level
E92: Include buildings? | F92: include_buildings_I | H92: <-- pick or leave blank | I92: Leave blank to include buildings
E93: Include HVAC? | F93: include_HVAC_I | H93: <-- pick or leave blank | I93: Leave blank to allow model to pick based on component level and building type
E94: Include land? | F94: include_land_I | H94: <-- pick or leave blank | I94: Leave blank to include land
E95: For information: Component level | G95: =IF(component_level=2,"high cost",IF(component_level=1,"mid cost","low cost")) -> low cost
E96: Automation | G96: =IF(manual=1,"manual",IF(manual=2,"semi-automated",IF(manual=3,"fully automated"))) -> fully automated
C97: =IF(ISERROR(pump_rating),FALSE,IF(pump_rating>max_pump_size,FALSE,TRUE)) -> TRUE | D97: =IF(ISERROR(pump_rating),"Input incomplete",IF(pump_rating>max_pump_size,"Warning: insufficent number of pumps.","OK")) -> OK | H97: =IF(C97,"Optional Input OK",D97) -> Optional Input OK
H98: =IF(OR(H97="input incomplete",H97="Optional Inputs OK"),"",IF(pump_rating>max_pump_size,"Hint: increase number of pumps or leave that input blank","")) -> 

Sheet OUTPUT
A1: OUTPUT SUMMARY
B2: Parameter | C2: Value | D2: Units
B3: Technology | C3: AX
B4: Contaminant | C4: =VLOOKUP(contam,contam_table,2,FALSE) -> arsenic
B5: System Size Category | C5: =IF(design_flow<1,"small","large") -> small
B6: Design Flow | C6: =design_flow -> 0.03 | D6: MGD (excludes bypass flow)
B7: Average Flow | C7: =average_flow -> 0.007 | D7: MGD (excludes bypass flow)
B8: # of treatment trains | C8: =num_treat_lines -> 2
B9: # of vessels in series | C9: =Num_tanks -> 1 | D9: (i.e., parallel or series operation)
B10: Total EBCT | C10: =EBCT -> 2 | D10: minutes
B11: EBCT per vessel | C11: =EBCT_tank -> 2 | D11: minutes
B12: Bed depth | C12: =bed_depth -> 2.5 | D12: feet
B13: Vessel geometry | C13: =tank_geom_I -> upright
B14: =IF(tank_geom=1,"Height (straight)",IF(tank_geom=2,"Length (straight)","")) -> Height (straight) | C14: =comm_height_length -> 4.5 | D14: feet
B15: Diameter | C15: =comm_diam -> 1.5 | D15: feet
B16: Component level | C16: =IF(component_level=2,"high cost",IF(component_level=1,"mid cost","low cost")) -> low cost
B17: System automation | C17: =IF(manual=1,"manual",IF(manual=2,"semi-automated",IF(manual=3,"fully automated"))) -> fully automated
B18: ="Resulting Costs (in year "&TEXT(current_year_cl,0)&" dollars)" -> Resulting Costs (in year 2021 dollars)
B19: Direct Capital Cost | C19: =IF(input_status<>"input complete -- results ready","Action required",IF(Missing_Cost,"Missing cost!",IF(cost_buildup_error,"Error in buildup!",direct_cost))) -> 46138.61023 | D19: Details | E19: =IF(input_status<>"input complete -- results ready",IF(input_complete,"Press Generate Results","Check INPUT sheet for errors"),IF(Missing_Cost,"A price is not available for at least one required component. See Use? column below.",IF(cost_buildup_error,"There is an Excel error in the price for at least one component. See Use? column below.",""))) -> 
B20: Add-on Cost | C20: =IF(input_status<>"input complete -- results ready","Action required",addon_cost) -> 19392.85599 | D20: Details
B21: Indirect Capital Cost | C21: =IF(input_status<>"input complete -- results ready","Action required",C375) -> 22169.61805 | D21: Details
B22: Total Capital Cost | C22: =IF(input_status<>"input complete -- results ready","Action required",IF(Missing_Cost,"Missing cost!",IF(cost_buildup_error,"Error in buildup!",system_cost))) -> 87701.08427 | D22: Details
B23: ="Annualized Capital Cost "&IF(OR(input_status<>"input complete -- results ready",Missing_Cost,cost_buildup_error),"","(per year over "&useful_life&" years at "&Discount_rate*100&"%)") -> Annualized Capital Cost (per year over 16.1 years at 7%) | C23: =IF(input_status<>"input complete -- results ready","Action required",Annualized_Capital_Cost) -> 9251.873308 | D23: Details
B24: Annual O&M Cost (per year) | C24: =IF(input_status<>"input complete -- results ready","Action required",OM_cost) -> 7009.519429 | D24: Details
B25: ="Total Annualized Cost (per year"&IF(OR(input_status<>"input complete -- results ready",ISERROR(OR(TAC_pct_cap,TAC_pct_OM))),"",", "&TEXT(TAC_pct_cap,"0%")&" capital, "&TEXT(TAC_pct_OM,"0%")&" O&M")&")" -> Total Annualized Cost (per year, 57% capital, 43% O&M) | C25: =IF(input_status<>"input complete -- results ready","Action required",IF(Missing_Cost,"Missing cost!",IF(cost_buildup_error,"Error in buildup!",Annualized_Cost))) -> 16261.39274 | D25: Details
B26: Annualized cost per 1,000 gallons average flow | C26: =IF(input_status<>"input complete -- results ready","Action required",IF(Missing_Cost,"Missing cost!",IF(cost_buildup_error,"Error in buildup!",C446))) -> 6.364537275
B27: Annualized cost per household per year | C27: =IF(input_status<>"input complete -- results ready","Action required",IF(Missing_Cost,"Missing cost!",IF(cost_buildup_error,"Error in buildup!",C447))) -> 641.3456741
A29: Direct Capital Cost Details (items in italics, without a 1 in the "Use?" column, represent alternate costs and are excluded from total)
A30: WBS # | B30: Item | C30: Design Quantity | E30: Design Size | G30: Size used in estimate | I30: Unit Cost | J30: Total Cost | K30: Useful Life | L30: Use? | M30: Full Line Item Name | N30: Priority selection | W30: Useful Life
N31: Small (<1 mgd) | Q31: Medium (1-10 mgd) | T31: Large (>10 mgd)
N32: Low | O32: Mid | P32: High | Q32: Low | R32: Mid | S32: High | T32: Low | U32: Mid | V32: High | W32: Count? | X32: Depreciation
A33: 1 | B33: Pressure Vessels | N33: Low | O33: Typical | P33: High | Q33: Low | R33: Typical | S33: High | T33: Low | U33: Typical | V33: High
A34: 1.1 | B34: Stainless Steel | C34: =final_num_tanks -> 2 | D34: units | E34: =comm_vol_gal -> 59.4821299 | F34: gal | G34: =IF(curve=1,comm_vol_gal,VLOOKUP(comm_vol_gal,ss_pv_cost_cl,2)) -> 59.4821299 | H34: gal | I34: =IF(curve=1,ss_pv_eq,VLOOKUP(comm_vol_gal,ss_pv_cost_cl,3)) -> 30243.10197 | J34: =IF(I34="contact vendor","--",C34*I34) -> 60486.20394 | K34: =VLOOKUP(comm_vol_gal,ss_pv_cost_cl,IF(ss_cat="large",4,5)) -> 30 | L34: 0 | M34: =$B$33&" - "&B34 -> Pressure Vessels - Stainless Steel | N34: 4 | O34: 4 | P34: 1 | Q34: 4 | R34: 4 | S34: 1 | T34: 4 | U34: 4 | V34: 1 | W34: =IF(ISERROR(K34*L34),0,IF(K34<1,0,L34)) -> 0 | X34: =IF(W34,J34/K34,0) -> 0
A35: 1.1 | B35: Carbon Steel - Stainless Internals | C35: =final_num_tanks -> 2 | D35: units | E35: =comm_vol_gal -> 59.4821299 | F35: gal | G35: =IF(curve=1,comm_vol_gal,VLOOKUP(comm_vol_gal,cs_pv_cost_cl,2)) -> 59.4821299 | H35: gal | I35: =IF(curve=1,cs_pv_eq,VLOOKUP(comm_vol_gal,cs_pv_cost_cl,3)) -> 10435.0295 | J35: =IF(I35="contact vendor","--",C35*I35) -> 20870.059 | K35: =VLOOKUP(comm_vol_gal,cs_pv_cost_cl,IF(ss_cat="large",4,5)) -> 30 | L35: 0 | M35: =$B$33&" - "&B35 -> Pressure Vessels - Carbon Steel - Stainless Internals | N35: 3 | O35: 3 | P35: 2 | Q35: 3 | R35: 3 | S35: 2 | T35: 3 | U35: 3 | V35: 2 | W35: 0 | X35: 0
A36: 1.1 | B36: Carbon Steel - Plastic Internals | C36: =final_num_tanks -> 2 | D36: units | E36: =comm_vol_gal -> 59.4821299 | F36: gal | G36: =IF(curve=1,comm_vol_gal,VLOOKUP(comm_vol_gal,csp_pv_cost_cl,2)) -> 59.4821299 | H36: gal | I36: =IF(curve=1,csp_pv_eq,VLOOKUP(comm_vol_gal,csp_pv_cost_cl,3)) -> 10131.70341 | J36: =IF(I36="contact vendor","--",C36*I36) -> 20263.40682 | K36: =VLOOKUP(comm_vol_gal,csp_pv_cost_cl,IF(ss_cat="large",4,5)) -> 30 | L36: 0 | M36: =$B$33&" - "&B36 -> Pressure Vessels - Carbon Steel - Plastic Internals | N36: 2 | O36: 1 | P36: 3 | Q36: 2 | R36: 1 | S36: 3 | T36: 2 | U36: 1 | V36: 3 | W36: 0 | X36: 0
A37: 1.1 | B37: Fiberglass | C37: =final_num_tanks -> 2 | D37: units | E37: =comm_vol_gal -> 59.4821299 | F37: gal | G37: =IF(curve=1,comm_vol_gal,VLOOKUP(comm_vol_gal,fg_pv_cost_cl,2)) -> 59.4821299 | H37: gal | I37: =IF(curve=1,fg_pv_eq,VLOOKUP(comm_vol_gal,fg_pv_cost_cl,3)) -> 1401.260287 | J37: =IF(I37="contact vendor","--",C37*I37) -> 2802.520574 | K37: =VLOOKUP(comm_vol_gal,fg_pv_cost_cl,IF(ss_cat="large",4,5)) -> 20 | L37: 1 | M37: =$B$33&" - "&B37 -> Pressure Vessels - Fiberglass | N37: 1 | O37: 2 | P37: 4 | Q37: 1 | R37: 2 | S37: 4 | T37: 1 | U37: 2 | V37: 4 | W37: 1 | X37: 140.1260287
A38: 2 | B38: Anion Resin | W38: 0 | X38: 0
A39: 2.1 | B39: =resin_type_I -> Strong base polystyrenic gel-type Type II | C39: =resin_volume_total -> 8.835729338 | D39: cf | E39: NA | G39: NA | I39: =VLOOKUP(B39,sba_res_cost_cl,3,FALSE) -> 244.1293234 | J39: =IF(I39="contact vendor","--",C39*I39) -> 2157.060625 | K39: =VLOOKUP(B39,sba_res_cost_cl,IF(ss_cat="large",4,5),FALSE) -> N/A | L39: 1 | M39: =$B$38&" - "&B39 -> Anion Resin - Strong base polystyrenic gel-type Type II | N39: 1 | O39: 1 | P39: 1 | Q39: 1 | R39: 1 | S39: 1 | T39: 1 | U39: 1 | V39: 1 | W39: 0 | X39: 0
A40: 3 | B40: Tanks | W40: 0 | X40: 0
A41: 3.1 | B41: Backwash Tanks | W41: 0 | X41: 0
A42: 3.1.1 | B42: Steel | C42: =back_tanks -> 0 | D42: units | E42: =IF(C42=0,"NA",back_tank_vol) -> NA | F42: =IF( C42=0," ","gal") ->  | G42: =IF( C42=0, "NA",IF(curve=1,back_tank_vol,VLOOKUP(back_tank_vol,st_bwt_cost_cl,2))) -> NA | H42: =IF( C42=0," ","gal") ->  | I42: =IF( C42=0,"NA",IF(curve=1,st_bwt_eq,VLOOKUP(back_tank_vol,st_bwt_cost_cl,3))) -> NA | J42: =IF( C42=0,0,IF(I42="contact vendor","--",C42*I42)) -> 0 | K42: =IF( C42=0,"NA",VLOOKUP(back_tank_vol,st_bwt_cost_cl,IF(ss_cat="large",4,5))) -> NA | M42: =$B$41&" - "&B42 -> Backwash Tanks - Steel | N42: 3 | O42: 3 | P42: 1 | Q42: 3 | R42: 3 | S42: 1 | T42: 3 | U42: 3 | V42: 1 | W42: 0 | X42: 0
A43: 3.1.1 | B43: Fiberglass | C43: =back_tanks -> 0 | D43: units | E43: =IF(C43=0,"NA",back_tank_vol) -> NA | F43: =IF( C43=0," ","gal") ->  | G43: =IF(C43=0,"NA",IF(curve=1,back_tank_vol,VLOOKUP(back_tank_vol,fg_bwt_cost_cl,2))) -> NA | H43: =IF( C43=0," ","gal") ->  | I43: =IF( C43=0,"NA",IF(curve=1,fg_bwt_eq,VLOOKUP(back_tank_vol,fg_bwt_cost_cl,3))) -> NA | J43: =IF( C43=0,0,IF(I43="contact vendor","--",C43*I43)) -> 0 | K43: =IF( C43=0,"NA",VLOOKUP(back_tank_vol,fg_bwt_cost_cl,IF(ss_cat="large",4,5))) -> NA | M43: =$B$41&" - "&B43 -> Backwash Tanks - Fiberglass | N43: 2 | O43: 1 | P43: 2 | Q43: 2 | R43: 1 | S43: 2 | T43: 2 | U43: 1 | V43: 2 | W43: 0 | X43: 0
A44: 3.1.1 | B44: Plastic/HDPE Tanks | C44: =back_tanks -> 0 | D44: units | E44: =IF(C44=0,"NA",back_tank_vol) -> NA | F44: =IF( C44=0," ","gal") ->  | G44: =IF(C44=0,"NA",IF(curve=1,back_tank_vol,VLOOKUP(back_tank_vol,hdpe_bwt_cost_cl,2))) -> NA | H44: =IF( C44=0," ","gal") ->  | I44: =IF( C44=0,"NA",IF(curve=1,hdpe_bwt_eq,VLOOKUP(back_tank_vol,hdpe_bwt_cost_cl,3))) -> NA | J44: =IF( C44=0,0,IF(I44="contact vendor","--",C44*I44)) -> 0 | K44: =IF( C44=0, "NA",VLOOKUP(back_tank_vol,hdpe_bwt_cost_cl,IF(ss_cat="large",4,5))) -> NA | M44: =$B$41&" - "&B44 -> Backwash Tanks - Plastic/HDPE Tanks | N44: 1 | O44: 2 | P44: 3 | Q44: 1 | R44: 2 | S44: 3 | T44: 1 | U44: 2 | V44: 3 | W44: 0 | X44: 0
A45: 3.2 | B45: Brine Storage Tanks | W45: 0 | X45: 0
A46: 3.2.1 | B46: Plastic/XLPE | C46: =IF(brine_method=2,0,brine_tanks) -> 1 | D46: units | E46: =IF(brine_method=2,"NA",brine_tank_vol) -> 11.40094108 | F46: gal | G46: =IF(brine_method=2,"NA",IF(curve=1,brine_tank_vol,VLOOKUP(brine_tank_vol,pl_cst_cost_cl,2))) -> 11.40094108 | H46: gal | I46: =IF(brine_method=2,"NA",IF(curve=1,pl_cst_eq,VLOOKUP(brine_tank_vol,pl_cst_cost_cl,3))) -> 723.6914873 | J46: =IF(brine_method=2,"--",IF(I46="contact vendor","--",C46*I46)) -> 723.6914873 | K46: =IF(brine_method=2,"NA",VLOOKUP(brine_tank_vol,pl_cst_cost_cl,IF(ss_cat="large",4,5))) -> 7 | L46: 1 | M46: =$B$45&" - "&B46 -> Brine Storage Tanks - Plastic/XLPE | N46: 1 | O46: 2 | P46: 3 | Q46: 1 | R46: 2 | S46: 3 | T46: 1 | U46: 2 | V46: 3 | W46: 1 | X46: 103.3844982
A47: 3.2.1 | B47: Fiberglass | C47: =IF(brine_method=2,0,brine_tanks) -> 1 | D47: units | E47: =IF(brine_method=2,"NA",brine_tank_vol) -> 11.40094108 | F47: gal | G47: =IF(brine_method=2,"NA",IF(curve=1,brine_tank_vol,VLOOKUP(brine_tank_vol,fg_cst_cost_cl,2))) -> 11.40094108 | H47: gal | I47: =IF(brine_method=2,"NA",IF(curve=1,fg_cst_eq,VLOOKUP(brine_tank_vol,fg_cst_cost_cl,3))) -> 992.3560155 | J47: =IF(brine_method=2,"--",IF(I47="contact vendor","--",C47*I47)) -> 992.3560155 | K47: =IF(brine_method=2,"NA",VLOOKUP(brine_tank_vol,fg_cst_cost_cl,IF(ss_cat="large",4,5))) -> 7 | L47: 0 | M47: =$B$45&" - "&B47 -> Brine Storage Tanks - Fiberglass | N47: 2 | O47: 1 | P47: 2 | Q47: 2 | R47: 1 | S47: 2 | T47: 2 | U47: 1 | V47: 2 | W47: 0 | X47: 0
A48: 3.2.1 | B48: Stainless Steel | C48: =IF(brine_method=2,0,brine_tanks) -> 1 | D48: units | E48: =IF(brine_method=2,"NA",brine_tank_vol) -> 11.40094108 | F48: gal | G48: =IF(brine_method=2,"NA",IF(curve=1,brine_tank_vol,VLOOKUP(brine_tank_vol,ss_cst_cost_cl,2))) -> 11.40094108 | H48: gal | I48: =IF(brine_method=2,"NA",IF(curve=1,ss_cst_eq,VLOOKUP(brine_tank_vol,ss_cst_cost_cl,3))) -> 336.4286768 | J48: =IF(brine_method=2,"--",IF(I48="contact vendor","--",C48*I48)) -> 336.4286768 | K48: =IF(brine_method=2,"NA",VLOOKUP(brine_tank_vol,ss_cst_cost_cl,IF(ss_cat="large",4,5))) -> 30 | L48: 0 | M48: =$B$45&" - "&B48 -> Brine Storage Tanks - Stainless Steel | N48: 3 | O48: 3 | P48: 1 | Q48: 3 | R48: 3 | S48: 1 | T48: 3 | U48: 3 | V48: 1 | W48: 0 | X48: 0
A49: 3.3 | B49: Caustic Storage Tanks | W49: 0 | X49: 0
A50: 3.3.1 | B50: Plastic/XLPE | C50: =NaOH_tanks -> 0 | D50: units | E50: =IF(NaOH_tanks=0,"NA",NaOH_tank_vol) -> NA | F50: =IF(NaOH_tanks=0,"","gal") ->  | G50: =IF(NaOH_tanks=0,"NA",IF(curve=1,NaOH_tank_vol,VLOOKUP(NaOH_tank_vol,pl_cst_cost_cl,2))) -> NA | H50: =IF(NaOH_tanks=0,"","gal") ->  | I50: =IF(NaOH_tanks=0,"NA",IF(curve=1,pl_ct_eq,VLOOKUP(NaOH_tank_vol,pl_cst_cost_cl,3))) -> NA | J50: =IF(NaOH_tanks=0,"--",IF(I50="contact vendor","--",C50*I50)) -> -- | K50: =IF(NaOH_tanks=0,"NA",VLOOKUP(NaOH_tank_vol,pl_cst_cost_cl,IF(ss_cat="large",4,5))) -> NA | M50: =$B$49&" - "&B50 -> Caustic Storage Tanks - Plastic/XLPE | N50: 1 | O50: 2 | P50: 3 | Q50: 1 | R50: 2 | S50: 3 | T50: 1 | U50: 2 | V50: 3 | W50: 0 | X50: 0
A51: 3.3.1 | B51: Fiberglass | C51: =NaOH_tanks -> 0 | D51: units | E51: =IF(NaOH_tanks=0,"NA",NaOH_tank_vol) -> NA | F51: =IF(NaOH_tanks=0,"","gal") ->  | G51: =IF(NaOH_tanks=0,"NA",IF(curve=1,NaOH_tank_vol,VLOOKUP(NaOH_tank_vol,fg_cst_cost_cl,2))) -> NA | H51: =IF(NaOH_tanks=0,"","gal") ->  | I51: =IF(NaOH_tanks=0,"NA",IF(curve=1,fg_ct_eq,VLOOKUP(NaOH_tank_vol,fg_cst_cost_cl,3))) -> NA | J51: =IF(NaOH_tanks=0,"--",IF(I51="contact vendor","--",C51*I51)) -> -- | K51: =IF(NaOH_tanks=0,"NA",VLOOKUP(NaOH_tank_vol,fg_cst_cost_cl,IF(ss_cat="large",4,5))) -> NA | M51: Caustic Storage Tanks - Fiberglass | N51: 2 | O51: 1 | P51: 2 | Q51: 2 | R51: 1 | S51: 2 | T51: 2 | U51: 1 | V51: 2 | W51: 0 | X51: 0
A52: 3.3.1 | B52: Stainless Steel | C52: =NaOH_tanks -> 0 | D52: units | E52: =IF(NaOH_tanks=0,"NA",NaOH_tank_vol) -> NA | F52: =IF(NaOH_tanks=0,"","gal") ->  | G52: =IF(NaOH_tanks=0,"NA",IF(curve=1,NaOH_tank_vol,VLOOKUP(NaOH_tank_vol,ss_cst_cost_cl,2))) -> NA | H52: =IF(NaOH_tanks=0,"","gal") ->  | I52: =IF(NaOH_tanks=0,"NA",IF(curve=1,ss_ct_eq,VLOOKUP(NaOH_tank_vol,ss_cst_cost_cl,3))) -> NA | J52: =IF(NaOH_tanks=0,"--",IF(I52="contact vendor","--",C52*I52)) -> -- | K52: =IF(NaOH_tanks=0,"NA",VLOOKUP(NaOH_tank_vol,ss_cst_cost_cl,IF(ss_cat="large",4,5))) -> NA | M52: Caustic Storage Tanks - Stainless Steel | N52: 3 | O52: 3 | P52: 1 | Q52: 3 | R52: 3 | S52: 1 | T52: 3 | U52: 3 | V52: 1 | W52: 0 | X52: 0
A53: 3.3.2 | B53: Heat Tracing | C53: =NaOH_tanks -> 0 | D53: units | E53: =IF(NaOH_tanks=0,"NA",NaOH_tank_vol) -> NA | F53: =IF(NaOH_tanks=0,"","gal") ->  | G53: =IF(NaOH_tanks=0,"NA",IF(curve=1,NaOH_tank_vol,VLOOKUP(NaOH_tank_vol,cst_heat_cost_cl,2))) -> NA | H53: =IF(NaOH_tanks=0,"","gal") ->  | I53: =IF(NaOH_tanks=0,"NA",IF(curve=1,ct_heat_eq,VLOOKUP(NaOH_tank_vol,cst_heat_cost_cl,3))) -> NA | J53: =IF(NaOH_tanks=0,"--",IF(I53="contact vendor","--",C53*I53)) -> -- | K53: =IF(NaOH_tanks=0,"NA",VLOOKUP(NaOH_tank_vol,cst_heat_cost_cl,IF(ss_cat="large",4,5))) -> NA | M53: Caustic Storage Tanks - Heat Tracing | N53: 1 | O53: 1 | P53: 1 | Q53: 1 | R53: 1 | S53: 1 | T53: 1 | U53: 1 | V53: 1 | W53: 0 | X53: 0
A54: 3.3.3 | B54: Insulation | C54: =NaOH_tanks -> 0 | D54: units | E54: =IF(NaOH_tanks=0,"NA",NaOH_tank_vol) -> NA | F54: =IF(NaOH_tanks=0,"","gal") ->  | G54: =IF(NaOH_tanks=0,"NA",IF(curve=1,NaOH_tank_vol,VLOOKUP(NaOH_tank_vol,cst_insul_cost_cl,2))) -> NA | H54: =IF(NaOH_tanks=0,"","gal") ->  | I54: =IF(NaOH_tanks=0,"NA",IF(curve=1,ct_insul_eq,VLOOKUP(NaOH_tank_vol,cst_insul_cost_cl,3))) -> NA | J54: =IF(NaOH_tanks=0,"--",IF(I54="contact vendor","--",C54*I54)) -> -- | K54: =IF(NaOH_tanks=0,"NA",VLOOKUP(NaOH_tank_vol,cst_insul_cost_cl,IF(ss_cat="large",4,5))) -> NA | M54: Caustic Storage Tanks - Insulation | N54: 1 | O54: 1 | P54: 1 | Q54: 1 | R54: 1 | S54: 1 | T54: 1 | U54: 1 | V54: 1 | W54: 0 | X54: 0
A55: 3.3.4 | B55: Secondary Containment - Concrete Curbing | C55: =IF(OR(include_sec_cont=0,NaOH_tanks=0),0,ct_curb_concrete) -> 0 | D55: cy | E55: NA | G55: NA | I55: =IF(C55=0,"NA",VLOOKUP(0,conc_basin_cost_cl,3)) -> NA | J55: =IF(C55=0,"--",IF(I55="contact vendor","--",C55*I55)) -> -- | K55: =IF(C55=0,"NA",VLOOKUP(0,conc_basin_cost_cl,IF(ss_cat="large",4,5))) -> NA | M55: Caustic Storage Tanks - Secondary Containment - Concrete Curbing | N55: 1 | O55: 1 | P55: 1 | Q55: 1 | R55: 1 | S55: 1 | T55: 1 | U55: 1 | V55: 1 | W55: =IF(ISERROR(K55*L55),0,IF(K55<1,0,L55)) -> 0 | X55: =IF(W55,J55/K55,0) -> 0
A56: 3.3.5 | B56: Secondary Containment - Chemical Resistant Coating | C56: =IF(OR(include_sec_cont=0,NaOH_tanks=0),0,ct_coating_gal) -> 0 | D56: gal | E56: NA | G56: NA | I56: =IF(C56=0,"NA",VLOOKUP(0,conc_coating_cost_cl,3)) -> NA | J56: =IF(C56=0,"--",IF(I56="contact vendor","--",C56*I56)) -> -- | K56: =IF(C56=0,"NA",VLOOKUP(0,conc_coating_cost_cl,IF(ss_cat="large",4,5))) -> NA | M56: Caustic Storage Tanks - Secondary Containment - Chemical Resistant Coating | N56: 1 | O56: 1 | P56: 1 | Q56: 1 | R56: 1 | S56: 1 | T56: 1 | U56: 1 | V56: 1 | W56: =IF(ISERROR(K56*L56),0,IF(K56<1,0,L56)) -> 0 | X56: =IF(W56,J56/K56,0) -> 0
A57: 3.4 | B57: Caustic Day Tanks | W57: 0 | X57: 0
A58: 3.4.1 | B58: Plastic/XLPE | C58: =day_tanks -> 0 | D58: units | E58: =IF(C58=0,"NA",day_tank_vol) -> NA | F58: =IF(C58=0,"","gal") ->  | G58: =IF(C58=0,"NA",IF(curve=1,day_tank_vol,VLOOKUP(day_tank_vol,pl_cst_cost_cl,2))) -> NA | H58: =IF(C58=0,"","gal") ->  | I58: =IF(C58=0,"NA",IF(curve=1,pl_day_eq,VLOOKUP(day_tank_vol,pl_cst_cost_cl,3))) -> NA | J58: =IF(C58=0,"--",IF(I58="contact vendor","--",C58*I58)) -> -- | K58: =IF(C58=0,"NA",VLOOKUP(day_tank_vol,pl_cst_cost_cl,IF(ss_cat="large",4,5))) -> NA | M58: =$B$57&" - "&B58 -> Caustic Day Tanks - Plastic/XLPE | N58: 1 | O58: 2 | P58: 3 | Q58: 1 | R58: 2 | S58: 3 | T58: 1 | U58: 2 | V58: 3 | W58: 0 | X58: 0
A59: 3.4.1 | B59: Fiberglass | C59: =day_tanks -> 0 | D59: units | E59: =IF(C59=0,"NA",day_tank_vol) -> NA | F59: =IF(C59=0,"","gal") ->  | G59: =IF(C59=0,"NA",IF(curve=1,day_tank_vol,VLOOKUP(day_tank_vol,fg_cst_cost_cl,2))) -> NA | H59: =IF(C59=0,"","gal") ->  | I59: =IF(C59=0,"NA",IF(curve=1,fg_day_eq,VLOOKUP(day_tank_vol,fg_cst_cost_cl,3))) -> NA | J59: -- | K59: =IF(C59=0,"NA",VLOOKUP(day_tank_vol,fg_cst_cost_cl,IF(ss_cat="large",4,5))) -> NA | M59: =$B$57&" - "&B59 -> Caustic Day Tanks - Fiberglass | N59: 2 | O59: 1 | P59: 2 | Q59: 2 | R59: 1 | S59: 2 | T59: 2 | U59: 1 | V59: 2 | W59: 0 | X59: 0
A60: 3.4.1 | B60: Stainless Steel | C60: =day_tanks -> 0 | D60: units | E60: =IF(C60=0,"NA",day_tank_vol) -> NA | F60: =IF(C60=0,"","gal") ->  | G60: =IF(C60=0,"NA",IF(curve=1,day_tank_vol,VLOOKUP(day_tank_vol,ss_cst_cost_cl,2))) -> NA | H60: =IF(C60=0,"","gal") ->  | I60: =IF(C60=0,"NA",IF(curve=1,ss_day_eq,VLOOKUP(day_tank_vol,ss_cst_cost_cl,3))) -> NA | J60: -- | K60: =IF(C60=0,"NA",VLOOKUP(day_tank_vol,ss_cst_cost_cl,IF(ss_cat="large",4,5))) -> NA | M60: =$B$57&" - "&B60 -> Caustic Day Tanks - Stainless Steel | N60: 3 | O60: 3 | P60: 1 | Q60: 3 | R60: 3 | S60: 1 | T60: 3 | U60: 3 | V60: 1 | W60: 0 | X60: 0
A61: 3.4.2 | B61: Heat Tracing | C61: =day_tanks -> 0 | D61: units | E61: =IF(C61=0,"NA",day_tank_vol) -> NA | F61: =IF(C61=0,"","gal") ->  | G61: =IF(C61=0,"NA",IF(curve=1,day_tank_vol,VLOOKUP(day_tank_vol,cst_heat_cost_cl,2))) -> NA | H61: =IF(C61=0,"","gal") ->  | I61: =IF(C61=0,"NA",IF(curve=1,day_heat_eq,VLOOKUP(day_tank_vol,cst_heat_cost_cl,3))) -> NA | J61: -- | K61: =IF(C61=0,"NA",VLOOKUP(day_tank_vol,cst_heat_cost_cl,IF(ss_cat="large",4,5))) -> NA | M61: =$B$57&" - "&B61 -> Caustic Day Tanks - Heat Tracing | N61: 1 | O61: 1 | P61: 1 | Q61: 1 | R61: 1 | S61: 1 | T61: 1 | U61: 1 | V61: 1 | W61: 0 | X61: 0
A62: 3.4.3 | B62: Insulation | C62: =day_tanks -> 0 | D62: units | E62: =IF(C62=0,"NA",day_tank_vol) -> NA | F62: =IF(C62=0,"","gal") ->  | G62: =IF(C62=0,"NA",IF(curve=1,day_tank_vol,VLOOKUP(day_tank_vol,cst_insul_cost_cl,2))) -> NA | H62: =IF(C62=0,"","gal") ->  | I62: =IF(C62=0,"NA",IF(curve=1,day_insul_eq,VLOOKUP(day_tank_vol,cst_insul_cost_cl,3))) -> NA | J62: -- | K62: =IF(C62=0,"NA",VLOOKUP(day_tank_vol,cst_insul_cost_cl,IF(ss_cat="large",4,5))) -> NA | M62: =$B$57&" - "&B62 -> Caustic Day Tanks - Insulation | N62: 1 | O62: 1 | P62: 1 | Q62: 1 | R62: 1 | S62: 1 | T62: 1 | U62: 1 | V62: 1 | W62: 0 | X62: 0
A63: 3.4.4 | B63: Secondary Containment - Concrete Curbing | C63: =IF(OR(include_sec_cont=0,day_tanks=0),0,dt_curb_concrete) -> 0 | D63: cy | E63: NA | G63: NA | I63: =IF(C63=0,"NA",VLOOKUP(0,conc_basin_cost_cl,3)) -> NA | J63: -- | K63: =IF(C63=0,"NA",VLOOKUP(0,conc_basin_cost_cl,IF(ss_cat="large",4,5))) -> NA | M63: =$B$57&" - "&B63 -> Caustic Day Tanks - Secondary Containment - Concrete Curbing | N63: 1 | O63: 1 | P63: 1 | Q63: 1 | R63: 1 | S63: 1 | T63: 1 | U63: 1 | V63: 1 | W63: 0 | X63: 0
A64: 3.4.5 | B64: Secondary Containment - Chemical Resistant Coating | C64: =IF(OR(include_sec_cont=0,day_tanks=0),0,dt_coating_gal) -> 0 | D64: gal | E64: NA | G64: NA | I64: =IF(C64=0,"NA",VLOOKUP(0,conc_coating_cost_cl,3)) -> NA | J64: -- | K64: =IF(C64=0,"NA",VLOOKUP(0,conc_coating_cost_cl,IF(ss_cat="large",4,5))) -> NA | M64: Caustic Day Tanks - Secondary Containment - Chemical Resistant Coating | N64: 1 | O64: 1 | P64: 1 | Q64: 1 | R64: 1 | S64: 1 | T64: 1 | U64: 1 | V64: 1 | W64: 0 | X64: 0
A65: 3.5 | B65: Residuals Holding Tanks/Basins | W65: 0 | X65: 0
A66: 3.5.1 | B66: Concrete Basins (includes Excavation, Backfill, and Compaction) | C66: =hbasins -> 0 | D66: units | E66: =IF(hbasins=0,"NA",hbasin_vol) -> NA | F66: =IF(C66=0,"","gal") ->  | G66: =IF(hbasins=0,"NA",hbasin_vol) -> NA | H66: =IF(C66=0,"","gal") ->  | I66: =IF(hbasins=0,"NA",J66/hbasins) -> NA | J66: =IF(hbasins=0,"--",hconc_vol*VLOOKUP(0,conc_basin_cost_cl,3)+hexcavation_vol*VLOOKUP(0,excavate_cost_cl,3)+hbackfill_vol*VLOOKUP(0,backfill_cost_cl,3)+hrailing*VLOOKUP("aluminum railing",metal_cost_cl,3)) -> -- | K66: =IF(hbasins=0,"NA",VLOOKUP(0,conc_basin_cost_cl,IF(ss_cat="large",4,5))) -> NA | M66: =$B$65&" - "&B66 -> Residuals Holding Tanks/Basins - Concrete Basins (includes Excavation, Backfill, and Compaction) | N66: 3 | O66: 3 | P66: 2 | Q66: 3 | R66: 3 | S66: 2 | T66: 3 | U66: 3 | V66: 2 | W66: 0 | X66: 0
A67: 3.5.1 | B67: Steel Tanks | C67: =htanks -> 0 | D67: units | E67: =IF(C67=0,"NA",htank_vol) -> NA | F67: =IF(C67=0,"","gal") ->  | G67: =IF(htanks=0,"NA",IF(curve=1,htank_vol,VLOOKUP(htank_vol,st_bwt_cost_cl,2))) -> NA | H67: =IF(C67=0,"","gal") ->  | I67: =IF(htanks=0,"NA",IF(curve=1,st_ht_eq,VLOOKUP(htank_vol,st_bwt_cost_cl,3))) -> NA | J67: =IF(C67=0,"--",IF(I67="contact vendor","--",C67*I67)) -> -- | K67: =IF(htanks=0,"NA",VLOOKUP(htank_vol,st_bwt_cost_cl,IF(ss_cat="large",4,5))) -> NA | M67: =$B$65&" - "&B67 -> Residuals Holding Tanks/Basins - Steel Tanks | N67: 4 | O67: 4 | P67: 1 | Q67: 4 | R67: 4 | S67: 1 | T67: 4 | U67: 4 | V67: 1 | W67: 0 | X67: 0
A68: 3.5.1 | B68: Fiberglass Tanks | C68: =htanks -> 0 | D68: units | E68: =IF(C68=0,"NA",htank_vol) -> NA | F68: =IF(C68=0,"","gal") ->  | G68: =IF(htanks=0,"NA",IF(curve=1,htank_vol,VLOOKUP(htank_vol,fg_bwt_cost_cl,2))) -> NA | H68: =IF(C68=0,"","gal") ->  | I68: =IF(htanks=0,"NA",IF(curve=1,fg_ht_eq,VLOOKUP(htank_vol,fg_bwt_cost_cl,3))) -> NA | J68: =IF(C68=0,"--",IF(I68="contact vendor","--",C68*I68)) -> -- | K68: =IF(htanks=0,"NA",VLOOKUP(htank_vol,fg_bwt_cost_cl,IF(ss_cat="large",4,5))) -> NA | M68: =$B$65&" - "&B68 -> Residuals Holding Tanks/Basins - Fiberglass Tanks | N68: 2 | O68: 1 | P68: 3 | Q68: 2 | R68: 1 | S68: 3 | T68: 2 | U68: 1 | V68: 3 | W68: 0 | X68: 0
A69: 3.5.1 | B69: Plastic/HDPE Tanks | C69: =htanks -> 0 | D69: units | E69: =IF(C69=0,"NA",htank_vol) -> NA | F69: =IF(C69=0,"","gal") ->  | G69: =IF(htanks=0,"NA",IF(curve=1,htank_vol,VLOOKUP(htank_vol,hdpe_bwt_cost_cl,2))) -> NA | H69: =IF(C69=0,"","gal") ->  | I69: =IF(htanks=0,"NA",IF(curve=1,hdpe_ht_eq,VLOOKUP(htank_vol,hdpe_bwt_cost_cl,3))) -> NA | J69: =IF(C69=0,"--",IF(I69="contact vendor","--",C69*I69)) -> -- | K69: =IF(htanks=0,"NA",VLOOKUP(htank_vol,hdpe_bwt_cost_cl,IF(ss_cat="large",4,5))) -> NA | M69: =$B$65&" - "&B69 -> Residuals Holding Tanks/Basins - Plastic/HDPE Tanks | N69: 1 | O69: 2 | P69: 4 | Q69: 1 | R69: 2 | S69: 4 | T69: 1 | U69: 2 | V69: 4 | W69: 0 | X69: 0
A70: 3.6 | B70: Ferric Chloride Storage Tanks | W70: =IF(ISERROR(K70*L70),0,IF(K70<1,0,L70)) -> 0 | X70: =IF(W70,J70/K70,0) -> 0
A71: 3.6.1 | B71: Plastic/XLPE | C71: =coag_tanks -> 0 | D71: units | E71: =IF(C71=0,"NA",coag_tank_vol) -> NA | F71: =IF(C71=0,"","gal") ->  | G71: =IF(C71=0,"NA",IF(curve=1,coag_tank_vol,VLOOKUP(coag_tank_vol,pl_cst_cost_cl,2))) -> NA | H71: =IF(C71=0,"","gal") ->  | I71: =IF(C71=0,"NA",IF(curve=1,pl_coag_st_eq,VLOOKUP(coag_tank_vol,pl_cst_cost_cl,3))) -> NA | J71: =IF(OR(C71=0,I71="contact vendor"),"--",C71*I71) -> -- | K71: =IF(C71=0,"NA",VLOOKUP(coag_tank_vol,pl_cst_cost_cl,IF(ss_cat="large",4,5))) -> NA | M71: =$B$70&" - "&B71 -> Ferric Chloride Storage Tanks - Plastic/XLPE | N71: 1 | O71: 2 | P71: 2 | Q71: 1 | R71: 2 | S71: 2 | T71: 1 | U71: 2 | V71: 2 | W71: 0 | X71: 0
A72: 3.6.1 | B72: Fiberglass | C72: =coag_tanks -> 0 | D72: units | E72: =IF(C72=0,"NA",coag_tank_vol) -> NA | F72: =IF(C72=0,"","gal") ->  | G72: =IF(C72=0,"NA",IF(curve=1,coag_tank_vol,VLOOKUP(coag_tank_vol,fg_cst_cost_cl,2))) -> NA | H72: =IF(C72=0,"","gal") ->  | I72: =IF(C72=0,"NA",IF(curve=1,fg_coag_st_eq,VLOOKUP(coag_tank_vol,fg_cst_cost_cl,3))) -> NA | J72: =IF(OR(C72=0,I72="contact vendor"),"--",C72*I72) -> -- | K72: =IF(C72=0,"NA",VLOOKUP(coag_tank_vol,fg_cst_cost_cl,IF(ss_cat="large",4,5))) -> NA | M72: =$B$70&" - "&B72 -> Ferric Chloride Storage Tanks - Fiberglass | N72: 2 | O72: 1 | P72: 1 | Q72: 2 | R72: 1 | S72: 1 | T72: 2 | U72: 1 | V72: 1 | W72: 0 | X72: 0
A73: 3.6.2 | B73: Secondary Containment - Concrete Curbing | C73: =IF(OR(include_sec_cont=0,coag_tanks=0),0,coag_curb_concrete) -> 0 | D73: cy | E73: NA | G73: NA | I73: =IF(C73=0,"NA",VLOOKUP(0,conc_basin_cost_cl,3)) -> NA | J73: =IF(C73=0,"--",IF(I73="contact vendor","--",C73*I73)) -> -- | K73: =IF(C73=0,"NA",VLOOKUP(0,conc_basin_cost_cl,IF(ss_cat="large",4,5))) -> NA | M73: Ferric Chloride Storage Tanks - Secondary Containment - Concrete Curbing | N73: 1 | O73: 1 | P73: 1 | Q73: 1 | R73: 1 | S73: 1 | T73: 1 | U73: 1 | V73: 1 | W73: 0 | X73: 0
A74: 3.6.3 | B74: Secondary Containment - Chemical Resistant Coating | C74: =IF(OR(include_sec_cont=0,coag_tanks=0),0,coag_coating_gal) -> 0 | D74: gal | E74: NA | G74: NA | I74: =IF(C74=0,"NA",VLOOKUP(0,conc_coating_cost_cl,3)) -> NA | J74: =IF(C74=0,"--",IF(I74="contact vendor","--",C74*I74)) -> -- | K74: =IF(C74=0,"NA",VLOOKUP(0,conc_coating_cost_cl,IF(ss_cat="large",4,5))) -> NA | M74: Ferric Chloride Storage Tanks - Secondary Containment - Chemical Resistant Coating | N74: 1 | O74: 1 | P74: 1 | Q74: 1 | R74: 1 | S74: 1 | T74: 1 | U74: 1 | V74: 1 | W74: 0 | X74: 0
A75: 3.7 | B75: Polymer Storage Tanks | W75: 0 | X75: 0
A76: 3.7.1 | B76: Plastic/XLPE | C76: =polymer_tanks -> 0 | D76: units | E76: =IF(C76=0,"NA",polymer_tank_vol) -> NA | F76: =IF(C76=0,"","gal") ->  | G76: =IF(C76=0,"NA",IF(curve=1,polymer_tank_vol,VLOOKUP(polymer_tank_vol,pl_cst_cost_cl,2))) -> NA | H76: =IF(C76=0,"","gal") ->  | I76: =IF(C76=0,"NA",IF(curve=1,pl_polymer_st_eq,VLOOKUP(polymer_tank_vol,pl_cst_cost_cl,3))) -> NA | J76: =IF(OR(C76=0,I76="contact vendor"),"--",C76*I76) -> -- | K76: =IF(C76=0,"NA",VLOOKUP(polymer_tank_vol,pl_cst_cost_cl,IF(ss_cat="large",4,5))) -> NA | M76: =$B$75&" - "&B76 -> Polymer Storage Tanks - Plastic/XLPE | N76: 1 | O76: 2 | P76: 3 | Q76: 1 | R76: 2 | S76: 3 | T76: 1 | U76: 2 | V76: 3 | W76: 0 | X76: 0
A77: 3.7.1 | B77: Fiberglass | C77: =polymer_tanks -> 0 | D77: units | E77: =IF(C77=0,"NA",polymer_tank_vol) -> NA | F77: =IF(C77=0,"","gal") ->  | G77: =IF(C77=0,"NA",IF(curve=1,polymer_tank_vol,VLOOKUP(polymer_tank_vol,fg_cst_cost_cl,2))) -> NA | H77: =IF(C77=0,"","gal") ->  | I77: =IF(C77=0,"NA",IF(curve=1,fg_polymer_st_eq,VLOOKUP(polymer_tank_vol,fg_cst_cost_cl,3))) -> NA | J77: =IF(OR(C77=0,I77="contact vendor"),"--",C77*I77) -> -- | K77: =IF(C77=0,"NA",VLOOKUP(polymer_tank_vol,fg_cst_cost_cl,IF(ss_cat="large",4,5))) -> NA | M77: =$B$75&" - "&B77 -> Polymer Storage Tanks - Fiberglass | N77: 2 | O77: 1 | P77: 2 | Q77: 2 | R77: 1 | S77: 2 | T77: 2 | U77: 1 | V77: 2 | W77: 0 | X77: 0
A78: 3.7.1 | B78: Stainless Steel | C78: =polymer_tanks -> 0 | D78: units | E78: =IF(C78=0,"NA",polymer_tank_vol) -> NA | F78: =IF(C78=0,"","gal") ->  | G78: =IF(C78=0,"NA",IF(curve=1,polymer_tank_vol,VLOOKUP(polymer_tank_vol,ss_cst_cost_cl,2))) -> NA | H78: =IF(C78=0,"","gal") ->  | I78: =IF(C78=0,"NA",IF(curve=1,ss_polymer_st_eq,VLOOKUP(polymer_tank_vol,ss_cst_cost_cl,3))) -> NA | J78: =IF(OR(C78=0,I78="contact vendor"),"--",C78*I78) -> -- | K78: =IF(C78=0,"NA",VLOOKUP(polymer_tank_vol,ss_cst_cost_cl,IF(ss_cat="large",4,5))) -> NA | M78: =$B$75&" - "&B78 -> Polymer Storage Tanks - Stainless Steel | N78: 3 | O78: 3 | P78: 1 | Q78: 3 | R78: 3 | S78: 1 | T78: 3 | U78: 3 | V78: 1 | W78: 0 | X78: 0
A79: 4 | B79: Piping | W79: 0 | X79: 0
A80: 4.1 | B80: Backwash Piping | W80: 0 | X80: 0
A81: 4.1.1 | B81: CPVC | C81: =back_pipe_length -> 25 | D81: lf | E81: =back_pipe_diam -> 1 | F81: in. diam | G81: =IF(curve=1,back_pipe_diam,VLOOKUP(back_pipe_diam,cpvc_pipe_cost_cl,2)) -> 1 | H81: in. diam | I81: =IF(curve=1,cpvc_pipe_eq_back,VLOOKUP(back_pipe_diam,cpvc_pipe_cost_cl,3)) -> 4.612425428 | J81: =IF(I81="contact vendor","--",C81*I81) -> 115.3106357 | K81: =VLOOKUP(back_pipe_diam,cpvc_pipe_cost_cl,IF(ss_cat="large",4,5)) -> 17 | L81: 0 | M81: =$B$80&" - "&B81 -> Backwash Piping - CPVC | N81: 2 | O81: 1 | P81: 3 | Q81: 2 | R81: 1 | S81: 3 | T81: 2 | U81: 1 | V81: 3 | W81: 0 | X81: 0
A82: 4.1.1 | B82: PVC | C82: =back_pipe_length -> 25 | D82: lf | E82: =back_pipe_diam -> 1 | F82: in. diam | G82: =IF(curve=1,back_pipe_diam,VLOOKUP(back_pipe_diam,pvc_pipe_cost_cl,2)) -> 1 | H82: in. diam | I82: =IF(curve=1,pvc_pipe_eq_back,VLOOKUP(back_pipe_diam,pvc_pipe_cost_cl,3)) -> 2.325803826 | J82: =IF(I82="contact vendor","--",C82*I82) -> 58.14509565 | K82: =VLOOKUP(back_pipe_diam,pvc_pipe_cost_cl,IF(ss_cat="large",4,5)) -> 17 | L82: 1 | M82: =$B$80&" - "&B82 -> Backwash Piping - PVC | N82: 1 | O82: 2 | P82: 4 | Q82: 1 | R82: 2 | S82: 4 | T82: 1 | U82: 2 | V82: 4 | W82: 1 | X82: 3.420299744
A83: 4.1.1 | B83: Stainless Steel | C83: =back_pipe_length -> 25 | D83: lf | E83: =back_pipe_diam -> 1 | F83: in. diam | G83: =IF(curve=1,back_pipe_diam,VLOOKUP(back_pipe_diam,ss_pipe_cost_cl,2)) -> 1 | H83: in. diam | I83: =IF(curve=1,ss_pipe_eq_back,VLOOKUP(back_pipe_diam,ss_pipe_cost_cl,3)) -> 43.92635213 | J83: =IF(I83="contact vendor","--",C83*I83) -> 1098.158803 | K83: =VLOOKUP(back_pipe_diam,ss_pipe_cost_cl,IF(ss_cat="large",4,5)) -> 40 | L83: 0 | M83: =$B$80&" - "&B83 -> Backwash Piping - Stainless Steel | N83: 4 | O83: 4 | P83: 1 | Q83: 4 | R83: 4 | S83: 1 | T83: 4 | U83: 4 | V83: 1 | W83: 0 | X83: 0
A84: 4.1.1 | B84: Steel | C84: =back_pipe_length -> 25 | D84: lf | E84: =back_pipe_diam -> 1 | F84: in. diam | G84: =IF(curve=1,back_pipe_diam,VLOOKUP(back_pipe_diam,st_pipe_cost_cl,2)) -> 1 | H84: in. diam | I84: =IF(curve=1,st_pipe_eq_back,VLOOKUP(back_pipe_diam,st_pipe_cost_cl,3)) -> 20.76941738 | J84: =IF(I84="contact vendor","--",C84*I84) -> 519.2354344 | K84: =VLOOKUP(back_pipe_diam,st_pipe_cost_cl,IF(ss_cat="large",4,5)) -> 33 | L84: 0 | M84: =$B$80&" - "&B84 -> Backwash Piping - Steel | N84: 3 | O84: 3 | P84: 2 | Q84: 3 | R84: 3 | S84: 2 | T84: 3 | U84: 3 | V84: 2 | W84: 0 | X84: 0
A85: 4.2 | B85: Brine Piping | W85: 0 | X85: 0
A86: 4.2.1 | B86: CPVC | C86: =brine_pipe_length -> 10 | D86: lf | E86: =brine_pipe_diam -> 0.75 | F86: in. diam | G86: =IF(curve=1,brine_pipe_diam,VLOOKUP(brine_pipe_diam,cpvc_pipe_cost_cl,2)) -> 0.75 | H86: in. diam | I86: =IF(curve=1,cpvc_pipe_eq_brine,VLOOKUP(brine_pipe_diam,cpvc_pipe_cost_cl,3)) -> 3.555464163 | J86: =IF(I86="contact vendor","--",C86*I86) -> 35.55464163 | K86: =VLOOKUP(brine_pipe_diam,cpvc_pipe_cost_cl,IF(ss_cat="large",4,5)) -> 17 | L86: 0 | M86: =$B$85&" - "&B86 -> Brine Piping - CPVC | N86: 2 | O86: 1 | P86: 3 | Q86: 2 | R86: 1 | S86: 3 | T86: 2 | U86: 1 | V86: 3 | W86: 0 | X86: 0
A87: 4.2.1 | B87: PVC | C87: =brine_pipe_length -> 10 | D87: lf | E87: =brine_pipe_diam -> 0.75 | F87: in. diam | G87: =IF(curve=1,brine_pipe_diam,VLOOKUP(brine_pipe_diam,pvc_pipe_cost_cl,2)) -> 0.75 | H87: in. diam | I87: =IF(curve=1,pvc_pipe_eq_brine,VLOOKUP(brine_pipe_diam,pvc_pipe_cost_cl,3)) -> 2.083075166 | J87: =IF(I87="contact vendor","--",C87*I87) -> 20.83075166 | K87: =VLOOKUP(brine_pipe_diam,pvc_pipe_cost_cl,IF(ss_cat="large",4,5)) -> 17 | L87: 1 | M87: =$B$85&" - "&B87 -> Brine Piping - PVC | N87: 1 | O87: 2 | P87: 4 | Q87: 1 | R87: 2 | S87: 4 | T87: 1 | U87: 2 | V87: 4 | W87: 1 | X87: 1.225338333
A88: 4.2.1 | B88: Stainless Steel | C88: =brine_pipe_length -> 10 | D88: lf | E88: =brine_pipe_diam -> 0.75 | F88: in. diam | G88: =IF(curve=1,brine_pipe_diam,VLOOKUP(brine_pipe_diam,ss_pipe_cost_cl,2)) -> 0.75 | H88: in. diam | I88: =IF(curve=1,ss_pipe_eq_brine,VLOOKUP(brine_pipe_diam,ss_pipe_cost_cl,3)) -> 30.29691174 | J88: =IF(I88="contact vendor","--",C88*I88) -> 302.9691174 | K88: =VLOOKUP(brine_pipe_diam,ss_pipe_cost_cl,IF(ss_cat="large",4,5)) -> 40 | L88: 0 | M88: =$B$85&" - "&B88 -> Brine Piping - Stainless Steel | N88: 4 | O88: 4 | P88: 1 | Q88: 4 | R88: 4 | S88: 1 | T88: 4 | U88: 4 | V88: 1 | W88: 0 | X88: 0
A89: 4.2.1 | B89: Steel | C89: =brine_pipe_length -> 10 | D89: lf | E89: =brine_pipe_diam -> 0.75 | F89: in. diam | G89: =IF(curve=1,brine_pipe_diam,VLOOKUP(brine_pipe_diam,st_pipe_cost_cl,2)) -> 0.75 | H89: in. diam | I89: =IF(curve=1,st_pipe_eq_brine,VLOOKUP(brine_pipe_diam,st_pipe_cost_cl,3)) -> 15.92220318 | J89: =IF(I89="contact vendor","--",C89*I89) -> 159.2220318 | K89: =VLOOKUP(brine_pipe_diam,st_pipe_cost_cl,IF(ss_cat="large",4,5)) -> 33 | L89: 0 | M89: =$B$85&" - "&B89 -> Brine Piping - Steel | N89: 3 | O89: 3 | P89: 2 | Q89: 3 | R89: 3 | S89: 2 | T89: 3 | U89: 3 | V89: 2 | W89: 0 | X89: 0
A90: 4.3 | B90: Process Piping | W90: 0 | X90: 0
A91: 4.3.1 | B91: Ductile Iron | C91: =proc_pipe_length -> 20 | D91: lf | E91: =proc_pipe_diam -> 1.5 | F91: in. diam | G91: =IF(curve=1,proc_pipe_diam,VLOOKUP(proc_pipe_diam,di_pipe_cost_cl,2)) -> 1.5 | H91: in. diam | I91: =IF(curve=1,di_pipe_eq_proc,VLOOKUP(proc_pipe_diam,di_pipe_cost_cl,3)) -> contact vendor | J91: =IF(I91="contact vendor","--",C91*I91) -> -- | K91: =VLOOKUP(proc_pipe_diam,di_pipe_cost_cl,IF(ss_cat="large",4,5)) -> 35 | L91: 0 | M91: =$B$90&" "&" - "&B91 -> Process Piping - Ductile Iron | N91: 3 | O91: 3 | P91: 3 | Q91: 3 | R91: 3 | S91: 3 | T91: 3 | U91: 3 | V91: 3 | W91: 0 | X91: 0
A92: 4.3.1 | B92: CPVC | C92: =proc_pipe_length -> 20 | D92: lf | E92: =proc_pipe_diam -> 1.5 | F92: in. diam | G92: =IF(curve=1,proc_pipe_diam,VLOOKUP(proc_pipe_diam,cpvc_pipe_cost_cl,2)) -> 1.5 | H92: in. diam | I92: =IF(curve=1,cpvc_pipe_eq_proc,VLOOKUP(proc_pipe_diam,cpvc_pipe_cost_cl,3)) -> 7.013311728 | J92: =IF(I92="contact vendor","--",C92*I92) -> 140.2662346 | K92: =VLOOKUP(proc_pipe_diam,cpvc_pipe_cost_cl,IF(ss_cat="large",4,5)) -> 17 | L92: 0 | M92: =$B$90&" "&" - "&B92 -> Process Piping - CPVC | N92: 2 | O92: 1 | P92: 4 | Q92: 2 | R92: 1 | S92: 4 | T92: 2 | U92: 1 | V92: 4 | W92: 0 | X92: 0
A93: 4.3.1 | B93: PVC | C93: =proc_pipe_length -> 20 | D93: lf | E93: =proc_pipe_diam -> 1.5 | F93: in. diam | G93: =IF(curve=1,proc_pipe_diam,VLOOKUP(proc_pipe_diam,pvc_pipe_cost_cl,2)) -> 1.5 | H93: in. diam | I93: =IF(curve=1,pvc_pipe_eq_proc,VLOOKUP(proc_pipe_diam,pvc_pipe_cost_cl,3)) -> 2.847676267 | J93: =IF(I93="contact vendor","--",C93*I93) -> 56.95352533 | K93: =VLOOKUP(proc_pipe_diam,pvc_pipe_cost_cl,IF(ss_cat="large",4,5)) -> 17 | L93: 1 | M93: =$B$90&" "&" - "&B93 -> Process Piping - PVC | N93: 1 | O93: 2 | P93: 5 | Q93: 1 | R93: 2 | S93: 5 | T93: 1 | U93: 2 | V93: 5 | W93: 1 | X93: 3.350207373
A94: 4.3.1 | B94: Stainless Steel | C94: =proc_pipe_length -> 20 | D94: lf | E94: =proc_pipe_diam -> 1.5 | F94: in. diam | G94: =IF(curve=1,proc_pipe_diam,VLOOKUP(proc_pipe_diam,ss_pipe_cost_cl,2)) -> 1.5 | H94: in. diam | I94: =IF(curve=1,ss_pipe_eq_proc,VLOOKUP(proc_pipe_diam,ss_pipe_cost_cl,3)) -> 70.2752489 | J94: =IF(I94="contact vendor","--",C94*I94) -> 1405.504978 | K94: =VLOOKUP(proc_pipe_diam,ss_pipe_cost_cl,IF(ss_cat="large",4,5)) -> 40 | L94: 0 | M94: =$B$90&" "&" - "&B94 -> Process Piping - Stainless Steel | N94: 5 | O94: 5 | P94: 1 | Q94: 5 | R94: 5 | S94: 1 | T94: 5 | U94: 5 | V94: 1 | W94: 0 | X94: 0
A95: 4.3.1 | B95: Steel | C95: =proc_pipe_length -> 20 | D95: lf | E95: =proc_pipe_diam -> 1.5 | F95: in. diam | G95: =IF(curve=1,proc_pipe_diam,VLOOKUP(proc_pipe_diam,st_pipe_cost_cl,2)) -> 1.5 | H95: in. diam | I95: =IF(curve=1,st_pipe_eq_proc,VLOOKUP(proc_pipe_diam,st_pipe_cost_cl,3)) -> 30.20656151 | J95: =IF(I95="contact vendor","--",C95*I95) -> 604.1312302 | K95: =VLOOKUP(proc_pipe_diam,st_pipe_cost_cl,IF(ss_cat="large",4,5)) -> 33 | L95: 0 | M95: =$B$90&" "&" - "&B95 -> Process Piping - Steel | N95: 4 | O95: 4 | P95: 2 | Q95: 4 | R95: 4 | S95: 2 | T95: 4 | U95: 4 | V95: 2 | W95: 0 | X95: 0
A96: 4.4 | B96: Bypass Piping | W96: 0 | X96: 0
A97: 4.4.1 | B97: CPVC | C97: =bp_pipe_length -> 0 | D97: lf | E97: =IF(bp_pct>0,bp_pipe_diam,"NA") -> NA | F97: =IF(bp_pct=0," ","in. diam") ->  | G97: =IF(bp_pct=0,"NA",IF(curve=1,bp_pipe_diam,VLOOKUP(bp_pipe_diam,cpvc_pipe_cost_cl,2))) -> NA | H97: =IF(bp_pct=0," ","in. diam") ->  | I97: =IF(bp_pct=0,"NA",IF(curve=1,cpvc_pipe_eq_bp,VLOOKUP(bp_pipe_diam,cpvc_pipe_cost_cl,3))) -> NA | J97: =IF(C97=0,"--",IF(I97="contact vendor","--",C97*I97)) -> -- | K97: =IF(bp_pct=0,"NA",VLOOKUP(bp_pipe_diam,cpvc_pipe_cost_cl,IF(ss_cat="large",4,5))) -> NA | M97: =$B$96&" "&" - "&B97 -> Bypass Piping - CPVC | N97: 2 | O97: 1 | P97: 3 | Q97: 2 | R97: 1 | S97: 3 | T97: 2 | U97: 1 | V97: 3 | W97: 0 | X97: 0
A98: 4.4.1 | B98: PVC | C98: =bp_pipe_length -> 0 | D98: lf | E98: =IF(bp_pct>0,bp_pipe_diam,"NA") -> NA | F98: =IF(bp_pct=0," ","in. diam") ->  | G98: =IF(bp_pct=0,"NA",IF(curve=1,bp_pipe_diam,VLOOKUP(bp_pipe_diam,pvc_pipe_cost_cl,2))) -> NA | H98: =IF(bp_pct=0," ","in. diam") ->  | I98: =IF(bp_pct=0,"NA",IF(curve=1,pvc_pipe_eq_bp,VLOOKUP(bp_pipe_diam,pvc_pipe_cost_cl,3))) -> NA | J98: =IF(C98=0,"--",IF(I98="contact vendor","--",C98*I98)) -> -- | K98: =IF(bp_pct=0,"NA",VLOOKUP(bp_pipe_diam,pvc_pipe_cost_cl,IF(ss_cat="large",4,5))) -> NA | M98: =$B$96&" "&" - "&B98 -> Bypass Piping - PVC | N98: 1 | O98: 2 | P98: 4 | Q98: 1 | R98: 2 | S98: 4 | T98: 1 | U98: 2 | V98: 4 | W98: 0 | X98: 0
A99: 4.4.1 | B99: Stainless Steel | C99: =bp_pipe_length -> 0 | D99: lf | E99: =IF(bp_pct>0,bp_pipe_diam,"NA") -> NA | F99: =IF(bp_pct=0," ","in. diam") ->  | G99: =IF(bp_pct=0,"NA",IF(curve=1,bp_pipe_diam,VLOOKUP(bp_pipe_diam,ss_pipe_cost_cl,2))) -> NA | H99: =IF(bp_pct=0," ","in. diam") ->  | I99: =IF(bp_pct=0,"NA",IF(curve=1,ss_pipe_eq_bp,VLOOKUP(bp_pipe_diam,ss_pipe_cost_cl,3))) -> NA | J99: =IF(C99=0,"--",IF(I99="contact vendor","--",C99*I99)) -> -- | K99: =IF(bp_pct=0,"NA",VLOOKUP(bp_pipe_diam,ss_pipe_cost_cl,IF(ss_cat="large",4,5))) -> NA | M99: =$B$96&" "&" - "&B99 -> Bypass Piping - Stainless Steel | N99: 4 | O99: 4 | P99: 1 | Q99: 4 | R99: 4 | S99: 1 | T99: 4 | U99: 4 | V99: 1 | W99: 0 | X99: 0
A100: 4.4.1 | B100: Steel | C100: =bp_pipe_length -> 0 | D100: lf | E100: =IF(bp_pct>0,bp_pipe_diam,"NA") -> NA | F100: =IF(bp_pct=0," ","in. diam") ->  | G100: =IF(bp_pct=0,"NA",IF(curve=1,bp_pipe_diam,VLOOKUP(bp_pipe_diam,st_pipe_cost_cl,2))) -> NA | H100: =IF(bp_pct=0," ","in. diam") ->  | I100: =IF(bp_pct=0,"NA",IF(curve=1,st_pipe_eq_bp,VLOOKUP(bp_pipe_diam,st_pipe_cost_cl,3))) -> NA | J100: =IF(C100=0,"--",IF(I100="contact vendor","--",C100*I100)) -> -- | K100: =IF(bp_pct=0,"NA",VLOOKUP(bp_pipe_diam,st_pipe_cost_cl,IF(ss_cat="large",4,5))) -> NA | M100: =$B$96&" "&" - "&B100 -> Bypass Piping - Steel | N100: 3 | O100: 3 | P100: 2 | Q100: 3 | R100: 3 | S100: 2 | T100: 3 | U100: 3 | V100: 2 | W100: 0 | X100: 0
A101: 4.5 | B101: Influent and Treated Water Piping | W101: 0 | X101: 0
A102: 4.5.1 | B102: Ductile Iron | C102: =in_out_pipe_length -> 20 | D102: lf | E102: =in_out_pipe_diam -> 1.5 | F102: in. diam | G102: =IF(curve=1,in_out_pipe_diam,VLOOKUP(in_out_pipe_diam,di_pipe_cost_cl,2)) -> 1.5 | H102: in. diam | I102: =IF(curve=1,di_pipe_eq_in_out,VLOOKUP(in_out_pipe_diam,di_pipe_cost_cl,3)) -> contact vendor | J102: =IF(I102="contact vendor","--",C102*I102) -> -- | K102: =VLOOKUP(in_out_pipe_diam,di_pipe_cost_cl,IF(ss_cat="large",4,5)) -> 35 | L102: 0 | M102: =$B$101&" "&" - "&B102 -> Influent and Treated Water Piping - Ductile Iron | N102: 3 | O102: 3 | P102: 3 | Q102: 3 | R102: 3 | S102: 3 | T102: 3 | U102: 3 | V102: 3 | W102: 0 | X102: 0
A103: 4.5.1 | B103: CPVC | C103: =in_out_pipe_length -> 20 | D103: lf | E103: =in_out_pipe_diam -> 1.5 | F103: in. diam | G103: =IF(curve=1,in_out_pipe_diam,VLOOKUP(in_out_pipe_diam,cpvc_pipe_cost_cl,2)) -> 1.5 | H103: in. diam | I103: =IF(curve=1,cpvc_pipe_eq_in_out,VLOOKUP(in_out_pipe_diam,cpvc_pipe_cost_cl,3)) -> 7.013311728 | J103: =IF(I103="contact vendor","--",C103*I103) -> 140.2662346 | K103: =VLOOKUP(in_out_pipe_diam,cpvc_pipe_cost_cl,IF(ss_cat="large",4,5)) -> 17 | L103: 0 | M103: =$B$101&" "&" - "&B103 -> Influent and Treated Water Piping - CPVC | N103: 2 | O103: 1 | P103: 4 | Q103: 2 | R103: 1 | S103: 4 | T103: 2 | U103: 1 | V103: 4 | W103: 0 | X103: 0
A104: 4.5.1 | B104: PVC | C104: =in_out_pipe_length -> 20 | D104: lf | E104: =in_out_pipe_diam -> 1.5 | F104: in. diam | G104: =IF(curve=1,in_out_pipe_diam,VLOOKUP(in_out_pipe_diam,pvc_pipe_cost_cl,2)) -> 1.5 | H104: in. diam | I104: =IF(curve=1,pvc_pipe_eq_in_out,VLOOKUP(in_out_pipe_diam,pvc_pipe_cost_cl,3)) -> 2.847676267 | J104: =IF(I104="contact vendor","--",C104*I104) -> 56.95352533 | K104: =VLOOKUP(in_out_pipe_diam,pvc_pipe_cost_cl,IF(ss_cat="large",4,5)) -> 17 | L104: 1 | M104: =$B$101&" "&" - "&B104 -> Influent and Treated Water Piping - PVC | N104: 1 | O104: 2 | P104: 5 | Q104: 1 | R104: 2 | S104: 5 | T104: 1 | U104: 2 | V104: 5 | W104: 1 | X104: 3.350207373
A105: 4.5.1 | B105: Stainless Steel | C105: =in_out_pipe_length -> 20 | D105: lf | E105: =in_out_pipe_diam -> 1.5 | F105: in. diam | G105: =IF(curve=1,in_out_pipe_diam,VLOOKUP(in_out_pipe_diam,ss_pipe_cost_cl,2)) -> 1.5 | H105: in. diam | I105: =IF(curve=1,ss_pipe_eq_in_out,VLOOKUP(in_out_pipe_diam,ss_pipe_cost_cl,3)) -> 70.2752489 | J105: =IF(I105="contact vendor","--",C105*I105) -> 1405.504978 | K105: =VLOOKUP(in_out_pipe_diam,ss_pipe_cost_cl,IF(ss_cat="large",4,5)) -> 40 | L105: 0 | M105: =$B$101&" "&" - "&B105 -> Influent and Treated Water Piping - Stainless Steel | N105: 5 | O105: 5 | P105: 1 | Q105: 5 | R105: 5 | S105: 1 | T105: 5 | U105: 5 | V105: 1 | W105: 0 | X105: 0
A106: 4.5.1 | B106: Steel | C106: =in_out_pipe_length -> 20 | D106: lf | E106: =in_out_pipe_diam -> 1.5 | F106: in. diam | G106: =IF(curve=1,in_out_pipe_diam,VLOOKUP(in_out_pipe_diam,st_pipe_cost_cl,2)) -> 1.5 | H106: in. diam | I106: =IF(curve=1,st_pipe_eq_in_out,VLOOKUP(in_out_pipe_diam,st_pipe_cost_cl,3)) -> 30.20656151 | J106: =IF(I106="contact vendor","--",C106*I106) -> 604.1312302 | K106: =VLOOKUP(in_out_pipe_diam,st_pipe_cost_cl,IF(ss_cat="large",4,5)) -> 33 | L106: 0 | M106: =$B$101&" "&" - "&B106 -> Influent and Treated Water Piping - Steel | N106: 4 | O106: 4 | P106: 2 | Q106: 4 | R106: 4 | S106: 2 | T106: 4 | U106: 4 | V106: 2 | W106: 0 | X106: 0
A107: 4.6 | B107: Caustic Piping | W107: =IF(ISERROR(K107*L107),0,IF(K107<1,0,L107)) -> 0 | X107: =IF(W107,J107/K107,0) -> 0
A108: 4.6.1 | B108: CPVC | C108: =caustic_pipe_length -> 0 | D108: lf | E108: =IF(caustic_pipe_length=0,"NA",caustic_pipe_diam) -> NA | F108: =IF(caustic_pipe_length=0,"","in. diam") ->  | G108: =IF(caustic_pipe_length=0,"NA",IF(curve=1,caustic_pipe_diam,VLOOKUP(caustic_pipe_diam,cpvc_pipe_cost_cl,2))) -> NA | H108: =IF(caustic_pipe_length=0,"","in. diam") ->  | I108: =IF(caustic_pipe_length=0,"NA",IF(curve=1,cpvc_pipe_eq_caustic,VLOOKUP(caustic_pipe_diam,cpvc_pipe_cost_cl,3))) -> NA | J108: =IF(caustic_pipe_length=0,"--",IF(I108="contact vendor","--",C108*I108)) -> -- | K108: =IF(caustic_pipe_length=0,"NA",VLOOKUP(caustic_pipe_diam,cpvc_pipe_cost_cl,IF(ss_cat="large",4,5))) -> NA | M108: =$B$107&" "&" - "&B108 -> Caustic Piping - CPVC | N108: 2 | O108: 1 | P108: 2 | Q108: 2 | R108: 1 | S108: 2 | T108: 2 | U108: 1 | V108: 2 | W108: 0 | X108: 0
A109: 4.6.1 | B109: PVC | C109: =caustic_pipe_length -> 0 | D109: lf | E109: =IF(caustic_pipe_length=0,"NA",caustic_pipe_diam) -> NA | F109: =IF(caustic_pipe_length=0,"","in. diam") ->  | G109: =IF(caustic_pipe_length=0,"NA",IF(curve=1,caustic_pipe_diam,VLOOKUP(caustic_pipe_diam,pvc_pipe_cost_cl,2))) -> NA | H109: =IF(caustic_pipe_length=0,"","in. diam") ->  | I109: =IF(caustic_pipe_length=0,"NA",IF(curve=1,pvc_pipe_eq_caustic,VLOOKUP(caustic_pipe_diam,pvc_pipe_cost_cl,3))) -> NA | J109: =IF(caustic_pipe_length=0,"--",IF(I109="contact vendor","--",C109*I109)) -> -- | K109: =IF(caustic_pipe_length=0,"NA",VLOOKUP(caustic_pipe_diam,pvc_pipe_cost_cl,IF(ss_cat="large",4,5))) -> NA | M109: =$B$107&" "&" - "&B109 -> Caustic Piping - PVC | N109: 1 | O109: 2 | P109: 3 | Q109: 1 | R109: 2 | S109: 3 | T109: 1 | U109: 2 | V109: 3 | W109: 0 | X109: 0
A110: 4.6.1 | B110: Stainless Steel | C110: =caustic_pipe_length -> 0 | D110: lf | E110: =IF(caustic_pipe_length=0,"NA",caustic_pipe_diam) -> NA | F110: =IF(caustic_pipe_length=0,"","in. diam") ->  | G110: =IF(caustic_pipe_length=0,"NA",IF(curve=1,caustic_pipe_diam,VLOOKUP(caustic_pipe_diam,ss_pipe_cost_cl,2))) -> NA | H110: =IF(caustic_pipe_length=0,"","in. diam") ->  | I110: =IF(caustic_pipe_length=0,"NA",IF(curve=1,ss_pipe_eq_caustic,VLOOKUP(caustic_pipe_diam,ss_pipe_cost_cl,3))) -> NA | J110: =IF(caustic_pipe_length=0,"--",IF(I110="contact vendor","--",C110*I110)) -> -- | K110: =IF(caustic_pipe_length=0,"NA",VLOOKUP(caustic_pipe_diam,ss_pipe_cost_cl,IF(ss_cat="large",4,5))) -> NA | M110: =$B$107&" "&" - "&B110 -> Caustic Piping - Stainless Steel | N110: 3 | O110: 3 | P110: 1 | Q110: 3 | R110: 3 | S110: 1 | T110: 3 | U110: 3 | V110: 1 | W110: 0 | X110: 0
A111: 4.7 | B111: Residuals Piping | W111: 0 | X111: 0
A112: 4.7.1 | B112: CPVC | C112: =res_pipe_length -> 50 | D112: lf | E112: =res_pipe_diam -> 1 | F112: in. diam | G112: =IF(curve=1,res_pipe_diam,VLOOKUP(res_pipe_diam,cpvc_pipe_cost_cl,2)) -> 1 | H112: in. diam | I112: =IF(curve=1,cpvc_pipe_eq_res,VLOOKUP(res_pipe_diam,cpvc_pipe_cost_cl,3)) -> 4.612425428 | J112: =IF(I112="contact vendor","--",C112*I112) -> 230.6212714 | K112: =VLOOKUP(res_pipe_diam,cpvc_pipe_cost_cl,IF(ss_cat="large",4,5)) -> 17 | L112: 0 | M112: =$B$111&" "&" - "&B112 -> Residuals Piping - CPVC | N112: 2 | O112: 1 | P112: 3 | Q112: 2 | R112: 1 | S112: 3 | T112: 2 | U112: 1 | V112: 3 | W112: 0 | X112: 0
A113: 4.7.1 | B113: PVC | C113: =res_pipe_length -> 50 | D113: lf | E113: =res_pipe_diam -> 1 | F113: in. diam | G113: =IF(curve=1,res_pipe_diam,VLOOKUP(res_pipe_diam,pvc_pipe_cost_cl,2)) -> 1 | H113: in. diam | I113: =IF(curve=1,pvc_pipe_eq_res,VLOOKUP(res_pipe_diam,pvc_pipe_cost_cl,3)) -> 2.325803826 | J113: =IF(I113="contact vendor","--",C113*I113) -> 116.2901913 | K113: =VLOOKUP(res_pipe_diam,pvc_pipe_cost_cl,IF(ss_cat="large",4,5)) -> 17 | L113: 1 | M113: =$B$111&" "&" - "&B113 -> Residuals Piping - PVC | N113: 1 | O113: 2 | P113: 4 | Q113: 1 | R113: 2 | S113: 4 | T113: 1 | U113: 2 | V113: 4 | W113: 1 | X113: 6.840599488
A114: 4.7.1 | B114: Stainless Steel | C114: =res_pipe_length -> 50 | D114: lf | E114: =res_pipe_diam -> 1 | F114: in. diam | G114: =IF(curve=1,res_pipe_diam,VLOOKUP(res_pipe_diam,ss_pipe_cost_cl,2)) -> 1 | H114: in. diam | I114: =IF(curve=1,ss_pipe_eq_res,VLOOKUP(res_pipe_diam,ss_pipe_cost_cl,3)) -> 43.92635213 | J114: =IF(I114="contact vendor","--",C114*I114) -> 2196.317607 | K114: =VLOOKUP(res_pipe_diam,ss_pipe_cost_cl,IF(ss_cat="large",4,5)) -> 40 | L114: 0 | M114: =$B$111&" "&" - "&B114 -> Residuals Piping - Stainless Steel | N114: 4 | O114: 4 | P114: 1 | Q114: 4 | R114: 4 | S114: 1 | T114: 4 | U114: 4 | V114: 1 | W114: 0 | X114: 0
A115: 4.7.1 | B115: Steel | C115: =res_pipe_length -> 50 | D115: lf | E115: =res_pipe_diam -> 1 | F115: in. diam | G115: =IF(curve=1,res_pipe_diam,VLOOKUP(res_pipe_diam,st_pipe_cost_cl,2)) -> 1 | H115: in. diam | I115: =IF(curve=1,st_pipe_eq_res,VLOOKUP(res_pipe_diam,st_pipe_cost_cl,3)) -> 20.76941738 | J115: =IF(I115="contact vendor","--",C115*I115) -> 1038.470869 | K115: =VLOOKUP(res_pipe_diam,st_pipe_cost_cl,IF(ss_cat="large",4,5)) -> 33 | L115: 0 | M115: =$B$111&" "&" - "&B115 -> Residuals Piping - Steel | N115: 3 | O115: 3 | P115: 2 | Q115: 3 | R115: 3 | S115: 2 | T115: 3 | U115: 3 | V115: 2 | W115: 0 | X115: 0
A116: 4.7.2 | B116: Excavation | C116: =res_trench_vol -> 32.57200318 | D116: cy | E116: NA | G116: NA | I116: =IF(C116=0,"NA",VLOOKUP(0,excavate_cost_cl,3)) -> 30.88 | J116: =IF(OR(I116="contact vendor",C116=0),"--",C116*I116) -> 1005.823458 | K116: =IF(I116="NA","N/A",IF(L$112=1,K$112,IF(L$113=1,K$113,IF(L$114=1,K$114,IF(L$115=1,K$115,"N/A"))))) -> 17 | L116: 1 | M116: =$B$111&" - "&B116 -> Residuals Piping - Excavation | N116: 1 | O116: 1 | P116: 1 | Q116: 1 | R116: 1 | S116: 1 | T116: 1 | U116: 1 | V116: 1 | W116: 1 | X116: 59.16608578
A117: 4.7.3 | B117: Bedding | C117: =res_pipe_bedding_vol -> 1.003904083 | D117: cy | E117: NA | G117: NA | I117: =IF(C117=0,"NA",VLOOKUP(0,bedding_cost_cl,3)) -> 45.35 | J117: =IF(OR(I117="contact vendor",C117=0),"--",C117*I117) -> 45.52705018 | K117: =IF(I117="NA","N/A",IF(L$112=1,K$112,IF(L$113=1,K$113,IF(L$114=1,K$114,IF(L$115=1,K$115,"N/A"))))) -> 17 | L117: 1 | M117: =$B$111&" - "&B117 -> Residuals Piping - Bedding | N117: 1 | O117: 1 | P117: 1 | Q117: 1 | R117: 1 | S117: 1 | T117: 1 | U117: 1 | V117: 1 | W117: 1 | X117: 2.678061775
A118: 4.7.4 | B118: Backfill and Compaction | C118: =res_trench_vol -> 32.57200318 | D118: cy | E118: NA | G118: NA | I118: =IF(C118=0,"NA",VLOOKUP(0,backfill_cost_cl,3)) -> 18.65 | J118: =IF(OR(I118="contact vendor",C118=0),"--",C118*I118) -> 607.4678593 | K118: =IF(I118="NA","N/A",IF(L$112=1,K$112,IF(L$113=1,K$113,IF(L$114=1,K$114,IF(L$115=1,K$115,"N/A"))))) -> 17 | L118: 1 | M118: =$B$111&" - "&B118 -> Residuals Piping - Backfill and Compaction | N118: 1 | O118: 1 | P118: 1 | Q118: 1 | R118: 1 | S118: 1 | T118: 1 | U118: 1 | V118: 1 | W118: 1 | X118: 35.73340349
A119: 4.7.5 | B119: Thrust Blocks | C119: =res_block_vol -> 0.1645957732 | D119: cy | E119: NA | G119: NA | I119: =IF(C119=0,"NA",VLOOKUP(0,conc_basin_cost_cl,3)) -> 739.6055887 | J119: =IF(OR(I119="contact vendor",C119=0),"--",C119*I119) -> 121.7359537 | K119: =IF(I119="NA","N/A",IF(L$112=1,K$112,IF(L$113=1,K$113,IF(L$114=1,K$114,IF(L$115=1,K$115,"N/A"))))) -> 17 | L119: 1 | M119: =$B$111&" - "&B119 -> Residuals Piping - Thrust Blocks | N119: 1 | O119: 1 | P119: 1 | Q119: 1 | R119: 1 | S119: 1 | T119: 1 | U119: 1 | V119: 1 | W119: 1 | X119: 7.160938455
A120: 4.8 | B120: Ferric Chloride Piping | W120: =IF(ISERROR(K120*L120),0,IF(K120<1,0,L120)) -> 0 | X120: =IF(W120,J120/K120,0) -> 0
A121: 4.8.1 | B121: CPVC | C121: =coag_pipe_length -> 0 | D121: lf | E121: =IF(C121=0,"NA",coag_pipe_diam) -> NA | F121: =IF(C121=0,"","in diam") ->  | G121: =IF(C121=0,"NA",IF(curve=1,coag_pipe_diam,VLOOKUP(coag_pipe_diam,cpvc_pipe_cost_cl,2))) -> NA | H121: =IF(C121=0,"","in diam") ->  | I121: =IF(C121=0,"NA",IF(curve=1,cpvc_pipe_eq_coag,VLOOKUP(coag_pipe_diam,cpvc_pipe_cost_cl,3))) -> NA | J121: =IF(OR(C121=0,I121="contact vendor"),"--",C121*I121) -> -- | K121: =IF(C121=0,"NA",VLOOKUP(coag_pipe_diam,cpvc_pipe_cost_cl,IF(ss_cat="large",4,5))) -> NA | M121: =$B$120&" "&" - "&B121 -> Ferric Chloride Piping - CPVC | N121: 2 | O121: 1 | P121: 1 | Q121: 2 | R121: 1 | S121: 1 | T121: 2 | U121: 1 | V121: 1 | W121: 0 | X121: 0
A122: 4.8.1 | B122: PVC | C122: =coag_pipe_length -> 0 | D122: lf | E122: =IF(C122=0,"NA",coag_pipe_diam) -> NA | F122: =IF(C122=0,"","in diam") ->  | G122: =IF(C122=0,"NA",IF(curve=1,coag_pipe_diam,VLOOKUP(coag_pipe_diam,pvc_pipe_cost_cl,2))) -> NA | H122: =IF(C122=0,"","in diam") ->  | I122: =IF(C122=0,"NA",IF(curve=1,pvc_pipe_eq_coag,VLOOKUP(coag_pipe_diam,pvc_pipe_cost_cl,3))) -> NA | J122: =IF(OR(C122=0,I122="contact vendor"),"--",C122*I122) -> -- | K122: =IF(C122=0,"NA",VLOOKUP(coag_pipe_diam,pvc_pipe_cost_cl,IF(ss_cat="large",4,5))) -> NA | M122: =$B$120&" "&" - "&B122 -> Ferric Chloride Piping - PVC | N122: 1 | O122: 2 | P122: 2 | Q122: 1 | R122: 2 | S122: 2 | T122: 1 | U122: 2 | V122: 2 | W122: 0 | X122: 0
A123: 4.9 | B123: Polymer Piping | W123: 0 | X123: 0
A124: 4.9.1 | B124: CPVC | C124: =polymer_pipe_length -> 0 | D124: lf | E124: =IF(C124=0,"NA",polymer_pipe_diam) -> NA | F124: =IF(C124=0,"","in diam") ->  | G124: =IF(C124=0,"NA",IF(curve=1,polymer_pipe_diam,VLOOKUP(polymer_pipe_diam,cpvc_pipe_cost_cl,2))) -> NA | H124: =IF(C124=0,"","in diam") ->  | I124: =IF(C124=0,"NA",IF(curve=1,cpvc_pipe_eq_polymer,VLOOKUP(polymer_pipe_diam,cpvc_pipe_cost_cl,3))) -> NA | J124: =IF(OR(C124=0,I124="contact vendor"),"--",C124*I124) -> -- | K124: =IF(C124=0,"NA",VLOOKUP(polymer_pipe_diam,cpvc_pipe_cost_cl,IF(ss_cat="large",4,5))) -> NA | M124: =$B$123&" "&" - "&B124 -> Polymer Piping - CPVC | N124: 2 | O124: 1 | P124: 3 | Q124: 2 | R124: 1 | S124: 3 | T124: 2 | U124: 1 | V124: 3 | W124: 0 | X124: 0
A125: 4.9.1 | B125: PVC | C125: =polymer_pipe_length -> 0 | D125: lf | E125: =IF(C125=0,"NA",polymer_pipe_diam) -> NA | F125: =IF(C125=0,"","in diam") ->  | G125: =IF(C125=0,"NA",IF(curve=1,polymer_pipe_diam,VLOOKUP(polymer_pipe_diam,pvc_pipe_cost_cl,2))) -> NA | H125: =IF(C125=0,"","in diam") ->  | I125: =IF(C125=0,"NA",IF(curve=1,pvc_pipe_eq_polymer,VLOOKUP(polymer_pipe_diam,pvc_pipe_cost_cl,3))) -> NA | J125: =IF(OR(C125=0,I125="contact vendor"),"--",C125*I125) -> -- | K125: =IF(C125=0,"NA",VLOOKUP(polymer_pipe_diam,pvc_pipe_cost_cl,IF(ss_cat="large",4,5))) -> NA | M125: =$B$123&" "&" - "&B125 -> Polymer Piping - PVC | N125: 1 | O125: 2 | P125: 4 | Q125: 1 | R125: 2 | S125: 4 | T125: 1 | U125: 2 | V125: 4 | W125: 0 | X125: 0
A126: 4.9.1 | B126: Stainless Steel | C126: =polymer_pipe_length -> 0 | D126: lf | E126: =IF(C126=0,"NA",polymer_pipe_diam) -> NA | F126: =IF(C126=0,"","in diam") ->  | G126: =IF(C126=0,"NA",IF(curve=1,polymer_pipe_diam,VLOOKUP(polymer_pipe_diam,ss_pipe_cost_cl,2))) -> NA | H126: =IF(C126=0,"","in diam") ->  | I126: =IF(C126=0,"NA",IF(curve=1,ss_pipe_eq_polymer,VLOOKUP(polymer_pipe_diam,ss_pipe_cost_cl,3))) -> NA | J126: =IF(OR(C126=0,I126="contact vendor"),"--",C126*I126) -> -- | K126: =IF(C126=0,"NA",VLOOKUP(polymer_pipe_diam,ss_pipe_cost_cl,IF(ss_cat="large",4,5))) -> NA | M126: =$B$123&" "&" - "&B126 -> Polymer Piping - Stainless Steel | N126: 4 | O126: 4 | P126: 1 | Q126: 4 | R126: 4 | S126: 1 | T126: 4 | U126: 4 | V126: 1 | W126: 0 | X126: 0
A127: 4.9.1 | B127: Steel | C127: =polymer_pipe_length -> 0 | D127: lf | E127: =IF(C127=0,"NA",polymer_pipe_diam) -> NA | F127: =IF(C127=0,"","in diam") ->  | G127: =IF(C127=0,"NA",IF(curve=1,polymer_pipe_diam,VLOOKUP(polymer_pipe_diam,st_pipe_cost_cl,2))) -> NA | H127: =IF(C127=0,"","in diam") ->  | I127: =IF(C127=0,"NA",IF(curve=1,st_pipe_eq_polymer,VLOOKUP(polymer_pipe_diam,st_pipe_cost_cl,3))) -> NA | J127: =IF(OR(C127=0,I127="contact vendor"),"--",C127*I127) -> -- | K127: =IF(C127=0,"NA",VLOOKUP(polymer_pipe_diam,st_pipe_cost_cl,IF(ss_cat="large",4,5))) -> NA | M127: =$B$123&" "&" - "&B127 -> Polymer Piping - Steel | N127: 3 | O127: 3 | P127: 2 | Q127: 3 | R127: 3 | S127: 2 | T127: 3 | U127: 3 | V127: 2 | W127: 0 | X127: 0
A128: 5 | B128: Valves and Fittings | W128: 0 | X128: 0
A129: 5.1 | B129: Motor/Air Operated | W129: 0 | X129: 0
A130: 5.1.1 | B130: Process - Polypropylene/PVC | C130: =tot_proc_MOVs -> 4 | D130: units | E130: =tank_valve_size -> 1.5 | F130: in. diam | G130: =IF(curve=1,tank_valve_size,VLOOKUP(tank_valve_size,pp_mov_cost_cl,2)) -> 1.5 | H130: in. diam | I130: =IF(curve=1,pp_mov_eq_tank,VLOOKUP(tank_valve_size,pp_mov_cost_cl,3)) -> 787.0140404 | J130: =IF(C130=0,"--",IF(I130="contact vendor","--",C130*I130)) -> 3148.056162 | K130: =VLOOKUP(tank_valve_size,pp_mov_cost_cl,IF(ss_cat="large",4,5)) -> 20 | L130: 1 | M130: =$B$128 & " - " & $B$129&" "&" - "&B130 -> Valves and Fittings - Motor/Air Operated - Process - Polypropylene/PVC | N130: 1 | O130: 2 | P130: 3 | Q130: 1 | R130: 2 | S130: 3 | T130: 1 | U130: 2 | V130: 3 | W130: 1 | X130: 157.4028081
A131: 5.1.1 | B131: Process - Stainless Steel | C131: =tot_proc_MOVs -> 4 | D131: units | E131: =tank_valve_size -> 1.5 | F131: in. diam | G131: =IF(curve=1,tank_valve_size,VLOOKUP(tank_valve_size,ss_mov_cost_cl,2)) -> 1.5 | H131: in. diam | I131: =IF(curve=1,ss_mov_eq_tank,VLOOKUP(tank_valve_size,ss_mov_cost_cl,3)) -> 1470.604046 | J131: 5882.416186 | K131: =VLOOKUP(tank_valve_size,ss_mov_cost_cl,IF(ss_cat="large",4,5)) -> 20 | L131: 0 | M131: =$B$128 & " - " & $B$129&" "&" - "&B131 -> Valves and Fittings - Motor/Air Operated - Process - Stainless Steel | N131: 3 | O131: 3 | P131: 1 | Q131: 3 | R131: 3 | S131: 1 | T131: 3 | U131: 3 | V131: 1 | W131: 0 | X131: 0
A132: 5.1.1 | B132: Process - Cast Iron | C132: =tot_proc_MOVs -> 4 | D132: units | E132: =tank_valve_size -> 1.5 | F132: in. diam | G132: =IF(curve=1,tank_valve_size,VLOOKUP(tank_valve_size,ci_mov_cost_cl,2)) -> 1.5 | H132: in. diam | I132: =IF(curve=1,pp_mov_eq_tank,VLOOKUP(tank_valve_size,ci_mov_cost_cl,3)) -> 787.0140404 | J132: 3148.056162 | K132: =VLOOKUP(tank_valve_size,ci_mov_cost_cl,IF(ss_cat="large",4,5)) -> 20 | L132: 0 | M132: Valves and Fittings - Motor/Air Operated - Process - Cast Iron | N132: 2 | O132: 1 | P132: 2 | Q132: 2 | R132: 1 | S132: 2 | T132: 2 | U132: 1 | V132: 2 | W132: 0 | X132: 0
A133: 5.1.2 | B133: Backwash - Polypropylene/PVC | C133: =tot_back_MOVs -> 7 | D133: units | E133: =back_valve_size -> 1 | F133: in. diam | G133: =IF(curve=1,back_valve_size,VLOOKUP(back_valve_size,pp_mov_cost_cl,2)) -> 1 | H133: in. diam | I133: =IF(curve=1,pp_mov_eq_back,VLOOKUP(back_valve_size,pp_mov_cost_cl,3)) -> 718.5617205 | J133: 5029.932043 | K133: =VLOOKUP(back_valve_size,pp_mov_cost_cl,IF(ss_cat="large",4,5)) -> 20 | L133: 1 | M133: Valves and Fittings - Motor/Air Operated - Backwash - Polypropylene/PVC | N133: 1 | O133: 2 | P133: 3 | Q133: 1 | R133: 2 | S133: 3 | T133: 1 | U133: 2 | V133: 3 | W133: 1 | X133: 251.4966022
A134: 5.1.2 | B134: Backwash - Stainless Steel | C134: =tot_back_MOVs -> 7 | D134: units | E134: =back_valve_size -> 1 | F134: in. diam | G134: =IF(curve=1,back_valve_size,VLOOKUP(back_valve_size,ss_mov_cost_cl,2)) -> 1 | H134: in. diam | I134: =IF(curve=1,ss_mov_eq_back,VLOOKUP(back_valve_size,ss_mov_cost_cl,3)) -> 1432.791532 | J134: 10029.54072 | K134: =VLOOKUP(back_valve_size,ss_mov_cost_cl,IF(ss_cat="large",4,5)) -> 20 | L134: 0 | M134: Valves and Fittings - Motor/Air Operated - Backwash - Stainless Steel | N134: 3 | O134: 3 | P134: 1 | Q134: 3 | R134: 3 | S134: 1 | T134: 3 | U134: 3 | V134: 1 | W134: 0 | X134: 0
A135: 5.1.2 | B135: Backwash - Cast Iron | C135: =tot_back_MOVs -> 7 | D135: units | E135: =back_valve_size -> 1 | F135: in. diam | G135: =IF(curve=1,back_valve_size,VLOOKUP(back_valve_size,ci_mov_cost_cl,2)) -> 1 | H135: in. diam | I135: =IF(curve=1,ci_mov_eq_back,VLOOKUP(back_valve_size,ci_mov_cost_cl,3)) -> 139.5635155 | J135: 976.9446087 | K135: =VLOOKUP(back_valve_size,ci_mov_cost_cl,IF(ss_cat="large",4,5)) -> 20 | L135: 0 | M135: =$B$128 & " - " & $B$129&" "&" - "&B135 -> Valves and Fittings - Motor/Air Operated - Backwash - Cast Iron | N135: 2 | O135: 1 | P135: 2 | Q135: 2 | R135: 1 | S135: 2 | T135: 2 | U135: 1 | V135: 2 | W135: 0 | X135: 0
A136: 5.1.3 | B136: Brine - Polypropylene/PVC | C136: =tot_brine_MOVs -> 5 | D136: units | E136: =brine_valve_size -> 0.75 | F136: in. diam | G136: =IF(curve=1,brine_valve_size,VLOOKUP(brine_valve_size,pp_mov_cost_cl,2)) -> 0.75 | H136: in. diam | I136: =IF(curve=1,pp_mov_eq_brine,VLOOKUP(brine_valve_size,pp_mov_cost_cl,3)) -> 686.6017029 | J136: 3433.008514 | K136: =VLOOKUP(brine_valve_size,pp_mov_cost_cl,IF(ss_cat="large",4,5)) -> 20 | L136: 1 | M136: Valves and Fittings - Motor/Air Operated - Brine - Polypropylene/PVC | N136: 1 | O136: 2 | P136: 2 | Q136: 1 | R136: 2 | S136: 2 | T136: 1 | U136: 2 | V136: 2 | W136: 1 | X136: 171.6504257
A137: 5.1.3 | B137: Brine - Stainless Steel | C137: =tot_brine_MOVs -> 5 | D137: units | E137: =brine_valve_size -> 0.75 | F137: in. diam | G137: =IF(curve=1,brine_valve_size,VLOOKUP(brine_valve_size,ss_mov_cost_cl,2)) -> 0.75 | H137: in. diam | I137: =IF(curve=1,ss_mov_eq_brine,VLOOKUP(brine_valve_size,ss_mov_cost_cl,3)) -> 1423.145936 | J137: 7115.729682 | K137: =VLOOKUP(brine_valve_size,ss_mov_cost_cl,IF(ss_cat="large",4,5)) -> 20 | L137: 0 | M137: Valves and Fittings - Motor/Air Operated - Brine - Stainless Steel | N137: 2 | O137: 1 | P137: 1 | Q137: 2 | R137: 1 | S137: 1 | T137: 2 | U137: 1 | V137: 1 | W137: 0 | X137: 0
A138: 5.1.4 | B138: Bypass - Polypropylene/PVC | C138: =IF(bp_pct>0,tot_bp_MOVs,0) -> 0 | D138: units | E138: =IF(bp_pct=0,"NA",bypass_valve_size) -> NA | F138: =IF(bp_pct=0," ","in. diam") ->  | G138: =IF(bp_pct=0,"NA",(IF(curve=1,bypass_valve_size,VLOOKUP(bypass_valve_size,pp_mov_cost_cl,2)))) -> NA | H138: =IF(bp_pct=0," ","in. diam") ->  | I138: =IF(bp_pct=0,"NA",(IF(curve=1,pp_mov_eq_bp,VLOOKUP(bypass_valve_size,pp_mov_cost_cl,3)))) -> NA | J138: -- | K138: =IF(bp_pct=0,"NA",VLOOKUP(bypass_valve_size,pp_mov_cost_cl,IF(ss_cat="large",4,5))) -> NA | M138: Valves and Fittings - Motor/Air Operated - Bypass - Polypropylene/PVC | N138: 1 | O138: 2 | P138: 3 | Q138: 1 | R138: 2 | S138: 3 | T138: 1 | U138: 2 | V138: 3 | W138: 0 | X138: 0
A139: 5.1.4 | B139: Bypass - Stainless Steel | C139: =IF(bp_pct>0,tot_bp_MOVs,0) -> 0 | D139: units | E139: =IF(bp_pct=0,"NA",bypass_valve_size) -> NA | F139: =IF(bp_pct=0," ","in. diam") ->  | G139: =IF(bp_pct=0,"NA",(IF(curve=1,bypass_valve_size,VLOOKUP(bypass_valve_size,ss_mov_cost_cl,2)))) -> NA | H139: =IF(bp_pct=0," ","in. diam") ->  | I139: =IF(bp_pct=0,"NA",(IF(curve=1,ss_mov_eq_bp,VLOOKUP(bypass_valve_size,ss_mov_cost_cl,3)))) -> NA | J139: -- | K139: =IF(bp_pct=0,"NA",VLOOKUP(bypass_valve_size,ss_mov_cost_cl,IF(ss_cat="large",4,5))) -> NA | M139: Valves and Fittings - Motor/Air Operated - Bypass - Stainless Steel | N139: 3 | O139: 3 | P139: 1 | Q139: 3 | R139: 3 | S139: 1 | T139: 3 | U139: 3 | V139: 1 | W139: 0 | X139: 0
A140: 5.1.4 | B140: Bypass - Cast Iron | C140: =IF(bp_pct>0,tot_bp_MOVs,0) -> 0 | D140: units | E140: =IF(bp_pct=0,"NA",bypass_valve_size) -> NA | F140: =IF(bp_pct=0," ","in. diam") ->  | G140: =IF(bp_pct=0,"NA",(IF(curve=1,bypass_valve_size,VLOOKUP(bypass_valve_size,ci_mov_cost_cl,2)))) -> NA | H140: =IF(bp_pct=0," ","in. diam") ->  | I140: =IF(bp_pct=0,"NA",(IF(curve=1,ci_mov_eq_bp,VLOOKUP(bypass_valve_size,ci_mov_cost_cl,3)))) -> NA | J140: -- | K140: =IF(bp_pct=0,"NA",VLOOKUP(bypass_valve_size,ci_mov_cost_cl,IF(ss_cat="large",4,5))) -> NA | M140: =$B$128 & " - " & $B$129&" "&" - "&B140 -> Valves and Fittings - Motor/Air Operated - Bypass - Cast Iron | N140: 2 | O140: 1 | P140: 2 | Q140: 2 | R140: 1 | S140: 2 | T140: 2 | U140: 1 | V140: 2 | W140: 0 | X140: 0
A141: 5.1.5 | B141: Caustic - Polypropylene/PVC | C141: =tot_caustic_MOVs -> 0 | D141: units | E141: =IF(tot_caustic_MOVs=0,"NA",caustic_valve_size) -> NA | F141: =IF(C141=0,"","in. diam") ->  | G141: =IF(tot_caustic_MOVs=0,"NA",(IF(curve=1,caustic_valve_size,VLOOKUP(caustic_valve_size,pp_mov_cost_cl,2)))) -> NA | H141: =IF(C141=0,"","in. diam") ->  | I141: =IF(tot_caustic_MOVs=0,"NA",(IF(curve=1,pp_mov_eq_caustic,VLOOKUP(caustic_valve_size,pp_mov_cost_cl,3)))) -> NA | J141: -- | K141: =IF(tot_caustic_MOVs=0,"NA",VLOOKUP(caustic_valve_size,pp_mov_cost_cl,IF(ss_cat="large",4,5))) -> NA | M141: Valves and Fittings - Motor/Air Operated - Caustic - Polypropylene/PVC | N141: 1 | O141: 2 | P141: 2 | Q141: 1 | R141: 2 | S141: 2 | T141: 1 | U141: 2 | V141: 2 | W141: 0 | X141: 0
A142: 5.1.5 | B142: Caustic - Stainless Steel | C142: =tot_caustic_MOVs -> 0 | D142: units | E142: =IF(tot_caustic_MOVs=0,"NA",caustic_valve_size) -> NA | G142: =IF(tot_caustic_MOVs=0,"NA",(IF(curve=1,caustic_valve_size,VLOOKUP(caustic_valve_size,ss_mov_cost_cl,2)))) -> NA | I142: =IF(tot_caustic_MOVs=0,"NA",(IF(curve=1,ss_mov_eq_caustic,VLOOKUP(caustic_valve_size,ss_mov_cost_cl,3)))) -> NA | J142: -- | K142: =IF(tot_caustic_MOVs=0,"NA",VLOOKUP(caustic_valve_size,ss_mov_cost_cl,IF(ss_cat="large",4,5))) -> NA | M142: Valves and Fittings - Motor/Air Operated - Caustic - Stainless Steel | N142: 2 | O142: 1 | P142: 1 | Q142: 2 | R142: 1 | S142: 1 | T142: 2 | U142: 1 | V142: 1 | W142: 0 | X142: 0
A143: 5.1.6 | B143: Residuals - Polypropylene/PVC | C143: =total_res_MOVs -> 0 | D143: units | E143: =IF(C143=0,"NA",res_valve_size) -> NA | G143: =IF(C143=0,"NA",IF(curve=1,res_valve_size,VLOOKUP(res_valve_size,pp_mov_cost_cl,2))) -> NA | I143: =IF(C143=0,"NA",IF(curve=1,pp_mov_eq_res,VLOOKUP(res_valve_size,pp_mov_cost_cl,3))) -> NA | J143: -- | K143: =IF(C143=0,"NA",VLOOKUP(res_valve_size,pp_mov_cost_cl,IF(ss_cat="large",4,5))) -> NA | M143: =$B$128 & " - " & $B$129&" "&" - "&B143 -> Valves and Fittings - Motor/Air Operated - Residuals - Polypropylene/PVC | N143: 1 | O143: 2 | P143: 3 | Q143: 1 | R143: 2 | S143: 3 | T143: 1 | U143: 2 | V143: 3 | W143: 0 | X143: 0
A144: 5.1.6 | B144: Residuals - Stainless Steel | C144: =total_res_MOVs -> 0 | D144: units | E144: =IF(C144=0,"NA",res_valve_size) -> NA | G144: =IF(C144=0,"NA",IF(curve=1,res_valve_size,VLOOKUP(res_valve_size,ss_mov_cost_cl,2))) -> NA | I144: =IF(C144=0,"NA",IF(curve=1,ss_mov_eq_res,VLOOKUP(res_valve_size,ss_mov_cost_cl,3))) -> NA | J144: -- | K144: =IF(C144=0,"NA",VLOOKUP(res_valve_size,ss_mov_cost_cl,IF(ss_cat="large",4,5))) -> NA | M144: Valves and Fittings - Motor/Air Operated - Residuals - Stainless Steel | N144: 3 | O144: 3 | P144: 1 | Q144: 3 | R144: 3 | S144: 1 | T144: 3 | U144: 3 | V144: 1 | W144: 0 | X144: 0
A145: 5.1.6 | B145: Residuals - Cast Iron | C145: =total_res_MOVs -> 0 | D145: units | E145: =IF(C145=0,"NA",res_valve_size) -> NA | G145: =IF(C145=0,"NA",IF(curve=1,res_valve_size,VLOOKUP(res_valve_size,ci_mov_cost_cl,2))) -> NA | I145: =IF(C145=0,"NA",IF(curve=1,ci_mov_eq_res,VLOOKUP(res_valve_size,ci_mov_cost_cl,3))) -> NA | J145: -- | K145: =IF(C145=0,"NA",VLOOKUP(res_valve_size,ci_mov_cost_cl,IF(ss_cat="large",4,5))) -> NA | M145: Valves and Fittings - Motor/Air Operated - Residuals - Cast Iron | N145: 2 | O145: 1 | P145: 2 | Q145: 2 | R145: 1 | S145: 2 | T145: 2 | U145: 1 | V145: 2 | W145: 0 | X145: 0
A146: 5.1.7 | B146: Ferric Chloride - Polypropylene/PVC | C146: =tot_coag_MOVs -> 0 | D146: units | E146: =IF(C146=0,"NA",coag_valve_size) -> NA | F146: =IF(C146=0,"","in. diam") ->  | G146: =IF(C146=0,"NA",IF(curve=1,coag_valve_size,VLOOKUP(coag_valve_size,pp_mov_cost_cl,2))) -> NA | H146: =IF(C146=0,"","in. diam") ->  | I146: =IF(C146=0,"NA",IF(curve=1,pp_mov_eq_coag,VLOOKUP(coag_valve_size,pp_mov_cost_cl,3))) -> NA | J146: =IF(OR(C146=0,I146="contact vendor"),"--",C146*I146) -> -- | K146: =IF(C146=0,"NA",VLOOKUP(coag_valve_size,pp_mov_cost_cl,IF(ss_cat="large",4,5))) -> NA | M146: =$B$128 & " - " & $B$129&" "&" - "&B146 -> Valves and Fittings - Motor/Air Operated - Ferric Chloride - Polypropylene/PVC | N146: 1 | O146: 1 | P146: 1 | Q146: 1 | R146: 1 | S146: 1 | T146: 1 | U146: 1 | V146: 1 | W146: =IF(ISERROR(K146*L146),0,IF(K146<1,0,L146)) -> 0 | X146: =IF(W146,J146/K146,0) -> 0
A147: 5.1.8 | B147: Polymer - Polypropylene/PVC | C147: =tot_polymer_MOVs -> 0 | D147: units | E147: =IF(C147=0,"NA",polymer_valve_size) -> NA | G147: =IF(C147=0,"NA",IF(curve=1,polymer_valve_size,VLOOKUP(polymer_valve_size,pp_mov_cost_cl,2))) -> NA | I147: =IF(C147=0,"NA",IF(curve=1,pp_mov_eq_polymer,VLOOKUP(polymer_valve_size,pp_mov_cost_cl,3))) -> NA | J147: =IF(OR(C147=0,I147="contact vendor"),"--",C147*I147) -> -- | K147: =IF(C147=0,"NA",VLOOKUP(polymer_valve_size,pp_mov_cost_cl,IF(ss_cat="large",4,5))) -> NA | M147: Valves and Fittings - Motor/Air Operated - Polymer - Polypropylene/PVC | N147: 1 | O147: 2 | P147: 3 | Q147: 1 | R147: 2 | S147: 3 | T147: 1 | U147: 2 | V147: 3 | W147: 0 | X147: 0
A148: 5.1.8 | B148: Polymer - Stainless Steel | C148: =tot_polymer_MOVs -> 0 | D148: units | E148: =IF(C148=0,"NA",polymer_valve_size) -> NA | G148: =IF(C148=0,"NA",IF(curve=1,polymer_valve_size,VLOOKUP(polymer_valve_size,ss_mov_cost_cl,2))) -> NA | I148: =IF(C148=0,"NA",IF(curve=1,ss_mov_eq_polymer,VLOOKUP(polymer_valve_size,ss_mov_cost_cl,3))) -> NA | J148: =IF(OR(C148=0,I148="contact vendor"),"--",C148*I148) -> -- | K148: =IF(C148=0,"NA",VLOOKUP(polymer_valve_size,ss_mov_cost_cl,IF(ss_cat="large",4,5))) -> NA | M148: Valves and Fittings - Motor/Air Operated - Polymer - Stainless Steel | N148: 3 | O148: 3 | P148: 1 | Q148: 3 | R148: 3 | S148: 1 | T148: 3 | U148: 3 | V148: 1 | W148: 0 | X148: 0
A149: 5.1.8 | B149: Polymer - Cast Iron | C149: =tot_polymer_MOVs -> 0 | D149: units | E149: =IF(C149=0,"NA",polymer_valve_size) -> NA | G149: =IF(C149=0,"NA",IF(curve=1,polymer_valve_size,VLOOKUP(polymer_valve_size,ci_mov_cost_cl,2))) -> NA | I149: =IF(C149=0,"NA",IF(curve=1,ci_mov_eq_polymer,VLOOKUP(polymer_valve_size,ci_mov_cost_cl,3))) -> NA | J149: =IF(OR(C149=0,I149="contact vendor"),"--",C149*I149) -> -- | K149: =IF(C149=0,"NA",VLOOKUP(polymer_valve_size,ci_mov_cost_cl,IF(ss_cat="large",4,5))) -> NA | M149: Valves and Fittings - Motor/Air Operated - Polymer - Cast Iron | N149: 2 | O149: 1 | P149: 2 | Q149: 2 | R149: 1 | S149: 2 | T149: 2 | U149: 1 | V149: 2 | W149: 0 | X149: 0
A150: 5.2 | B150: Manual | W150: 0 | X150: 0
A151: 5.2.1 | B151: Influent and treated water - Polypropylene/PVC | C151: =tot_man_valves -> 2 | D151: units | E151: =in_valve_size -> 1.5 | F151: in. diam | G151: =IF(curve=1,in_valve_size,VLOOKUP(in_valve_size,pp_man_cost_cl,2)) -> 1.5 | H151: in. diam | I151: =IF(curve=1,pp_man_eq,VLOOKUP(in_valve_size,pp_man_cost_cl,3)) -> 207.8491463 | J151: =IF(C151=0,"--",IF(I151="contact vendor","--",C151*I151)) -> 415.6982927 | K151: =VLOOKUP(in_valve_size,pp_man_cost_cl,IF(ss_cat="large",4,5)) -> 20 | L151: 1 | M151: =$B$128 & " - " & $B$150&" "&" - "&B151 -> Valves and Fittings - Manual - Influent and treated water - Polypropylene/PVC | N151: 1 | O151: 2 | P151: 3 | Q151: 1 | R151: 2 | S151: 3 | T151: 1 | U151: 2 | V151: 3 | W151: 1 | X151: 20.78491463
A152: 5.2.1 | B152: Influent and treated water - Stainless Steel | C152: =tot_man_valves -> 2 | D152: units | E152: =in_valve_size -> 1.5 | F152: in. diam | G152: =IF(curve=1,in_valve_size,VLOOKUP(in_valve_size,ss_man_cost_cl,2)) -> 1.5 | H152: in. diam | I152: =IF(curve=1,ss_man_eq,VLOOKUP(in_valve_size,ss_man_cost_cl,3)) -> 395.8808732 | J152: 791.7617464 | K152: =VLOOKUP(in_valve_size,ss_man_cost_cl,IF(ss_cat="large",4,5)) -> 20 | L152: 0 | M152: Valves and Fittings - Manual - Influent and treated water - Stainless Steel | N152: 3 | O152: 3 | P152: 1 | Q152: 3 | R152: 3 | S152: 1 | T152: 3 | U152: 3 | V152: 1 | W152: 0 | X152: 0
A153: 5.2.1 | B153: Influent and treated water - Cast Iron | C153: =tot_man_valves -> 2 | D153: units | E153: =in_valve_size -> 1.5 | F153: in. diam | G153: =IF(curve=1,in_valve_size,VLOOKUP(in_valve_size,ci_bfv_cost_cl,2)) -> 1.5 | H153: in. diam | I153: =IF(curve=1,ci_bfv_eq,VLOOKUP(in_valve_size,ci_bfv_cost_cl,3)) -> 338.9786776 | J153: 677.9573551 | K153: =VLOOKUP(in_valve_size,ci_bfv_cost_cl,IF(ss_cat="large",4,5)) -> 20 | L153: 0 | M153: Valves and Fittings - Manual - Influent and treated water - Cast Iron | N153: 2 | O153: 1 | P153: 2 | Q153: 2 | R153: 1 | S153: 2 | T153: 2 | U153: 1 | V153: 2 | W153: 0 | X153: 0
A154: 5.2.2 | B154: Process - Polypropylene/PVC | C154: =tot_proc_man -> 2 | D154: units | E154: =tank_valve_size -> 1.5 | F154: in. diam | G154: =IF(curve=1,tank_valve_size,VLOOKUP(tank_valve_size,pp_man_cost_cl,2)) -> 1.5 | H154: in. diam | I154: =IF(curve=1,pp_man_eq_proc,VLOOKUP(tank_valve_size,pp_man_cost_cl,3)) -> 207.8491463 | J154: 415.6982927 | K154: =VLOOKUP(tank_valve_size,pp_man_cost_cl,IF(ss_cat="large",4,5)) -> 20 | L154: 1 | M154: Valves and Fittings - Manual - Process - Polypropylene/PVC | N154: 1 | O154: 2 | P154: 3 | Q154: 1 | R154: 2 | S154: 3 | T154: 1 | U154: 2 | V154: 3 | W154: 1 | X154: 20.78491463
A155: 5.2.2 | B155: Process - Stainless Steel | C155: =tot_proc_man -> 2 | D155: units | E155: =tank_valve_size -> 1.5 | F155: in. diam | G155: =IF(curve=1,tank_valve_size,VLOOKUP(tank_valve_size,ss_man_cost_cl,2)) -> 1.5 | H155: in. diam | I155: =IF(curve=1,ss_man_eq_proc,VLOOKUP(tank_valve_size,ss_man_cost_cl,3)) -> 395.8808732 | J155: 791.7617464 | K155: =VLOOKUP(tank_valve_size,ss_man_cost_cl,IF(ss_cat="large",4,5)) -> 20 | L155: 0 | M155: Valves and Fittings - Manual - Process - Stainless Steel | N155: 3 | O155: 3 | P155: 1 | Q155: 3 | R155: 3 | S155: 1 | T155: 3 | U155: 3 | V155: 1 | W155: 0 | X155: 0
A156: 5.2.2 | B156: Process - Cast Iron | C156: =tot_proc_man -> 2 | D156: units | E156: =tank_valve_size -> 1.5 | F156: in. diam | G156: =IF(curve=1,tank_valve_size,VLOOKUP(tank_valve_size,ci_bfv_cost_cl,2)) -> 1.5 | H156: in. diam | I156: =IF(curve=1,ci_bfv_eq_proc,VLOOKUP(tank_valve_size,ci_bfv_cost_cl,3)) -> 338.9786776 | J156: 677.9573551 | K156: =VLOOKUP(tank_valve_size,ci_bfv_cost_cl,IF(ss_cat="large",4,5)) -> 20 | L156: 0 | M156: Valves and Fittings - Manual - Process - Cast Iron | N156: 2 | O156: 1 | P156: 2 | Q156: 2 | R156: 1 | S156: 2 | T156: 2 | U156: 1 | V156: 2 | W156: 0 | X156: 0
A157: 5.2.3 | B157: Backwash - Polypropylene/PVC | C157: =tot_back_man -> 0 | D157: units | E157: =back_valve_size -> 1 | F157: in. diam | G157: =IF(curve=1,back_valve_size,VLOOKUP(back_valve_size,pp_man_cost_cl,2)) -> 1 | H157: in. diam | I157: =IF(curve=1,pp_man_eq_back,VLOOKUP(back_valve_size,pp_man_cost_cl,3)) -> 170.1730024 | J157: -- | K157: =VLOOKUP(back_valve_size,pp_man_cost_cl,IF(ss_cat="large",4,5)) -> 20 | M157: =$B$128 & " - " & $B$150&" "&" - "&B157 -> Valves and Fittings - Manual - Backwash - Polypropylene/PVC | N157: 1 | O157: 2 | P157: 3 | Q157: 1 | R157: 2 | S157: 3 | T157: 1 | U157: 2 | V157: 3 | W157: 0 | X157: 0
A158: 5.2.3 | B158: Backwash - Stainless Steel | C158: =tot_back_man -> 0 | D158: units | E158: =back_valve_size -> 1 | F158: in. diam | G158: =IF(curve=1,back_valve_size,VLOOKUP(back_valve_size,ss_man_cost_cl,2)) -> 1 | H158: in. diam | I158: =IF(curve=1,ss_man_eq_back,VLOOKUP(back_valve_size,ss_man_cost_cl,3)) -> 271.9831646 | J158: -- | K158: =VLOOKUP(back_valve_size,ss_man_cost_cl,IF(ss_cat="large",4,5)) -> 20 | M158: =$B$128 & " - " & $B$150&" "&" - "&B158 -> Valves and Fittings - Manual - Backwash - Stainless Steel | N158: 3 | O158: 3 | P158: 1 | Q158: 3 | R158: 3 | S158: 1 | T158: 3 | U158: 3 | V158: 1 | W158: 0 | X158: 0
A159: 5.2.3 | B159: Backwash - Cast Iron | C159: =tot_back_man -> 0 | D159: units | E159: =back_valve_size -> 1 | F159: in. diam | G159: =IF(curve=1,back_valve_size,VLOOKUP(back_valve_size,ci_bfv_cost_cl,2)) -> 1 | H159: in. diam | I159: =IF(curve=1,ci_man_eq_back,VLOOKUP(back_valve_size,ci_bfv_cost_cl,3)) -> 221.7765322 | J159: -- | K159: =VLOOKUP(back_valve_size,ci_bfv_cost_cl,IF(ss_cat="large",4,5)) -> 20 | M159: Valves and Fittings - Manual - Backwash - Cast Iron | N159: 2 | O159: 1 | P159: 2 | Q159: 2 | R159: 1 | S159: 2 | T159: 2 | U159: 1 | V159: 2 | W159: 0 | X159: 0
A160: 5.2.4 | B160: Brine - Polypropylene/PVC | C160: =tot_brine_man -> 0 | D160: units | E160: =brine_valve_size -> 0.75 | F160: in. diam | G160: =IF(curve=1,brine_valve_size,VLOOKUP(brine_valve_size,pp_man_cost_cl,2)) -> 0.75 | H160: in. diam | I160: =IF(curve=1,pp_man_eq_brine,VLOOKUP(brine_valve_size,pp_man_cost_cl,3)) -> 153.6070224 | J160: -- | K160: =VLOOKUP(brine_valve_size,pp_man_cost_cl,IF(ss_cat="large",4,5)) -> 20 | M160: Valves and Fittings - Manual - Brine - Polypropylene/PVC | N160: 1 | O160: 2 | P160: 2 | Q160: 1 | R160: 2 | S160: 2 | T160: 1 | U160: 2 | V160: 2 | W160: 0 | X160: 0
A161: 5.2.4 | B161: Brine - Stainless Steel | C161: =tot_brine_man -> 0 | D161: units | E161: =brine_valve_size -> 0.75 | F161: in. diam | G161: =IF(curve=1,brine_valve_size,VLOOKUP(brine_valve_size,ss_man_cost_cl,2)) -> 0.75 | H161: in. diam | I161: =IF(curve=1,ss_man_eq_brine,VLOOKUP(brine_valve_size,ss_man_cost_cl,3)) -> 208.3894461 | J161: -- | K161: =VLOOKUP(brine_valve_size,ss_man_cost_cl,IF(ss_cat="large",4,5)) -> 20 | M161: Valves and Fittings - Manual - Brine - Stainless Steel | N161: 2 | O161: 1 | P161: 1 | Q161: 2 | R161: 1 | S161: 1 | T161: 2 | U161: 1 | V161: 1 | W161: 0 | X161: 0
A162: 5.2.5 | B162: Bypass - Polypropylene/PVC | C162: =IF(bp_pct>0,tot_bp_man,0) -> 0 | D162: units | E162: =IF(bp_pct=0,"NA",bypass_valve_size) -> NA | F162: =IF(bp_pct=0," ","in. diam") ->  | G162: =IF(bp_pct=0,"NA",(IF(curve=1,bypass_valve_size,VLOOKUP(bypass_valve_size,pp_man_cost_cl,2)))) -> NA | H162: =IF(bp_pct=0," ","in. diam") ->  | I162: =IF(bp_pct=0,"NA",(IF(curve=1,pp_man_eq_bp,VLOOKUP(bypass_valve_size,pp_man_cost_cl,3)))) -> NA | J162: -- | K162: =IF(bp_pct=0,"NA",VLOOKUP(bypass_valve_size,pp_man_cost_cl,IF(ss_cat="large",4,5))) -> NA | M162: Valves and Fittings - Manual - Bypass - Polypropylene/PVC | N162: 1 | O162: 2 | P162: 3 | Q162: 1 | R162: 2 | S162: 3 | T162: 1 | U162: 2 | V162: 3 | W162: 0 | X162: 0
A163: 5.2.5 | B163: Bypass - Stainless Steel | C163: =IF(bp_pct>0,tot_bp_man,0) -> 0 | D163: units | E163: =IF(bp_pct=0,"NA",bypass_valve_size) -> NA | F163: =IF(bp_pct=0," ","in. diam") ->  | G163: =IF(bp_pct=0,"NA",(IF(curve=1,bypass_valve_size,VLOOKUP(bypass_valve_size,ss_man_cost_cl,2)))) -> NA | H163: =IF(bp_pct=0," ","in. diam") ->  | I163: =IF(bp_pct=0,"NA",(IF(curve=1,ss_man_eq_bp,VLOOKUP(bypass_valve_size,ss_man_cost_cl,3)))) -> NA | J163: -- | K163: =IF(bp_pct=0,"NA",VLOOKUP(bypass_valve_size,ss_man_cost_cl,IF(ss_cat="large",4,5))) -> NA | M163: Valves and Fittings - Manual - Bypass - Stainless Steel | N163: 3 | O163: 3 | P163: 1 | Q163: 3 | R163: 3 | S163: 1 | T163: 3 | U163: 3 | V163: 1 | W163: 0 | X163: 0
A164: 5.2.5 | B164: Bypass - Cast Iron | C164: =IF(bp_pct>0,tot_bp_man,0) -> 0 | D164: units | E164: =IF(bp_pct=0,"NA",bypass_valve_size) -> NA | F164: =IF(bp_pct=0," ","in. diam") ->  | G164: =IF(bp_pct=0,"NA",(IF(curve=1,bypass_valve_size,VLOOKUP(bypass_valve_size,ci_bfv_cost_cl,2)))) -> NA | H164: =IF(bp_pct=0," ","in. diam") ->  | I164: =IF(bp_pct=0,"NA",(IF(curve=1,ci_man_eq_bp,VLOOKUP(bypass_valve_size,ci_bfv_cost_cl,3)))) -> NA | J164: -- | K164: =IF(bp_pct=0,"NA",VLOOKUP(bypass_valve_size,ci_bfv_cost_cl,IF(ss_cat="large",4,5))) -> NA | M164: Valves and Fittings - Manual - Bypass - Cast Iron | N164: 2 | O164: 1 | P164: 2 | Q164: 2 | R164: 1 | S164: 2 | T164: 2 | U164: 1 | V164: 2 | W164: 0 | X164: 0
A165: 5.2.6 | B165: Caustic - Polypropylene/PVC | C165: =tot_caustic_man -> 0 | D165: units | E165: =IF(tot_caustic_man=0,"NA",caustic_valve_size) -> NA | F165: =IF(C165=0,"","in. diam") ->  | G165: =IF(tot_caustic_man=0,"NA",(IF(curve=1,caustic_valve_size,VLOOKUP(caustic_valve_size,ci_mov_cost_cl,2)))) -> NA | H165: =IF(C165=0,"","in. diam") ->  | I165: =IF(tot_caustic_man=0,"NA",(IF(curve=1,pp_man_eq_caustic,VLOOKUP(caustic_valve_size,pp_man_cost_cl,3)))) -> NA | J165: -- | K165: =IF(tot_caustic_man=0,"NA",VLOOKUP(caustic_valve_size,pp_man_cost_cl,IF(ss_cat="large",4,5))) -> NA | M165: Valves and Fittings - Manual - Caustic - Polypropylene/PVC | N165: 1 | O165: 2 | P165: 2 | Q165: 1 | R165: 2 | S165: 2 | T165: 1 | U165: 2 | V165: 2 | W165: 0 | X165: 0
A166: 5.2.6 | B166: Caustic - Stainless Steel | C166: =tot_caustic_man -> 0 | D166: units | E166: =IF(tot_caustic_man=0,"NA",caustic_valve_size) -> NA | G166: =IF(tot_caustic_man=0,"NA",(IF(curve=1,caustic_valve_size,VLOOKUP(caustic_valve_size,ci_mov_cost_cl,2)))) -> NA | I166: =IF(tot_caustic_man=0,"NA",(IF(curve=1,ss_man_eq_caustic,VLOOKUP(caustic_valve_size,ss_man_cost_cl,3)))) -> NA | J166: -- | K166: =IF(tot_caustic_man=0,"NA",VLOOKUP(caustic_valve_size,ss_man_cost_cl,IF(ss_cat="large",4,5))) -> NA | M166: Valves and Fittings - Manual - Caustic - Stainless Steel | N166: 2 | O166: 1 | P166: 1 | Q166: 2 | R166: 1 | S166: 1 | T166: 2 | U166: 1 | V166: 1 | W166: 0 | X166: 0
A167: 5.2.7 | B167: Residuals - Polypropylene/PVC | C167: =total_res_man -> 0 | D167: units | E167: =IF(C167=0,"NA",res_valve_size) -> NA | G167: =IF(C167=0,"NA",IF(curve=1,res_valve_size,VLOOKUP(res_valve_size,pp_man_cost_cl,2))) -> NA | I167: =IF(C167=0,"NA",IF(curve=1,pp_man_eq_res,VLOOKUP(res_valve_size,pp_man_cost_cl,3))) -> NA | J167: -- | K167: =IF(C167=0,"NA",VLOOKUP(res_valve_size,pp_man_cost_cl,IF(ss_cat="large",4,5))) -> NA | M167: Valves and Fittings - Manual - Residuals - Polypropylene/PVC | N167: 1 | O167: 2 | P167: 3 | Q167: 1 | R167: 2 | S167: 3 | T167: 1 | U167: 2 | V167: 3 | W167: 0 | X167: 0
A168: 5.2.7 | B168: Residuals - Stainless Steel | C168: =total_res_man -> 0 | D168: units | E168: =IF(C168=0,"NA",res_valve_size) -> NA | G168: =IF(C168=0,"NA",IF(curve=1,res_valve_size,VLOOKUP(res_valve_size,ss_man_cost_cl,2))) -> NA | I168: =IF(C168=0,"NA",IF(curve=1,ss_man_eq_res,VLOOKUP(res_valve_size,ss_man_cost_cl,3))) -> NA | J168: -- | K168: =IF(C168=0,"NA",VLOOKUP(res_valve_size,ss_man_cost_cl,IF(ss_cat="large",4,5))) -> NA | M168: Valves and Fittings - Manual - Residuals - Stainless Steel | N168: 3 | O168: 3 | P168: 1 | Q168: 3 | R168: 3 | S168: 1 | T168: 3 | U168: 3 | V168: 1 | W168: 0 | X168: 0
A169: 5.2.7 | B169: Residuals - Cast Iron | C169: =total_res_man -> 0 | D169: units | E169: =IF(C169=0,"NA",res_valve_size) -> NA | G169: =IF(C169=0,"NA",IF(curve=1,res_valve_size,VLOOKUP(res_valve_size,ci_bfv_cost_cl,2))) -> NA | I169: =IF(C169=0,"NA",IF(curve=1,ci_man_eq_res,VLOOKUP(res_valve_size,ci_bfv_cost_cl,3))) -> NA | J169: -- | K169: =IF(C169=0,"NA",VLOOKUP(res_valve_size,ci_bfv_cost_cl,IF(ss_cat="large",4,5))) -> NA | M169: Valves and Fittings - Manual - Residuals - Cast Iron | N169: 2 | O169: 1 | P169: 2 | Q169: 2 | R169: 1 | S169: 2 | T169: 2 | U169: 1 | V169: 2 | W169: 0 | X169: 0
A170: 5.2.8 | B170: Ferric Chloride - Polypropylene/PVC | C170: =tot_coag_man -> 0 | D170: units | E170: =IF(C170=0,"NA",coag_valve_size) -> NA | F170: =IF(C170=0,"","in. diam") ->  | G170: =IF(C170=0,"NA",IF(curve=1,coag_valve_size,VLOOKUP(coag_valve_size,pp_man_cost_cl,2))) -> NA | H170: =IF(C170=0,"","in. diam") ->  | I170: =IF(C170=0,"NA",IF(curve=1,pp_man_eq_coag,VLOOKUP(coag_valve_size,pp_man_cost_cl,3))) -> NA | J170: =IF(OR(C170=0,I170="contact vendor"),"--",C170*I170) -> -- | K170: =IF(C170=0,"NA",VLOOKUP(coag_valve_size,pp_man_cost_cl,IF(ss_cat="large",4,5))) -> NA | M170: =$B$128 & " - " & $B$150&" "&" - "&B170 -> Valves and Fittings - Manual - Ferric Chloride - Polypropylene/PVC | N170: 1 | O170: 1 | P170: 1 | Q170: 1 | R170: 1 | S170: 1 | T170: 1 | U170: 1 | V170: 1 | W170: =IF(ISERROR(K170*L170),0,IF(K170<1,0,L170)) -> 0 | X170: =IF(W170,J170/K170,0) -> 0
A171: 5.2.9 | B171: Polymer - Polypropylene/PVC | C171: =tot_polymer_man -> 0 | D171: units | E171: =IF(C171=0,"NA",polymer_valve_size) -> NA | G171: =IF(C171=0,"NA",IF(curve=1,polymer_valve_size,VLOOKUP(polymer_valve_size,pp_man_cost_cl,2))) -> NA | I171: =IF(C171=0,"NA",IF(curve=1,pp_man_eq_polymer,VLOOKUP(polymer_valve_size,pp_man_cost_cl,3))) -> NA | J171: =IF(OR(C171=0,I171="contact vendor"),"--",C171*I171) -> -- | K171: =IF(C171=0,"NA",VLOOKUP(polymer_valve_size,pp_man_cost_cl,IF(ss_cat="large",4,5))) -> NA | M171: Valves and Fittings - Manual - Polymer - Polypropylene/PVC | N171: 1 | O171: 2 | P171: 3 | Q171: 1 | R171: 2 | S171: 3 | T171: 1 | U171: 2 | V171: 3 | W171: 0 | X171: 0
A172: 5.2.9 | B172: Polymer - Stainless Steel | C172: =tot_polymer_man -> 0 | D172: units | E172: =IF(C172=0,"NA",polymer_valve_size) -> NA | G172: =IF(C172=0,"NA",IF(curve=1,polymer_valve_size,VLOOKUP(polymer_valve_size,ss_man_cost_cl,2))) -> NA | I172: =IF(C172=0,"NA",IF(curve=1,ss_man_eq_polymer,VLOOKUP(polymer_valve_size,ss_man_cost_cl,3))) -> NA | J172: =IF(OR(C172=0,I172="contact vendor"),"--",C172*I172) -> -- | K172: =IF(C172=0,"NA",VLOOKUP(polymer_valve_size,ss_man_cost_cl,IF(ss_cat="large",4,5))) -> NA | M172: Valves and Fittings - Manual - Polymer - Stainless Steel | N172: 3 | O172: 3 | P172: 1 | Q172: 3 | R172: 3 | S172: 1 | T172: 3 | U172: 3 | V172: 1 | W172: 0 | X172: 0
A173: 5.2.9 | B173: Polymer - Cast Iron | C173: =tot_polymer_man -> 0 | D173: units | E173: =IF(C173=0,"NA",polymer_valve_size) -> NA | G173: =IF(C173=0,"NA",IF(curve=1,polymer_valve_size,VLOOKUP(polymer_valve_size,ci_bfv_cost_cl,2))) -> NA | I173: =IF(C173=0,"NA",IF(curve=1,ci_man_eq_polymer,VLOOKUP(polymer_valve_size,ci_bfv_cost_cl,3))) -> NA | J173: =IF(OR(C173=0,I173="contact vendor"),"--",C173*I173) -> -- | K173: =IF(C173=0,"NA",VLOOKUP(polymer_valve_size,ci_bfv_cost_cl,IF(ss_cat="large",4,5))) -> NA | M173: Valves and Fittings - Manual - Polymer - Cast Iron | N173: 2 | O173: 1 | P173: 2 | Q173: 2 | R173: 1 | S173: 2 | T173: 2 | U173: 1 | V173: 2 | W173: 0 | X173: 0
A174: 5.3 | B174: Check Valves | W174: 0 | X174: 0
A175: 5.3.1 | B175: Backwash - Polypropylene/PVC | C175: =tot_back_chv -> 0 | D175: units | E175: =IF(C175=0,"NA",back_valve_size) -> NA | F175: =IF(C175=0,"","in. diam") ->  | G175: =IF(C175=0,"NA",(IF(curve=1,back_valve_size,VLOOKUP(back_valve_size,pp_chv_cost_cl,2)))) -> NA | H175: =IF(C175=0,"","in. diam") ->  | I175: =IF(C175=0,"NA",(IF(curve=1,pp_chv_eq,VLOOKUP(back_valve_size,pp_chv_cost_cl,3)))) -> NA | J175: =IF(C175=0,"--",IF(I175="contact vendor","--",C175*I175)) -> -- | K175: =IF(C175=0,"NA",(VLOOKUP(back_valve_size,pp_chv_cost_cl,IF(ss_cat="large",4,5)))) -> NA | M175: =$B$128 & " - " & $B$174&" "&" - "&B175 -> Valves and Fittings - Check Valves - Backwash - Polypropylene/PVC | N175: 1 | O175: 2 | P175: 3 | Q175: 1 | R175: 2 | S175: 3 | T175: 1 | U175: 2 | V175: 3 | W175: 0 | X175: 0
A176: 5.3.1 | B176: Backwash - Stainless Steel | C176: =tot_back_chv -> 0 | D176: units | E176: =IF(C176=0,"NA",back_valve_size) -> NA | G176: =IF(C176=0,"NA",(IF(curve=1,back_valve_size,VLOOKUP(back_valve_size,ss_chv_cost_cl,2)))) -> NA | I176: =IF(C176=0,"NA",(IF(curve=1,ss_chv_eq,VLOOKUP(back_valve_size,ss_chv_cost_cl,3)))) -> NA | J176: -- | K176: =IF(C176=0,"NA",(VLOOKUP(back_valve_size,ss_chv_cost_cl,IF(ss_cat="large",4,5)))) -> NA | M176: Valves and Fittings - Check Valves - Backwash - Stainless Steel | N176: 3 | O176: 3 | P176: 1 | Q176: 3 | R176: 3 | S176: 1 | T176: 3 | U176: 3 | V176: 1 | W176: =IF(ISERROR(K176*L176),0,IF(K176<1,0,L176)) -> 0 | X176: =IF(W176,J176/K176,0) -> 0
A177: 5.3.1 | B177: Backwash - Cast Iron | C177: =tot_back_chv -> 0 | D177: units | E177: =IF(C177=0,"NA",back_valve_size) -> NA | G177: =IF(C177=0,"NA",(IF(curve=1,back_valve_size,VLOOKUP(back_valve_size,ci_chv_cost_cl,2)))) -> NA | I177: =IF(C177=0,"NA",(IF(curve=1,ci_chv_eq,VLOOKUP(back_valve_size,ci_chv_cost_cl,3)))) -> NA | J177: -- | K177: =IF(C177=0,"NA",(VLOOKUP(back_valve_size,ci_chv_cost_cl,IF(ss_cat="large",4,5)))) -> NA | M177: Valves and Fittings - Check Valves - Backwash - Cast Iron | N177: 2 | O177: 1 | P177: 2 | Q177: 2 | R177: 1 | S177: 2 | T177: 2 | U177: 1 | V177: 2 | W177: 0 | X177: 0
A178: 5.3.2 | B178: Residuals - Polypropylene/PVC | C178: =tot_res_chv -> 1 | D178: units | E178: =IF(C178=0,"NA",res_valve_size) -> 1 | F178: in. diam | G178: =IF(C178=0,"NA",IF(curve=1,res_valve_size,VLOOKUP(res_valve_size,pp_chv_cost_cl,2))) -> 1 | H178: in. diam | I178: =IF(C178=0,0,IF(curve=1,pp_chv_eq_res,VLOOKUP(res_valve_size,pp_chv_cost_cl,3))) -> 121.0064592 | J178: 121.0064592 | K178: =IF(C178=0,"NA",VLOOKUP(res_valve_size,pp_chv_cost_cl,IF(ss_cat="large",4,5))) -> 20 | L178: 1 | M178: Valves and Fittings - Check Valves - Residuals - Polypropylene/PVC | N178: 1 | O178: 2 | P178: 3 | Q178: 1 | R178: 2 | S178: 3 | T178: 1 | U178: 2 | V178: 3 | W178: 1 | X178: 6.050322962
A179: 5.3.2 | B179: Residuals - Stainless Steel | C179: =tot_res_chv -> 1 | D179: units | E179: =IF(C179=0,"NA",res_valve_size) -> 1 | F179: in. diam | G179: =IF(C179=0,"NA",IF(curve=1,res_valve_size,VLOOKUP(res_valve_size,ss_chv_cost_cl,2))) -> 1 | H179: in. diam | I179: =IF(C179=0,0,IF(curve=1,ss_chv_eq_res,VLOOKUP(res_valve_size,ss_chv_cost_cl,3))) -> 344.6037771 | J179: 344.6037771 | K179: =IF(C179=0,"NA",VLOOKUP(res_valve_size,ss_chv_cost_cl,IF(ss_cat="large",4,5))) -> 20 | L179: 0 | M179: Valves and Fittings - Check Valves - Residuals - Stainless Steel | N179: 3 | O179: 3 | P179: 1 | Q179: 3 | R179: 3 | S179: 1 | T179: 3 | U179: 3 | V179: 1 | W179: 0 | X179: 0
A180: 5.3.2 | B180: Residuals - Cast Iron | C180: =tot_res_chv -> 1 | D180: units | E180: =IF(C180=0,"NA",res_valve_size) -> 1 | F180: in. diam | G180: =IF(C180=0,"NA",IF(curve=1,res_valve_size,VLOOKUP(res_valve_size,ci_chv_cost_cl,2))) -> 1 | H180: in. diam | I180: =IF(C180=0,0,IF(curve=1,ci_chv_eq_res,VLOOKUP(res_valve_size,ci_chv_cost_cl,3))) -> contact vendor | J180: -- | K180: =IF(C180=0,"NA",VLOOKUP(res_valve_size,ci_chv_cost_cl,IF(ss_cat="large",4,5))) -> 20 | L180: 0 | M180: Valves and Fittings - Check Valves - Residuals - Cast Iron | N180: 2 | O180: 1 | P180: 2 | Q180: 2 | R180: 1 | S180: 2 | T180: 2 | U180: 1 | V180: 2 | W180: 0 | X180: 0
A181: 5.3.3 | B181: Influent and treated water - Polypropylene/PVC | C181: =tot_in_chv -> 2 | D181: units | E181: =in_valve_size -> 1.5 | F181: in. diam | G181: =IF(curve=1,in_valve_size,VLOOKUP(in_valve_size,pp_chv_cost_cl,2)) -> 1.5 | H181: in. diam | I181: =IF(curve=1,pp_chv_eq_in,VLOOKUP(in_valve_size,pp_chv_cost_cl,3)) -> 177.8274995 | J181: 355.6549989 | K181: =VLOOKUP(in_valve_size,pp_chv_cost_cl,IF(ss_cat="large",4,5)) -> 20 | L181: 1 | M181: Valves and Fittings - Check Valves - Influent and treated water - Polypropylene/PVC | N181: 1 | O181: 2 | P181: 3 | Q181: 1 | R181: 2 | S181: 3 | T181: 1 | U181: 2 | V181: 3 | W181: 1 | X181: 17.78274995
A182: 5.3.3 | B182: Influent and treated water - Stainless Steel | C182: =tot_in_chv -> 2 | D182: units | E182: =in_valve_size -> 1.5 | F182: in. diam | G182: =IF(curve=1,in_valve_size,VLOOKUP(in_valve_size,ss_chv_cost_cl,2)) -> 1.5 | H182: in. diam | I182: =IF(curve=1,ss_chv_eq_in,VLOOKUP(in_valve_size,ss_chv_cost_cl,3)) -> 492.6734899 | J182: 985.3469798 | K182: =VLOOKUP(in_valve_size,ss_chv_cost_cl,IF(ss_cat="large",4,5)) -> 20 | L182: 0 | M182: Valves and Fittings - Check Valves - Influent and treated water - Stainless Steel | N182: 3 | O182: 3 | P182: 1 | Q182: 3 | R182: 3 | S182: 1 | T182: 3 | U182: 3 | V182: 1 | W182: 0 | X182: 0
A183: 5.3.3 | B183: Influent and treated water - Cast Iron | C183: =tot_in_chv -> 2 | D183: units | E183: =in_valve_size -> 1.5 | F183: in. diam | G183: =IF(curve=1,in_valve_size,VLOOKUP(in_valve_size,ci_chv_cost_cl,2)) -> 1.5 | H183: in. diam | I183: =IF(curve=1,ci_chv_eq_in,VLOOKUP(in_valve_size,ci_chv_cost_cl,3)) -> contact vendor | J183: -- | K183: =VLOOKUP(in_valve_size,ci_chv_cost_cl,IF(ss_cat="large",4,5)) -> 20 | L183: 0 | M183: Valves and Fittings - Check Valves - Influent and treated water - Cast Iron | N183: 2 | O183: 1 | P183: 2 | Q183: 2 | R183: 1 | S183: 2 | T183: 2 | U183: 1 | V183: 2 | W183: 0 | X183: 0
A184: 5.3.4 | B184: Bypass - Polypropylene/PVC | C184: =IF(bp_pct>0,IF(design_flow<1,tot_bp_chv_small,tot_bp_chv),0) -> 0 | D184: units | E184: =IF(bp_pct=0,"NA",bypass_valve_size) -> NA | F184: =IF(bp_pct=0," ","in. diam") ->  | G184: =IF(bp_pct=0,"NA",(IF(curve=1,bypass_valve_size,VLOOKUP(bypass_valve_size,pp_chv_cost_cl,2)))) -> NA | H184: =IF(bp_pct=0," ","in. diam") ->  | I184: =IF(bp_pct=0,"NA",(IF(curve=1,pp_chv_eq_bp,VLOOKUP(bypass_valve_size,pp_chv_cost_cl,3)))) -> NA | J184: -- | K184: =IF(bp_pct=0,"NA",VLOOKUP(bypass_valve_size,pp_chv_cost_cl,IF(ss_cat="large",4,5))) -> NA | M184: Valves and Fittings - Check Valves - Bypass - Polypropylene/PVC | N184: 1 | O184: 2 | P184: 3 | Q184: 1 | R184: 2 | S184: 3 | T184: 1 | U184: 2 | V184: 3 | W184: 0 | X184: 0
A185: 5.3.4 | B185: Bypass - Stainless Steel | C185: =IF(bp_pct>0,IF(design_flow<1,tot_bp_chv_small,tot_bp_chv),0) -> 0 | D185: units | E185: =IF(bp_pct=0,"NA",bypass_valve_size) -> NA | F185: =IF(bp_pct=0," ","in. diam") ->  | G185: =IF(bp_pct=0,"NA",(IF(curve=1,bypass_valve_size,VLOOKUP(bypass_valve_size,ss_chv_cost_cl,2)))) -> NA | H185: =IF(bp_pct=0," ","in. diam") ->  | I185: =IF(bp_pct=0,"NA",(IF(curve=1,ss_chv_eq_bp,VLOOKUP(bypass_valve_size,ss_chv_cost_cl,3)))) -> NA | J185: -- | K185: =IF(bp_pct=0,"NA",VLOOKUP(bypass_valve_size,ss_chv_cost_cl,IF(ss_cat="large",4,5))) -> NA | M185: Valves and Fittings - Check Valves - Bypass - Stainless Steel | N185: 3 | O185: 3 | P185: 1 | Q185: 3 | R185: 3 | S185: 1 | T185: 3 | U185: 3 | V185: 1 | W185: 0 | X185: 0
A186: 5.3.4 | B186: Bypass - Cast Iron | C186: =IF(bp_pct>0,IF(design_flow<1,tot_bp_chv_small,tot_bp_chv),0) -> 0 | D186: units | E186: =IF(bp_pct=0,"NA",bypass_valve_size) -> NA | F186: =IF(bp_pct=0," ","in. diam") ->  | G186: =IF(bp_pct=0,"NA",(IF(curve=1,bypass_valve_size,VLOOKUP(bypass_valve_size,ci_chv_cost_cl,2)))) -> NA | H186: =IF(bp_pct=0," ","in. diam") ->  | I186: =IF(bp_pct=0,"NA",(IF(curve=1,ci_chv_eq_bp,VLOOKUP(bypass_valve_size,ci_chv_cost_cl,3)))) -> NA | J186: -- | K186: =IF(bp_pct=0,"NA",VLOOKUP(bypass_valve_size,ci_chv_cost_cl,IF(ss_cat="large",4,5))) -> NA | M186: Valves and Fittings - Check Valves - Bypass - Cast Iron | N186: 2 | O186: 1 | P186: 2 | Q186: 2 | R186: 1 | S186: 2 | T186: 2 | U186: 1 | V186: 2 | W186: 0 | X186: 0
A187: 5.3.5 | B187: Caustic - Polypropylene/PVC | C187: =tot_caustic_chv -> 0 | D187: units | E187: =IF(C187=0,"NA",caustic_valve_size) -> NA | F187: =IF(C187=0,"","in. diam") ->  | G187: =IF(C187=0,"NA",(IF(curve=1,caustic_valve_size,VLOOKUP(caustic_valve_size,pp_chv_cost_cl,2)))) -> NA | H187: =IF(C187=0,"","in. diam") ->  | I187: =IF(C187=0,"NA",(IF(curve=1,pp_chv_eq_caustic,VLOOKUP(caustic_valve_size,pp_chv_cost_cl,3)))) -> NA | J187: -- | K187: =IF(C187=0,"NA",(VLOOKUP(caustic_valve_size,pp_chv_cost_cl,IF(ss_cat="large",4,5)))) -> NA | M187: Valves and Fittings - Check Valves - Caustic - Polypropylene/PVC | N187: 1 | O187: 2 | P187: 2 | Q187: 1 | R187: 2 | S187: 2 | T187: 1 | U187: 2 | V187: 2 | W187: 0 | X187: 0
A188: 5.3.5 | B188: Caustic - Stainless Steel | C188: =tot_caustic_chv -> 0 | D188: units | E188: =IF(C188=0,"NA",caustic_valve_size) -> NA | G188: =IF(C188=0,"NA",(IF(curve=1,caustic_valve_size,VLOOKUP(caustic_valve_size,ss_chv_cost_cl,2)))) -> NA | I188: =IF(C188=0,"NA",(IF(curve=1,ss_chv_eq_caustic,VLOOKUP(caustic_valve_size,ss_chv_cost_cl,3)))) -> NA | J188: -- | K188: =IF(C188=0,"NA",(VLOOKUP(caustic_valve_size,ss_chv_cost_cl,IF(ss_cat="large",4,5)))) -> NA | M188: Valves and Fittings - Check Valves - Caustic - Stainless Steel | N188: 2 | O188: 1 | P188: 1 | Q188: 2 | R188: 1 | S188: 1 | T188: 2 | U188: 1 | V188: 1 | W188: 0 | X188: 0
A189: 5.3.6 | B189: Ferric Chloride - Polypropylene/PVC | C189: =tot_coag_chv -> 0 | D189: units | E189: =IF(C189=0,"NA",coag_valve_size) -> NA | G189: =IF(C189=0,"NA",IF(curve=1,coag_valve_size,VLOOKUP(coag_valve_size,pp_chv_cost_cl,2))) -> NA | I189: =IF(C189=0,"NA",IF(curve=1,pp_chv_eq_coag,VLOOKUP(coag_valve_size,pp_chv_cost_cl,3))) -> NA | J189: =IF(OR(C189=0,I189="contact vendor"),"--",C189*I189) -> -- | K189: =IF(C189=0,"NA",VLOOKUP(coag_valve_size,pp_chv_cost_cl,IF(ss_cat="large",4,5))) -> NA | M189: =$B$128 & " - " & $B$174&" "&" - "&B189 -> Valves and Fittings - Check Valves - Ferric Chloride - Polypropylene/PVC | N189: 1 | O189: 1 | P189: 1 | Q189: 1 | R189: 1 | S189: 1 | T189: 1 | U189: 1 | V189: 1 | W189: =IF(ISERROR(K189*L189),0,IF(K189<1,0,L189)) -> 0 | X189: =IF(W189,J189/K189,0) -> 0
A190: 5.3.7 | B190: Polymer - Polypropylene/PVC | C190: =tot_polymer_chv -> 0 | D190: units | E190: =IF(C190=0,"NA",polymer_valve_size) -> NA | G190: =IF(C190=0,"NA",IF(curve=1,polymer_valve_size,VLOOKUP(polymer_valve_size,pp_chv_cost_cl,2))) -> NA | I190: =IF(C190=0,"NA",IF(curve=1,pp_chv_eq_polymer,VLOOKUP(polymer_valve_size,pp_chv_cost_cl,3))) -> NA | J190: =IF(OR(C190=0,I190="contact vendor"),"--",C190*I190) -> -- | K190: =IF(C190=0,"NA",VLOOKUP(polymer_valve_size,pp_chv_cost_cl,IF(ss_cat="large",4,5))) -> NA | M190: Valves and Fittings - Check Valves - Polymer - Polypropylene/PVC | N190: 1 | O190: 2 | P190: 3 | Q190: 1 | R190: 2 | S190: 3 | T190: 1 | U190: 2 | V190: 3 | W190: 0 | X190: 0
A191: 5.3.7 | B191: Polymer - Stainless Steel | C191: =tot_polymer_chv -> 0 | D191: units | E191: =IF(C191=0,"NA",polymer_valve_size) -> NA | G191: =IF(C191=0,"NA",IF(curve=1,polymer_valve_size,VLOOKUP(polymer_valve_size,ss_chv_cost_cl,2))) -> NA | I191: =IF(C191=0,"NA",IF(curve=1,ss_chv_eq_polymer,VLOOKUP(polymer_valve_size,ss_chv_cost_cl,3))) -> NA | J191: =IF(OR(C191=0,I191="contact vendor"),"--",C191*I191) -> -- | K191: =IF(C191=0,"NA",VLOOKUP(polymer_valve_size,ss_chv_cost_cl,IF(ss_cat="large",4,5))) -> NA | M191: Valves and Fittings - Check Valves - Polymer - Stainless Steel | N191: 3 | O191: 3 | P191: 1 | Q191: 3 | R191: 3 | S191: 1 | T191: 3 | U191: 3 | V191: 1 | W191: 0 | X191: 0
A192: 5.3.7 | B192: Polymer - Cast Iron | C192: =tot_polymer_chv -> 0 | D192: units | E192: =IF(C192=0,"NA",polymer_valve_size) -> NA | G192: =IF(C192=0,"NA",IF(curve=1,polymer_valve_size,VLOOKUP(polymer_valve_size,ci_chv_cost_cl,2))) -> NA | I192: =IF(C192=0,"NA",IF(curve=1,ci_chv_eq_polymer,VLOOKUP(polymer_valve_size,ci_chv_cost_cl,3))) -> NA | J192: =IF(OR(C192=0,I192="contact vendor"),"--",C192*I192) -> -- | K192: =IF(C192=0,"NA",VLOOKUP(polymer_valve_size,ci_chv_cost_cl,IF(ss_cat="large",4,5))) -> NA | M192: Valves and Fittings - Check Valves - Polymer - Cast Iron | N192: 2 | O192: 1 | P192: 2 | Q192: 2 | R192: 1 | S192: 2 | T192: 2 | U192: 1 | V192: 2 | W192: 0 | X192: 0
A193: 6 | B193: Pumps | W193: 0 | X193: 0
A194: 6.1 | B194: Booster | C194: =total_booster_pumps -> 0 | D194: units | E194: =IF(C194=0,"NA",pump_rating) -> NA | F194: =IF(C194=0,"","gpm") ->  | G194: =IF(C194=0,"NA",IF(curve=1,pump_rating,VLOOKUP(pump_rating,pump_cost_cl,2))) -> NA | H194: =IF(C194=0,"","gpm") ->  | I194: =IF(C194=0,"NA",IF(curve=1,pump_eq,VLOOKUP(pump_rating,pump_cost_cl,3))) -> NA | J194: =IF( C194=0,"--",(IF(I194="contact vendor","--",C194*I194))) -> -- | K194: =IF(C194=0,"NA",VLOOKUP(pump_rating,pump_cost_cl,IF(ss_cat="large",4,5))) -> NA | M194: =$B$193&" - "&B194 -> Pumps - Booster | N194: 1 | O194: 1 | P194: 1 | Q194: 1 | R194: 1 | S194: 1 | T194: 1 | U194: 1 | V194: 1 | W194: 0 | X194: 0
A195: 6.2 | B195: Backwash | C195: =backwash_pumps -> 0 | D195: units | E195: =IF( C195=0,"NA",back_pump_rating) -> NA | F195: =IF(C195=0," ","gpm") ->  | G195: =IF( C195=0,"NA",IF(curve=1,back_pump_rating,VLOOKUP(back_pump_rating,back_pump_cost_cl,2))) -> NA | H195: =IF( C195=0," ","gpm") ->  | I195: =IF(C195=0,"NA",IF(curve=1,pump_eq_back,VLOOKUP(back_pump_rating,back_pump_cost_cl,3))) -> NA | J195: =IF( C195=0,"--",(IF(I195="contact vendor","--",C195*I195))) -> -- | K195: =IF(C195=0,"NA",VLOOKUP(back_pump_rating,back_pump_cost_cl,IF(ss_cat="large",4,5))) -> NA | M195: =$B$193&" - "&B195 -> Pumps - Backwash | N195: 1 | O195: 1 | P195: 1 | Q195: 1 | R195: 1 | S195: 1 | T195: 1 | U195: 1 | V195: 1 | W195: 0 | X195: 0
A196: 6.3 | B196: Residuals | C196: =res_pumps -> 0 | D196: units | E196: =IF(res_pumps=0,"NA",res_pump_rating) -> NA | F196: =IF(C196=0,"","gpm") ->  | G196: =IF(res_pumps=0,"NA",IF(curve=1,res_pump_rating,VLOOKUP(res_pump_rating,pump_cost_cl,2))) -> NA | H196: =IF(C196=0,"","gpm") ->  | I196: =IF(res_pumps=0,"NA",IF(curve=1,res_pump_eq,VLOOKUP(res_pump_rating,pump_cost_cl,3))) -> NA | J196: =IF(C196=0,"--",IF(I196="contact vendor","--",C196*I196)) -> -- | K196: =IF(res_pumps=0,"NA",VLOOKUP(res_pump_rating,pump_cost_cl,IF(ss_cat="large",4,5))) -> NA | M196: =$B$193&" - "&B196 -> Pumps - Residuals | N196: 1 | O196: 1 | P196: 1 | Q196: 1 | R196: 1 | S196: 1 | T196: 1 | U196: 1 | V196: 1 | W196: 0 | X196: 0
A197: 6.4 | B197: Caustic Metering for pH Adjustment | W197: 0 | X197: 0
A198: 6.4.1 | B198: PVC - Motor Driven | C198: =pH_pumps -> 0 | D198: units | E198: =IF(pH_pumps=0,"NA",pH_pump_rating) -> NA | F198: =IF(pH_pumps=0," ","gph") ->  | G198: =IF(C198=0,"NA",IF(curve=1,pH_pump_rating,VLOOKUP(pH_pump_rating,pvc_mmpump_cost_cl,2))) -> NA | H198: =IF(pH_pumps=0," ","gph") ->  | I198: =IF(C198=0,"NA",IF(curve=1,pvc_mmpump_eq_caustic,VLOOKUP(pH_pump_rating,pvc_mmpump_cost_cl,3))) -> NA | J198: =IF(C198=0,"--",IF(I198="contact vendor","--",C198*I198)) -> -- | K198: =IF(C198=0,"NA",VLOOKUP(E198,pvc_mmpump_cost_cl,IF(ss_cat="large",4,5))) -> NA | M198: =$B$193&" - "&$B$197&" - "&B198 -> Pumps - Caustic Metering for pH Adjustment - PVC - Motor Driven | W198: 0 | X198: 0
A199: 6.4.1 | B199: Stainless Steel - Motor Driven | C199: =pH_pumps -> 0 | D199: units | E199: =IF(pH_pumps=0,"NA",pH_pump_rating) -> NA | F199: =IF(pH_pumps=0," ","gph") ->  | G199: =IF(C199=0,"NA",IF(curve=1,pH_pump_rating,VLOOKUP(pH_pump_rating,ss_mmpump_cost_cl,2))) -> NA | H199: =IF(pH_pumps=0," ","gph") ->  | I199: =IF(C199=0,"NA",IF(curve=1,ss_mmpump_eq_caustic,VLOOKUP(pH_pump_rating,ss_mmpump_cost_cl,3))) -> NA | J199: =IF(C199=0,"--",IF(I199="contact vendor","--",C199*I199)) -> -- | K199: =IF(C199=0,"NA",VLOOKUP(E199,ss_mmpump_cost_cl,IF(ss_cat="large",4,5))) -> NA | M199: =$B$193&" - "&$B$197&" - "&B199 -> Pumps - Caustic Metering for pH Adjustment - Stainless Steel - Motor Driven | N199: 3 | O199: 3 | P199: 2 | Q199: 4 | R199: 4 | S199: 1 | T199: 4 | U199: 4 | V199: 1 | W199: 0 | X199: 0
A200: 6.4.1 | B200: PVC - Electric | C200: =pH_pumps -> 0 | D200: units | E200: =IF(pH_pumps=0,"NA",pH_pump_rating) -> NA | F200: =IF(pH_pumps=0," ","gph") ->  | G200: =IF(C200=0,"NA",IF(curve=1,pH_pump_rating,VLOOKUP(pH_pump_rating,pvc_empump_cost_cl,2))) -> NA | H200: =IF(pH_pumps=0," ","gph") ->  | I200: =IF(C200=0,"NA",IF(curve=1,pvc_empump_eq_caustic,VLOOKUP(pH_pump_rating,pvc_empump_cost_cl,3))) -> NA | J200: =IF(C200=0,"--",IF(I200="contact vendor","--",C200*I200)) -> -- | K200: =IF(C200=0,"NA",VLOOKUP(E200,pvc_empump_cost_cl,IF(ss_cat="large",4,5))) -> NA | M200: =$B$193&" - "&$B$197&" - "&B200 -> Pumps - Caustic Metering for pH Adjustment - PVC - Electric | N200: 4 | O200: 4 | P200: 1 | Q200: 3 | R200: 3 | S200: 2 | T200: 3 | U200: 3 | V200: 2 | W200: 0 | X200: 0
A201: 6.4.1 | B201: Stainless Steel - Electric | C201: =pH_pumps -> 0 | D201: units | E201: =IF(pH_pumps=0,"NA",pH_pump_rating) -> NA | F201: =IF(pH_pumps=0," ","gph") ->  | G201: =IF(C201=0,"NA",IF(curve=1,pH_pump_rating,VLOOKUP(pH_pump_rating,ss_empump_cost_cl,2))) -> NA | H201: =IF(pH_pumps=0," ","gph") ->  | I201: =IF(C201=0,"NA",IF(curve=1,ss_empump_eq_caustic,VLOOKUP(pH_pump_rating,ss_empump_cost_cl,3))) -> NA | J201: =IF(C201=0,"--",IF(I201="contact vendor","--",C201*I201)) -> -- | K201: =IF(C201=0,"NA",VLOOKUP(E201,ss_empump_cost_cl,IF(ss_cat="large",4,5))) -> NA | M201: =$B$193&" - "&$B$197&" - "&B201 -> Pumps - Caustic Metering for pH Adjustment - Stainless Steel - Electric | N201: 1 | O201: 2 | P201: 4 | Q201: 1 | R201: 2 | S201: 4 | T201: 1 | U201: 2 | V201: 4 | W201: 0 | X201: 0
... 261 more rows

Sheet Freundlich Reference
A1: Reference Data and Sources for Freundlich Isotherm Constants
A2: Data shown are for nitrate removal only; comparable data are not available for arsenic
A4: Data source | B4: Reported Kf (mg/g) | C4: Reported n (dimensionless) | D4: Resin selectivity | E4: Resin used
A5: Song et al., 2012 | B5: 31.01 | C5: 3.22 | D5: Nitrate-selective | E5: NDP-2 (polystyrenic macroporous)
A6: Song et al., 2012 | B6: 21.87 | C6: 3.04 | D6: Conventional | E6: Purolite A300 (polystyrenic gel-type)
A7: Song et al., 2012 | B7: 24.91 | C7: 2.89 | D7: Conventional | E7: D201 (polystyrenic macroporous)
A8: Song et al., 2013 | B8: 8.98 | C8: 2.77 | D8: Nitrate-selective | E8: Purolite A520E (polystyrenic macroporous)
A9: Song et al., 2013 | B9: 7.55 | C9: 2.6 | D9: Conventional | E9: Purolite A300 (polystyrenic gel-type)
A10: Song et al., 2013 | B10: 8.71 | C10: 2.63 | D10: Conventional | E10: D201 (polystyrenic macroporous)
A11: Samatya et al., 2006 | B11: 14.76 | C11: 2.24 | D11: Nitrate-selective | E11: Purolite A520E (polystyrenic macroporous)
A12: Dron and Dodi, 2011 | B12: 19 | C12: =1/0.426 -> 2.34741784 | D12: Conventional | E12: Amberlite IRN9766 (polystyrenic macroporous)

Sheet Critical Design Assumptions
A1: Default Critical Design Assumptions
A2: Users may change any of the cells in the Value column; cells in gold are most important and may vary based on contaminant treated and site-specific conditions
A4: Assumption | B4: Range Name | C4: Value | D4: Units | E4: Guidance
A5: Cost estimating method | B5: curve | C5: 1 | D5: <-- enter 1 to use cost equations, leave blank to use lookup tables for component costs | E5: Keeping this assumption with a value of 1 is strongly recommended; the cost equations method is more appropriate for national cost estimating and will be more accurate for nearly all user-specified designs
A7: Vessel Design
A8: Number of redundant vessels for small systems with only one vessel | B8: NRD_small_1 | C8: 1 | D8: units | E8: If a design includes only one operating vessel, there should be at least one additional vessel
A9: Number of redundant vessels for small systems with multiple vessels | B9: NRD_small | C9: 0 | D9: units | E9: Small systems can operate at reduced capacity while one vessel is down for backwash, if there are multiple vessels
A10: Add a redundant unit per x parallel lines | B10: redund_freq | C10: 4 | D10: number of parallel lines/redundant unit
A11: Bypass percentage | B11: bp_pct | C11: 0 | E11: Typically, bypass flow ranges between 0% and 50% of inflow. Enter zero to remove bypass piping and components. 0% is default consistent with the type of cost curves that EPA will need for its national cost simulation model.
A12: Loading rate minimum | B12: load_min | C12: 4 | D12: gpm/square ft | E12: Based on peer review
A13: Loading rate maximum | B13: load_max | C13: 16 | D13: gpm/square ft | E13: Based on peer review
A14: Maximum vessel height (circular vessels) | B14: max_height | C14: 14 | D14: feet | E14: Systems have used vessels up to 14' diam and height in practice (AWWA Inorganic Contaminants Workshop 2006)
A15: Maximum vessel diameter | B15: max_diam_override | D15: feet | E15: Maximum vessel diameter will be chosen from a table of conventional sizes for commercial vessels, unless entered here. Systems have used vessels up to 14' diam and height in practice (AWWA Inorganic Contaminants Workshop 2006)
A16: Maximum vessel length (longitudinal vessels) | B16: max_length | C16: 53 | D16: feet | E16: Limitation on transportation is 53 feet in length
A17: Free board above media at full expansion | B17: free_board | C17: 0.5 | D17: feet
A18: Underdrain space for horizontal vessels | B18: horiz_underdrain | C18: 1.5 | D18: feet | E18: 1.5 feet is a conservative value for a 10' tank. Bob Dvorin, 5/16/05.
A19: Vessel thickness of wall | B19: Vessel_thickness | C19: 0 | D19: feet | E19: Set to zero because vendor designs and quotes are usually expressed in inside diameter. Increase if user desires to input outside diameter.
A20: Ratio of length to diameter for horizontal vessels | B20: length_diam_ratio | C20: 2.5 | E20: Used only for autosize procedure
A21: Resin expansion during backwash | B21: bed_expansion | C21: 0.5 | E21: Boodoo peer review comments
A22: Resin density | B22: media_density | C22: 43 | D22: lbs/ft3 | E22: Generally varies between 41 to 46 lbs/ft3 with an average of 43 /bs/ft3 (Based on peer review)
A23: Minimum bed depth for autosize | B23: min_bed_depth | C23: 2.5 | D23: feet | E23: Guidance: Typically bypass flow ranges between 10 % and 50 % of inflow. Enter zero to remove bypass piping and components. 0% is default consistent with the type of cost curves that EPA will need for its national cost simulation model
A24: Maximum bed depth for autosize | B24: max_bed_depth | C24: 6 | D24: feet
A25: Target Bed Depth (Designs < 1MGD) | B25: target_bed_depth_under | C25: 3.2 | D25: feet | E25: Used only for autosize procedure
A26: Target Bed Depth (Vertical Designs > 1 MGD) | B26: target_bed_depth_over | C26: 4.6 | D26: feet | E26: Used only for autosize procedure
A27: Target Bed Depth (Horizontal Designs) | B27: target_bed_depth_horiz | C27: 4.3 | D27: feet | E27: Used only for autosize procedure
A28: Volume Tolerance, vertical vessels <1 mgd | B28: vol_tol_vert_small | C28: 0.5 | E28: Used to check size compatibility of specified volume with required volume
A29: Volume Tolerance, vertical vessels >1 mgd | B29: vol_tol_vert_med | C29: 0.4
A30: Volume Tolerance, horizontal vessels | B30: vol_tol_horiz | C30: 0.4
A32: Pumping
A33: Safety factor for pumps | B33: pump_safety_factor | C33: 0.25
A34: Redundant booster pumps | B34: NRD_pumps | C34: 0 | D34: pumps | E34: Multiple pump approach eliminates need for redundant pumps.
A35: Redundant backwash pumps | B35: NRD_back_pumps | C35: 1 | D35: pump
A36: Redundant pumps for pH adjustment | B36: NRD_pH_pumps | C36: 1 | D36: pump
A37: Number of redundant chemical metering pumps | B37: NRD_cm_pump | C37: 1 | D37: pumps
A38: Minimum chemical feed pump size | B38: min_chem_flow | C38: 0.13 | D38: gph | E38: Metering pumps will be designed to meet this minimum
A39: Minimum average flow as percentage of design | B39: min_avg_flow | C39: 0.1 | E39: The minimum ratio of average flow to design flow. If the ratio falls below this value, it will trigger a warning on the INPUT sheet. If this value is zero, no minimum is enforced.
A41: Backwash and Regeneration
A42: Backwash loading rate | B42: h2oflush_backwash_rate | C42: 3 | D42: gpm/square ft | E42: 1-5 gpm/square ft
A43: Backwash time | B43: backwash_time | C43: 12 | D43: minutes | E43: 10 to 15 minutes. 12 minutes gives 1 BV of water at 2 gpm/square ft (Lowry Peer Review comments)
A44: Backwash frequency outside of regeneration/initial rinse | B44: add_backwash_freq | D44: days | E44: Leave blank to assume backwash occurs only at regneration, enter a value to incorporate additional, out-of-cycle backwashes
A45: Salt regenerant dose level | B45: salt_dose | C45: 8 | D45: lb/ft3 | E45: 8 lbs/cubic foot is more than adequate to remove divalent anions (Boodo Peer Review comments)
A46: Regenerant loading rate | B46: regen_rate | C46: 0.8 | D46: gpm/cubic ft | E46: Minimum brining rate suggested by resin manufacturers to avoid channelling is 0.25 gpm/ft3 of resin, suggest 0.5 to 0.8 (Boodoo Peer Review Comments)
A47: Regenerant reuse | B47: regen_reuse | C47: 0 | D47: times | E47: With brine storage/mixing tanks, regenerant may be reused up to 25 times. Cannot reuse regenerant with salt saturator as the delivery method -- additional tanks would be required.
A48: Slow rinse volume | B48: s_rinse_bv | C48: 2 | D48: volumes
A49: Fast final rinse volume | B49: f_rinse_bv | C49: 5 | D49: volumes | E49: 5 to 7 or 3 to 7 bed volumes (Boodoo Peer Review comments). 1 bed volume (Lowry Peer Review comments).
A50: Fast rinse loading rate | B50: f_rinse_rate | C50: 3 | D50: gpm/square ft | E50: Equal to backwash loading rate (Lowry Peer Review comments)
A51: Resin life | B51: resin_life | C51: 7 | D51: years | E51: Although regenerated, resin eventually will reach the end of its useful economic life
A52: Saturated brine concentration | B52: brine_conc_sat | C52: 3.1 | D52: lb/gal
A53: Regenerant brine concentration | B53: brine_conc | C53: 0.5 | D53: lb/gal | E53: Designers typically choose a brine concentration that is less than 10%, usually as low as 6% to allow for adequate contact time with the resin during the brining step (Boodoo Peer Review comments)
A54: Salt density | B54: salt_density | C54: 72 | D54: lbs/ft3 | E54: For calculating storage footprint
A55: Chemical storage height | B55: storage_height | C55: 10 | D55: ft
A56: Days of chemical storage | B56: cstore_days | C56: 30 | D56: days | E56: Applies to salt storage and caustic for pH adjustment
A57: Include mixers for chemical tanks | B57: include_cmix | C57: 0 | D57: <--- enter 1 for yes, 0 for no
A58: Chemical tank mixer horsepower | B58: cmix_hp_per | C58: 0.25 | D58: hp per 1,000 gal
A59: Minimum chemical tank mixer horsepower | B59: min_cmix_hp | C59: =1/3 -> 0.3333333333 | D59: hp
A60: Mixer size for brine tanks (if used) | B60: mixer_size | C60: 1 | D60: hp
A61: Annual resin loss | B61: resin_loss_annual | C61: 0.045 | D61: percent/year | E61: Assume 4 to 5%
A63: pH Adjustment
A64: Treated water pH | B64: pHo | C64: 7 | D64: SU | E64: Removal of carbonates can lower pH and result in red water problems in older homes with galvanized steel pipes
A65: Desired treated water pH | B65: pHf | C65: 8.2 | D65: SU
A66: Influent water alkalinity | B66: alk_i | C66: 25 | D66: mg/L as CaCO3
A67: Influent water total dissolved solids | B67: TDS_I | C67: 200 | D67: mg/L
A68: Influent water temperature | B68: t_I | C68: 10 | D68: degrees centigrade
A69: Sodium hydroxide weight percent as delivered | B69: NaOH_pct | C69: 0.5 | E69: Price data are available for 50% and 25% solutions only
A70: Include a separate day tank if daily volume is x or greater | B70: day_tank_needed | C70: 5 | D70: gal
A71: Include secondary containment | B71: include_sec_cont | C71: 1 | D71: <--- enter 1 for yes, 0 for no
A72: Volume required as a percentage of the largest tank | B72: sec_cont_pct_of_largest | C72: 1.1
A73: Volume required as a percentage of total storage | B73: sec_cont_pct_of_total | C73: 0.1
A74: Additional freeboard | B74: sec_cont_freeboard | C74: 6 | D74: inches | E74: Additional freeboard is typically required to contain precipitation when storage is outside; we also include freeboard indoors to ensure a minimum reasonable curb height
A75: Maximum curb thickness | B75: sec_cont_max_thick | C75: 1 | D75: foot | E75: Calculations assume thickness equal to height, up to this maximum
A76: Chemical resistant coating coverage | B76: sec_cont_coating_cvg | C76: 125 | D76: square feet/gallon
A78: Pipe Length Multipliers
A79: Influent and treated water pipe length multiplier | B79: in_out_pipe_mult | C79: 2 | D79: times facility length
A80: Process pipe length multiplier | B80: proc_pipe_mult | C80: 2 | D80: times facility length
A81: Bypass pipe length multiplier | B81: bp_pipe_mult | C81: 2.5 | D81: times facility length
A82: Backwash pipe length multiplier | B82: back_pipe_mult | C82: 2.5 | D82: times facility length
A83: Chemical pipe length multiplier | B83: chem_pipe_mult | C83: 1 | D83: times facility length
A85: Valves and Instrumentation
A86: See the Valve Table at the bottom of this page for additional assumptions relating to valves
A87: Number of manual valves on influent and treated water line | B87: tot_man_valves | C87: 2 | D87: valves
A88: Number of manual valves on process line per vessel | B88: proc_man_vessel | C88: 1 | D88: valve/vessel | E88: For filter to waste
A90: Number of check valves on backwash line per backwash pump | B90: back_chv_pump | C90: 1 | D90: valves/pump
A91: Number of check valves on caustic line per metering pump | B91: caustic_chv_pump | C91: 1 | D91: valves/pump | E91: Applies only with pH adjustment
A92: Number of check valves on polymer line per metering pump | B92: polymer_chv_pump | C92: 1 | D92: valves/pump | E92: Applies only with polymer addition to residuals
A93: Number of check valves on ferric chloride line per metering pump | B93: coag_chv_pump | C93: 1 | D93: valves/pump | E93: Applies only with ferric addition to residuals
A94: Number of check valves on influent line | B94: tot_in_chv | C94: 2 | D94: valves | E94: At both influent and treated water in this technology
A95: Number of check valves on bypass line | B95: tot_bp_chv | C95: 1 | D95: valves
A96: Number of check valves on bypass line for small systems | B96: tot_bp_chv_small | C96: 0 | D96: valves
A98: Flow meters for influent and treated water line | B98: tot_fm_in | C98: 1 | D98: units | E98: Flow meter assemblies include pressure gauges
A99: Flow meters for process line per vessel | B99: fm_proc | C99: 0 | D99: units/vessel
A100: Flow meters for backwash line | B100: tot_fm_back | C100: 1 | D100: units | E100: At backwash discharge outlet
A101: Online Nitrate Analyzers (nitrate treatment only) | B101: N_analyzer | C101: 1 | D101: units
A102: Level switch/alarms per vessel | B102: level_switch | C102: 0 | D102: units/vessel
A103: Level switch/alarms per vessel for small systems | B103: level_switch_small | C103: 0 | D103: units/vessel
A104: High/Low alarms per backwash tank | B104: alarm_back | C104: 1 | D104: units/tank
A105: High/Low alarms per brine tank | B105: alarm_brine | C105: 1 | D105: units/tank | E105: Salt saturators come equipped with level alarms, so only added if brine tanks are used.
A106: High/Low alarms per NaOH tank | B106: alarm_caustic | C106: 1 | D106: units/tank
A107: ORP sensors | B107: ORP_sensor | C107: 0 | D107: units
A108: pH meters for systems without corrosion control | B108: pH_nocorr | C108: 0 | D108: units
A109: pH meters for systems with corrosion control | B109: pH_corr | C109: 2 | D109: units
A110: Temperature meters | B110: temp_meters | C110: 1 | D110: units
A111: Temperature meters for small systems | B111: temp_meters_small | C111: 0 | D111: units
A112: Turbidity meters per vessel | B112: turb_tank | C112: 0 | D112: units/vessel
A113: Turbidity meters per vessel for small systems | B113: turb_tank_small | C113: 0 | D113: units/vessel
A114: Additional turbididy meters | B114: add_turb | C114: 1 | D114: units | E114: One at backwash discharge outlet
A115: Additional turbididy meters for small systems | B115: add_turb_small | C115: 0 | D115: units
A116: Conductivity meters per vessel | B116: cond_tank | C116: 0 | D116: units/vessel
A117: Additional conductivity meters | B117: add_cond | C117: 0 | D117: units
A118: Head loss sensors per vessel | B118: head_tank | C118: 0 | D118: units/vessel
A119: Head loss sensors per vessel for small systems | B119: head_tank_small | C119: 0 | D119: units/vessel
A120: Sampling ports per vessel | B120: ports_tank | C120: 3 | D120: units/vessel
A121: Sampling ports for bypass line | B121: ports_bp | C121: 1 | D121: units
A122: Additional sampling ports | B122: add_ports | C122: 3 | D122: units | E122: One for influent line, one for treated water line, one on residual side of backwash line
A123: Number of electrical enclosures | B123: elec_encl | C123: 0 | D123: units | E123: Required only for technologies with significant electric-powered equipment outside a building.
A125: System Controls
A126: See the I/O Port Table at the bottom of this page for additional assumptions relating to system controls
A127: Controllers are used only under full automation
A128: To change the degree of automation, change the number of controllers to zero for the appropriate items.
A129: Drive controllers per booster pump | B129: S_booster_pump | C129: 1
A130: Drive controllers per backwash pump | B130: S_back_pump | C130: 1
A131: Drive controllers per eductor | B131: S_eductor | C131: 0
A132: Drive controllers per mixer | B132: S_mixer | C132: 1
A134: Number of CPUs | B134: plc_cpu | C134: 2 | D134: units | E134: One CPU is needed to run the local and expansion bases and modules (max 8192 I/O); using two to provide redundancy
A135: Ethernet modules | B135: plc_ethernet | C135: 2 | D135: units | E135: One ethernet module is needed; using two to provide redundancy
A136: Operator interfaces | B136: plc_interface | C136: 2 | D136: units | E136: Two to provide redundancy in the event of SCADA node failure
A137: UPSs | B137: ups | C137: 1 | D137: unit | E137: UPS protects the PLC system from undesired outages and surges that can adversely affect the performance of the PLC unit
A138: Computer workstations per x operators | B138: workstation_ratio | C138: 1 | D138: operator/workstation | E138: Minimum will always be one, but larger systems will have multiple workstations to control the system
A139: Number of shifts | B139: shifts_day | C139: 3 | D139: shifts/day | E139: Used to determine number of workstations
A140: Printers per x computer workstations | B140: printer_ratio | C140: 4 | D140: workstations/printer | E140: Minimum will always be one, but larger systems will have multiple printers
A142: Structure/Floorplan
A143: Maximum access space per vessel or tank for custom designed systems | B143: max_space_vessels_cust | C143: 6 | D143: feet | E143: This is the MAXIMUM; space between vessels and tanks defaults to vessel or tank diameter, up to this maximum. Maximum provides space for sandblasting and painting for large vessels (5-8 feet per Richard E. Hubel, Peter Keenan, American Water Works Service Company).
A144: Maximum access space per vessel or tank for pre-engineered systems | B144: max_space_vessels_pre | C144: 1 | D144: feet | E144: Pre-engineered packages are skid-mounted with minimal access space
A145: Access space per pump for custom designed systems | B145: space_pumps_cust | C145: 4 | D145: feet | E145: Provide a minimum of 3 ft (1 m) of clear space around each item of equipment (American Water Works Association and American Society of Civil Engineers. Water Treatment Plant Design. Third Edition. New York: McGraw Hill, 1998. Pp. 695).
A146: Access space per pump for pre-engineered packages | B146: space_pumps_pre | C146: 0 | D146: feet | E146: Pumps on skid for pre-engineered packages, no additional access space
A148: Non fire Buffer for buildings | B148: non_fire_buffer | C148: 10 | D148: feet
A149: Fire Buffer for Buildings | B149: fire_buffer | C149: 40 | D149: feet
A150: Top and bottom dished vessel sections height and access space | B150: Top_bottom_Vessel_space | C150: 6 | D150: feet | E150: This is used to determine the building height for purposes of heating and cooling cost.
A151: Office space per employee | B151: space_office | C151: 100 | D151: square ft
A152: Office space per employee | B152: space_office_small | C152: 0 | D152: square ft | E152: Small systems do not require office space
A153: Concrete pad thickness | B153: pad_thick | C153: =6/12 -> 0.5 | D153: feet
A154: Concrete pad thickness for small systems | B154: pad_thick_small | C154: =4/12 -> 0.3333333333 | D154: feet
A155: Clearance space beneath the ceiling | B155: ceiling_clearance | C155: 3 | D155: feet | E155: Minimum space between the tops of storage tanks and the ceiling
A156: Additional building after… | B156: add_2nd_building | C156: 10000 | D156: sf
A158: Residuals Discharge
A159: Add coagulant to holding tank/basin? | B159: coag_res | C159: 0 | D159: <-- 1 for yes, 0 for no | E159: For additional TSS removal, if desired
A160: Type of coagulant added | B160: coag_type | C160: 1 | D160: <-- 1 for polymer, 2 for ferric chloride, 3 for both polymer & ferric chloride
A161: Minimum settling time when coagulant is used | B161: res_coag_settle_time | C161: 90 | D161: minutes | E161: When coagulant is used, holding tanks will be sized so that residuals are present for at least this long. Based on 90-120 minute settling time in sedimentation basins (Water Treatment Plant Design, 4th ed.)
A162: Polymer dosage | B162: polymer_dose | C162: 100 | D162: mg/L
A163: Polymer solution density | B163: polymer_density | C163: 9.6 | D163: lb/gal
A164: Polymer sludge production factor | B164: polymer_spf | C164: 1 | D164: lbs accumulated per pound added
A165: Ferric chloride dosage | B165: coag_dose | C165: 10 | D165: mg/L
A166: Ferric chloride solution density | B166: coag_density | C166: 11.85 | D166: lb/gal
A167: Ferric chloride solution concentration | B167: coag_pct | C167: 0.4
A168: Ferric chloride sludge production factor | B168: coag_spf | C168: 0.99 | D168: lbs accumulated per pound added
A169: Holding tank/basin solids density | B169: ht_solids_density | C169: 25 | D169: lb/ft3
A170: Holding tank/basin suspended solids removal efficiency without coagulant | B170: htank_TSSrem | C170: 0 | E170: Assumes low influent solids result in no settling without coagulant addition
A171: Holding tank/basin suspended solids removal efficiency with coagulant | B171: coag_TSSrem | C171: 0.5
A172: Clean holding tank/basin when solids accumulation =x% of capacity | B172: htank_clean_pct | C172: 0.1
A173: Holding tank/basin capacity factor | B173: res_cap_factor | C173: 2 | E173: Holding tanks are designed with a capacity of one generation event, multiplied by this safety factor. This multiplier accounts for less than perfect staggering of generation events and provides for solids accumulation (i.e., it provides excess capacity).
A174: Default number of residuals basins | B174: hbasins_default | C174: 1 | E174: This assumption applies if concrete basins are used. Additonal basins are used, however, if needed to achieve minimum holding time. If tanks are used, number calculated on design sheet.
A175: Holding basin depth to volume ratio | B175: holding_ratio | C175: =3/5 -> 0.6 | E175: This assumption used only if concrete basins are used.
A176: Holding basin freeboard | B176: holding_freeboard | C176: 3 | D176: feet | E176: This assumption used only if concrete basins are used.
A177: Overexcavation for storage basins | B177: overexcavate | C177: 4 | D177: ft | E177: 2 feet each side in each dimension. This assumption used only if concrete basins are used.
A178: Concrete thickness for holding basins | B178: conc_thick | C178: 1 | D178: ft | E178: This assumption used only if concrete basins are used.
A179: Holding tank/basin mixer horsepower (if coagulant is used) | B179: hmix_hp_per | C179: 0.25 | D179: hp per 1,000 gallons
A180: Minimum holding tank mixer horsepower | B180: min_hmix_hp | C180: =1/3 -> 0.3333333333 | D180: hp
A181: Holding tank/basin solids transfer method | B181: res_transfer_method | C181: 3 | D181: <-- 1 for slurry pumps, 2 for eductors, 3 for manual trabsfer
A182: Time to empty holding tank/basin | B182: transfer_time | C182: 4 | D182: hrs | E182: Target for systems using mechanical transfer. For systems with manual transfer, calcuated based on solids volume.
A183: Minimum residuals pipe diameter | B183: min_res_pipe_size | C183: 1 | D183: in. diam.
A184: Residual solids storage height (for drying pad) | B184: solids_storage_height | C184: 2 | D184: ft
A185: Redundant residuals pumps | B185: NRD_res_pump | C185: 1 | D185: units | E185: Applies only if pumping is included
A186: Residuals pipe length multiplier | B186: res_pipe_mult | C186: 1 | D186: times facility length
A187: Distance to discharge point or evaporation pond | B187: add_res_pipe_length | C187: 40 | D187: ft
A188: Number of check valves on residuals line per residuals pump | B188: res_chv_pump | C188: 1 | D188: valves/pump
A189: Number of check valves on residuals line if no pumping | B189: res_chv_no_pump | C189: 1 | D189: valves
A190: Drive controllers per residuals pump | B190: S_res_pump | C190: 1
A191: Flow meters for residuals line | B191: tot_fm_res | C191: 1 | D191: units
A192: High/Low alarms per holding tank/basin | B192: alarm_res | C192: 1 | D192: units/tank
A193: TSS in system influent | B193: influent_TSS | C193: 2 | D193: ppm | E193: This is influent TSS. Backwash TSS is calculated and will be higher, as TSS removed are concentrated.
A194: TSS in treated water | B194: effluent_TSS | C194: 0.5 | D194: ppm
A195: POTW rate structure | B195: POTW_rate_type | C195: 1 | D195: <-- 1 for national average rate, 2 for a specific rate structure
A196: Apply POTW discharge base charge (i.e., $/month) | B196: POTW_base_fee | C196: 1 | D196: <-- 1 for yes, 2 for no
A197: Apply POTW discharge volume charge (i.e., $/1000 gallons) | B197: POTW_volume_fee | C197: 1 | D197: <-- 1 for yes, 2 for no
A198: Apply POTW discharge TSS charge (i.e., $/lb of TSS over limit below) | B198: POTW_TSS_fee | C198: 1 | D198: <-- 1 for yes, 2 for no
A199: POTW TSS discharge limit (over which fee would be imposed) | B199: POTW_TSS_limit | C199: 250 | D199: ppm | E199: Most common limit for cities with a limit.
A200: Disposal method for non-hazardous secondary solids | B200: solids_method | C200: 1 | D200: <-- 1 for landfill, 2 for land application | E200: Ignored if solids are hazardous or radioactive
A201: Maximum hazardous waste shipment size | B201: max_haz_ship | C201: 18 | D201: tons
A202: Maximum radioactive (non-hazardous) waste shipment size | B202: max_rad_ship | C202: 18 | D202: tons
A203: Maximum radioactive hazardous waste shipment size | B203: max_hazrad_ship | C203: 18 | D203: tons
A204: Maximum liquid hazardous waste shipment size | B204: max_lhaz_ship | C204: 6000 | D204: gal
A205: Miles to non-hazardous solid waste disposal site | B205: non_haz_miles | C205: 10 | D205: miles
A206: Miles to hazardous solid waste disposal site | B206: haz_miles | C206: 200 | D206: miles
A207: Miles to radioactive (non-hazardous) waste disposal site | B207: rad_miles | C207: 700 | D207: miles
A208: Miles to radioactive hazardous waste disposal site | B208: hazrad_miles | C208: 700 | D208: miles
A210: Average annual pan evaporation rate | B210: pan_evap | C210: 180 | D210: cm/year | E210: Reflects an arid climate. If evaporation ponds are used, climate assumptions on O&M assumptions page should also be changed to reflect an arid climate.
A211: Evaporation ratio | B211: evap_ratio | C211: 0.7 | E211: A safety factor to account for conversion of pan to lake evaporation rate and effect of salinity
A212: Average annual precipitation | B212: precip | C212: 70 | D212: cm/year | E212: Reflects an arid climate. If evaporation ponds are used, climate assumptions on O&M assumptions page should also be changed to reflect an arid climate.
A213: Days of winter (i.e., days of storage during periods with no net evaporation) | B213: winter_days | C213: 180 | D213: days | E213: Accounts for wet periods in which residuals are stored without evaporation
A214: Evaporation pond safety factor | B214: ep_safety_factor | C214: 1.1 | E214: Accounts for years of below average evaporation
A215: Maximum evaporation pond cell area | B215: max_ep_cell_area | C215: 5 | D215: acres
... 80 more rows

Sheet O&M Assumptions
A1: Default O&M Assumptions
A2: Users may change any of the cells in the Value column
A4: Assumption | B4: Range Name | C4: Value | D4: Units | E4: Guidance
A5: Materials
A6: Cost for parts & maintenance for pumps | B6: booster_pump_maintenance | C6: 0.01 | D6: of capital cost | E6: For calculating cost of actual maintenance materials; not to be confused with depreciation. Initial proposed estimate of 5% seems high (Richard E. Hubel, Peter Keenan, American Water Works Service Company, Inc)
A8: Labor
A9: Mangerial LOE as a percent of average technical labor | B9: Manager_percent | C9: 0.1 | D9: fraction
A10: Administrative LOE as a percent of average technical labor | B10: Clerical_percent | C10: 0.1 | D10: fraction
A12: Operating LOE assumptions
A13: Minutes per instrument per day | B13: uloe_inst | C13: 5 | D13: min/day | E13: For manual systems only
A14: Recording operating paramenters for automated systems | B14: uloe_inst_auto | C14: 5 | D14: min/day | E14: For semiautomated and automated systems
A15: Minutes per pump per day | B15: uloe_pump | C15: 5 | D15: min/day | E15: For manual and semiautomated systems
A16: Minutes per valve per week | B16: uloe_valve | C16: 5 | D16: min/week | E16: For manual and semiautomated systems
A17: Minutes per 100 sf per day | B17: uloe_fp | C17: 1 | D17: min/100 sf/day
A18: Minutes per regeneration for automated systems | B18: uloe_autoregen | C18: 10 | D18: min/event | E18: Manual and semiautomated systems use actual regeneration time
A19: Hours per resin changeout | B19: uloe_throwaway | C19: =8/(20*27) -> 0.01481481481 | D19: hours/cubic foot | E19: Based on 20 cubic yards per day, applied separately to removal and replacement.
A21: Maintenance LOE assumptions
A22: For instruments (includes calibration) | B22: uloe_inst_maint | C22: 10 | D22: min/month
A23: For pumps | B23: uloe_pump_maint | C23: 30.25 | D23: hours/year | E23: Based on vendor recommended maintenance activities; applied to large, frequently operated pumps only
A24: For valves | B24: uloe_valve_maint | C24: 5 | D24: min/year | E24: Applied to main process valves only
A25: For chemical supply systems | B25: uloe_chem_maint | C25: 120 | D25: min/month
A27: Pump Energy
A28: Pump head for booster pumps | B28: booster_pump_head | C28: 25 | D28: psi | E28: Von Huben, Harry. Operator's Companion, 4th Edition. USABluebook, 2000. Pp. 17 25 psi creates a head of 60 feet
A29: Residuals pump head | B29: res_pump_psi | C29: 25 | D29: psi
A30: Pump efficiency | B30: booster_pump_efficiency | C30: 0.75
A31: Pump head for backwash pumps | B31: backwash_pump_head | C31: 14.7 | D31: psi
A33: Lighting and HVAC
A34: Lighting power per sf, low-quality buildings and sheds | B34: lighting_power_low | C34: 0.3 | D34: W/sf | E34: 0.3, 0.6, and 1.2 W/sf are the assumptions used for building capital costs
A35: Lighting power per sf, mid-quality buildings | B35: lighting_power_mid | C35: 0.6 | D35: W/sf
A36: Lighting power per sf, high-quality buildings | B36: lighting_power_high | C36: 1.2 | D36: W/sf
A38: Ventilation air change rate for contactor | B38: Air_changes_contactor | C38: 3 | D38: air changes/hr
A39: Ventilation air change rate for pump room | B39: Air_changes_pump | C39: 20 | D39: air changes/hr | E39: Could be lower (annual average 3 changes/hr) in a northern climate
A40: Ventilation air change rate for chemical storage | B40: Air_changes_chem_storage | C40: 2 | D40: air changes/hr
A41: Ventilation air change rate for offices | B41: Air_changes_office | C41: 2 | D41: air changes/hr
A42: Pressure drop across the fan | B42: Fan_pressure_drop | C42: 0.25 | D42: lbs/ft2
A43: Number of mechanical ventilation days per year first building (small system) | B43: fan_days_build1_small | C43: 90 | D43: days/year | E43: Number of days per year where natural ventilation is applicable cannot be greater than 365 days
A44: Number of mechanical ventilation days per year 2nd building (small system) | B44: fan_days_build2_small | C44: 90 | D44: days/year | E44: For small systems (<1 MGD)
A45: Number of mechanical ventilation days per year first building (medium system) | B45: fan_days_build1_medium | C45: 120 | D45: days/year | E45: For medium systems (1 - 10 MGD)
A46: Number of mechanical ventilation days per year 2nd building (medium system) | B46: fan_days_build2_medium | C46: 120 | D46: days/year
A47: Number of mechanical ventilation days per year first building (large system) | B47: fan_days_build1_large | C47: 185 | D47: days/year | E47: For large systems (> 10 MGD)
A48: Number of mechanical ventilation days per year 2nd building (large system) | B48: fan_days_build2_large | C48: 185 | D48: days/year
A50: R-value for walls | B50: R_wall | C50: 25 | D50: hr-sf-degF/BTU | E50: See Appendix E. If higher R-value materials are desired, user may also need to adjust the cost of building materials in cl.xls
A51: R-value for ceilings | B51: R_ceiling | C51: 49 | D51: hr-sf-degF/BTU | E51: See Appendix E. If higher R-value materials are desired, user may also need to adjust the cost of building materials in cl.xls
A52: Annual heating degree days | B52: heat_DD | C52: 4260 | D52: degree days | E52: Heating and cooling assumptions should be consistent with one another. Assumed values are for a climate that results in a total energy usage for heating and cooling equal to the national median.
A53: Annual cooling degree days | B53: cool_DD | C53: 1415 | D53: degree days | E53: Heating and cooling assumptions should be consistent with one another. Assumed values are for a climate that results in a total energy usage for heating and cooling equal to the national median.
A54: Heating ventilation/infiltration load | B54: heat_viload | C54: 168679 | D54: BTU/cfm | E54: Heating and cooling assumptions should be consistent with one another. Assumed values are for a climate that results in a total energy usage for heating and cooling equal to the national median.
A55: Cooling ventilation/infiltration load | B55: cool_viload | C55: 51771 | D55: BTU/cfm | E55: Heating and cooling assumptions should be consistent with one another. Assumed values are for a climate that results in a total energy usage for heating and cooling equal to the national median.
A56: Electric resistance heating efficiency | B56: resist_eff | C56: 0.98 | E56: See Appendix E
A57: Heat pump heating coefficient of performance | B57: COP | C57: 3.3 | E57: See Appendix E
A58: Natural gas non-condensing furnace efficiency | B58: gas_non_eff | C58: 0.85 | E58: See Appendix E
A59: Natural gas condensing furnace efficiency | B59: gas_eff | C59: 0.9 | E59: See Appendix E
A60: Standard oil furnace efficiency | B60: diesel_non_eff | C60: 0.82 | E60: See Appendix E
A61: Mid-efficiency oil furnace efficiency | B61: diesel_eff | C61: 0.9 | E61: See Appendix E
A62: Air conditioning EER | B62: EER | C62: 11.8 | D62: BTU/Whr | E62: See Appendix E
A63: Heat pump cooling mode EER | B63: hp_EER | C63: 11.8 | D63: BTU/Whr | E63: See Appendix E
A65: Heating Oil Heat Content | B65: diesel_heat_content | C65: 139000 | D65: BTU/gal | E65: U.S. DOE, Energy Information Administration.

Sheet Indirect Assumptions
A1: Default Assumptions for Indirect and Add-On Costs
A2: Users may change any of the cells in the Value column
A4: Assumption | B4: Range Name | C4: Value | D4: Units | E4: Guidance
A5: Permits
A6: Include permit costs? | B6: include_permits | C6: 1 | D6: <--- enter 1 for yes, 0 for no
A7: Always include NEPA compliance costs? | B7: include_NEPA | C7: 1 | D7: <--- enter 1 for default, enter 2 for yes, 3 for no | E7: Default of 1 means NEPA compliance is included only for systems that discharge to surface water. Selecting 2 means NEPA compliance will be included in all estimates. Selecting 3 means NEPA compliance will never be included.
A9: Pilot Study
A10: Include pilot study costs? | B10: include_pilot | C10: 1 | D10: <--- enter 1 for yes, 0 for no
A12: Mobilization and Demobilization
A13: Mobilization percentage for small systems | B13: mob_pct_small | C13: 0 | D13: of direct capital cost | E13: Typically 2-5% of the estimated construction cost. Enter 0% to exclude. Excluded by default for pre-engineered packages
A14: Mobilization percentage for medium systems | B14: mob_pct_medium | C14: 0.04 | D14: of direct capital cost
A15: Mobilization percentage for large systems | B15: mob_pct_large | C15: 0.02 | D15: of direct capital cost
A17: Architectural Fees for Treatment Building
A18: Include architectural fee? | B18: include_arch | C18: 1 | D18: <--- enter 1 for yes, 0 for no | E18: Must be added to building cost. Change for special considerations. Includes structural, mechanical, and electrical engineering for building only.
A19: Include architectural fee for small systems? | B19: include_arch_small | C19: 0 | D19: <--- enter 1 for yes, 0 for no
A21: Installation, Transportatation, and O&P
A22: Installation, Transportatation, and O&P percentage | B22: inst_pct | C22: 0 | D22: of direct capital cost | E22: Included in line item unit costs. Add a percentage for special considerations such as a remote site or high cost location.
A24: Sitework
A25: Include sitework costs? | B25: include_sitework | C25: 1 | D25: <--- enter 1 for yes, 0 for no
A27: Yard Piping
A28: Include yard piping costs? | B28: include_yardpipe | C28: 1 | D28: <--- enter 1 for yes, 0 for no
A29: Frost depth | B29: frost | C29: 38 | D29: inches | E29: Should be consistent with (reflect same climate as) heating and cooling assumptions on O&M assumptions page. Assumptions are for St. Louis, Missouri.
A30: Minimum trench depth to top of pipe | B30: min_trench_depth | C30: 36 | D30: inches | E30: US Army Corps of Engineers recommended minimum cover for distribution pipes of 2.5 ft in grassed areas, 3 ft if buried under pavement or roadways but not less than frost penetration depth (USACOE 1984)
A31: Soil density | B31: soil_dens | C31: 97 | D31: lb/cubic ft. | E31: Based on soil density of loamy sand (1.55 gm/cc)
A32: Coefficient of passive pressure | B32: Coeff_Kp | C32: 3
A33: Reduction factor | B33: Reduction | C33: 0.467
A34: Bedding depth below pipe | B34: bedding_depth | C34: 6 | D34: inches
A35: Bedding depth surrounding the pipe | B35: bedding_pct | C35: 0.25 | D35: of pipe diameter
A36: Trench inside angle | B36: trench_angle | C36: =RADIANS(45) -> 0.7853981634 | D36: radians
A37: Pipe length from water source to the boundary of the 10 foot buffer | B37: yard_in | C37: 0 | D37: feet | E37: Use if technology is first step in treatment process
A38: Pipe length the boundary of the 10 foot buffer to distribution network | B38: yard_out | C38: 0 | D38: feet | E38: Use if technology is last step in treatment process
A40: Geotechnical & Sitework
A41: Include geotechnical costs for low cost systems? | B41: include_geo_low | C41: 0 | D41: <--- enter 1 for yes, 0 for no | E41: Note: geotechnical is always included with the septic system option, regardless of the numbers entered here
A42: Include geotechnical costs for medium cost systems? | B42: include_geo_medium | C42: 0 | D42: <--- enter 1 for yes, 0 for no
A43: Include geotechnical costs for high cost systems? | B43: include_geo_high | C43: 1 | D43: <--- enter 1 for yes, 0 for no
A44: Test pit length | B44: pit_length | C44: 4 | D44: feet
A45: Test pit width | B45: pit_width | C45: 4 | D45: feet
A46: Test pit depth | B46: pit_depth | C46: 7 | D46: feet
A47: Borehole depth without basins | B47: bore_depth_nobasin | C47: 10 | D47: feet
A48: Borehole depth for shallow basins | B48: bore_depth_min | C48: 25 | D48: feet
A49: Borehole depth for deep basins | B49: bore_depth_max | C49: 50 | D49: feet
A50: Basin excavation depth above which deeper boreholes are needed | B50: deep_bore_need | C50: 20 | D50: feet | E50: Systems with deep basins require deeper investigation
A51: Technology footprint above which boreholes are needed | B51: bore_need | C51: 2000 | D51: square feet | E51: Small system geotechnical investigation can be completed with test pits, larger systems require boreholes
A52: Minimum number of boreholes | B52: min_holes | C52: 4
A53: Borehole needed every x square feet | B53: hole_per_sf | C53: 1000 | D53: square feet
A54: Boreholes per job | B54: hole_per_job | C54: 24 | D54: boreholes/job
A55: Linear feet bored per day | B55: hole_per_day | C55: 55.5 | D55: l.f./day | E55: RS Means Costworks 2001
A58: Standby Power
A59: Include standby power costs? | B59: include_standby | C59: 1 | D59: <--- enter 1 for yes, 0 for no
A60: Include standby power costs for small systems? | B60: include_standby_small | C60: 0 | D60: <--- enter 1 for yes, 0 for no
A61: Design safety factor for standby power | B61: std_safety_factor | C61: 0 | E61: Default 0%. Apply a percentage to increase standby power requirements.
A62: Include heating in standby power | B62: need_heat | C62: 0 | D62: <--- enter 1 for yes, 0 for no | E62: If a system uses gas or diesel heat, heating will not be included, regardless of this assumption.
A63: Include cooling in standby power | B63: need_cool | C63: 0 | D63: <--- enter 1 for yes, 0 for no | E63: If both heating and cooling are included, standby power requirements will be based on the maximum of the two.
A64: Minimum standby power generator size | B64: min_standby | C64: 1.5 | D64: kW | E64: Minimum size for full standby generators
A66: Electrical (including yard wiring)
A67: Electrical percentage | B67: elect_pct | C67: 0.1 | D67: of direct cost
A69: Instrumentation and Control
A70: Instrumentation and control percentage | B70: i_c_pct | C70: 0 | D70: of direct cost | E70: Included as a direct cost line item.
A72: Contingency
A73: Include contingency costs for low cost systems? | B73: include_conting_low | C73: 0 | D73: <--- enter 1 for yes, 0 for no
A74: Include contingency costs for medium cost systems? | B74: include_conting_medium | C74: 0 | D74: <--- enter 1 for yes, 0 for no
A75: Include contingency costs for high cost systems? | B75: include_conting_high | C75: 1 | D75: <--- enter 1 for yes, 0 for no
A76: Technology complexity factor | B76: complexity | C76: 1.5 | E76: Technology-specific factor. See Appendices for details. Low complexity = 0.5; Average complexity = 1.0; High complexity = 1.5; Very high complexity = 2.0.
A78: Process Engineering
A79: Engineering percentage for small systems | B79: eng_pct_small | C79: 0.2 | D79: of direct capital cost | E79: Enter 0% to exclude.
A80: Engineering percentage for medium systems | B80: eng_pct_medium | C80: 0.12 | D80: of direct capital cost
A81: Engineering percentage for large systems | B81: eng_pct_large | C81: 0.08 | D81: of direct capital cost
A83: Miscellaneous Allowance
A84: Miscellaneous allowance percentage | B84: misc_pct | C84: 0.1 | D84: of direct capital cost | E84: Enter 0% to exclude.
A86: Legal, Fiscal, and Administrative
A87: Legal percentage | B87: legal_pct | C87: 0.02 | D87: of direct capital cost | E87: Enter 0% to exclude. Highly site-specific. Can range from 2-5% of equipment, installation, construction, electrical, and standby power. To estimate, add 5% to total estimated construction cost.
A89: Sales Tax
A90: Sales tax percentage | B90: tax_pct | C90: 0 | D90: of direct capital cost | E90: May be exempt if constructed with public funds. May be as high as 7.25% of equipment and construction, with national average 4.75%.
A92: Financing during Construction
A93: Financing percentage | B93: finance_pct | C93: 0.05 | D93: of direct capital cost | E93: Enter 0% to exclude. Typically assumed to be one year's interest on capital cost.
A94: Financing percentage for small systems | B94: finance_pct_small | C94: 0 | D94: of direct capital cost | E94: Small system construction assumed to take less than one year
A96: Construction Management and General Contractor Overhead
A97: Builder's risk insurance percentage | B97: br_ins_pct | C97: 0.0034 | E97: Enter 0% to exclude. 0.34% is national average rate. RSMeans Building Construction Cost Data 2009, reference section R01100-070
A98: Include performance bond cost? | B98: include_bond | C98: 1 | D98: <--- enter 1 for yes, 0 for no
A99: Include construction management cost? | B99: include_cm | C99: 1 | D99: <--- enter 1 for yes, 0 for no
A100: Include construction management cost for pre-engineered packages? | B100: include_cm_pre | C100: 0 | D100: <--- enter 1 for yes, 0 for no
A102: Concrete Pad
A103: Include concrete pad in total capital cost? | B103: include_pad | C103: 1 | D103: <--- enter 1 for yes, 0 for no
A105: Heating Table (1=include heating in buildings and O&M, 0 = do not include heating)
A106: Component Level | B106: Range Name | C106: System Size
C107: Small (<1 mgd) | D107: Medium (1-10 mgd) | E107: Large (>10 mgd)
A108: Buildings 500 square feet or greater
A109: low cost | B109: heating_table | C109: 0 | D109: 1 | E109: 1
A110: mid cost | C110: 1 | D110: 1 | E110: 1
A111: high cost | C111: 1 | D111: 1 | E111: 1
A112: Buildings less than 500 ft2 (other than those used for chlorine storage)
A113: low cost | B113: heating_table_shed | C113: 0 | D113: 0 | E113: 1
A114: mid cost | C114: 0 | D114: 0 | E114: 1
A115: high cost | C115: 1 | D115: 1 | E115: 1
A117: Cooling Table (1=include cooling in buildings and O&M, 0 = do not include cooling)
A118: Component Level | B118: Range Name | C118: System Size
C119: Small (<1 mgd) | D119: Medium (1-10 mgd) | E119: Large (>10 mgd)
A120: Buildings 500 square feet or greater
A121: low cost | B121: cooling_table | C121: 0 | D121: 0 | E121: 1
A122: mid cost | C122: 0 | D122: 1 | E122: 1
A123: high cost | C123: 1 | D123: 1 | E123: 1
A124: Buildings less than 500 ft2 (other than those used for chlorine storage)
A125: low cost | B125: cooling_table_shed | C125: 0 | D125: 0 | E125: 0
A126: mid cost | C126: 0 | D126: 0 | E126: 0
A127: high cost | C127: 0 | D127: 0 | E127: 0

Sheet Vessel Constraints
A1: Vessel Constraint Calculations
A2: This sheet performs calculations to confirm that the vessel design on the Input page meets engineering constraints
A4: Calculation | B4: Range Name | C4: Value | D4: Units | E4: Guidance
A5: From Inputs
A6: Design Flow | B6: design_flow | C6: =IF(df_units="gpm",(1-bp_pct)*design_flow_I*24*60/1000000,(1-bp_pct)*design_flow_I) -> 0.03 | D6: MGD | E6: From Inputs, less bypass
A7: Average Flow | B7: average_flow | C7: =(1-bp_pct)*IF(af_units="gpm",average_flow_I*24*60/1000000,IF(af_units="fraction of design flow",average_flow_I*design_flow,average_flow_I)) -> 0.007 | D7: MGD | E7: From Inputs, less bypass
A8: Design Flow Rate | B8: design_flow_rate | C8: =design_flow*1000000/(24*60) -> 20.83333333 | D8: gpm | E8: Design flow expressed in gpm
A9: Average Flow Rate | B9: average_flow_rate | C9: =average_flow*1000000/(24*60) -> 4.861111111 | D9: gpm | E9: Average flow expressed in gpm
A10: Bypass Flow Rate (design) | B10: bp_flow_rate | C10: =bp_pct/(1-bp_pct)*design_flow_rate -> 0 | D10: gpm
A11: Target Contaminant | B11: contam | C11: 1 | D11: <-- 1 for arsenic, 2 for nitrate, 3 for other
A12: Resin Type | B12: resin_type | C12: =(VLOOKUP(resin_type_I,resin_table,2,FALSE)) -> 2 | D12: <-- 1 for Strong base polystyrenic gel-type Type I, etc.
A13: Theoretical total empty bed contact time (EBCT) | B13: EBCT | C13: =EBCT_I -> 2 | D13: minutes
A14: Minimum number of vessels in series | B14: Num_tanks | C14: =num_tanks_I -> 1 | D14: units
A15: Vessel geometry | B15: tank_geom | C15: =IF(tank_geom_I="horizontal",2,1) -> 1 | D15: <-- 1 for upright cylindrical, 2 for horizontally-laid cylinder
A17: From Central Cost Database
A18: Maximum Standard Vessel Diameter | B18: max_diam_std_size | C18: =max_vessel_diam_cl -> 14 | D18: feet
A19: Minimum Vessel Diameter | B19: min_diam | C19: =min_vessel_diam_cl -> 1.5 | D19: feet
A20: Maximum Vessel Diameter | B20: max_diam | C20: =IF(max_diam_override>0,max_diam_override,max_diam_std_size) -> 14 | D20: feet
A22: Vessel Constraint Verification
A23: EBCT per vessel | B23: EBCT_tank | C23: =EBCT/Num_tanks -> 2 | D23: minutes
A24: Vessel surface area | B24: max_sa | C24: =IF(tank_geom=1,(comm_diam-(2*Vessel_thickness))^2*PI()/4,IF(tank_geom=2,(comm_diam-(2*Vessel_thickness))*comm_height_length,0)) -> 1.767145868 | D24: square feet
A25: Height available above media bed (for horizontal vessels) | B25: distance_above | C25: =IF(tank_geom=2,comm_diam-bed_depth-horiz_underdrain,"NA") -> NA | D25: ft
A26: Void space above media bed (for horizontal vessels) | B26: void_above | C26: =IF(tank_geom=2,comm_height_length*(comm_diam*comm_diam/2*ASIN(SQRT(distance_above/comm_diam))-(comm_diam/2-distance_above)*SQRT((comm_diam-distance_above)*distance_above)),"NA") -> NA | D26: cubic feet
A27: Maximum flow per vessel | B27: flow_per_vessel | C27: =IF(tank_geom=1,(max_sa*bed_depth*7.48)/EBCT_tank,media_volume*7.48/EBCT_tank) -> 16.52281386 | D27: gpm
A28: Number of parallel treatment trains | B28: num_treat_lines | C28: =ROUNDUP(design_flow_rate/flow_per_vessel,0) -> 2 | D28: lines
A29: Number of vessels excluding redundancy | B29: op_num_tanks | C29: =ROUNDUP(design_flow_rate/flow_per_vessel,0)*Num_tanks -> 2 | D29: units
A30: Number of redundant units | B30: NRD | C30: =IF(NRD_I<>"",NRD_I,IF(design_flow>=1,ROUNDUP(num_treat_lines/redund_freq,0),IF(op_num_tanks=1,NRD_small_1,NRD_small))) -> 0
A31: Total number of vessels including redundancy | B31: final_num_tanks | C31: =op_num_tanks+NRD -> 2 | D31: units
A33: Vessel requirements based on bed depth and contact time
A34: Minimum total resin needed | B34: contact_material | C34: =design_flow_rate*EBCT/(7.481) -> 5.569665375 | D34: cubic feet
A35: Minimum volume of resin per vessel | B35: contact_mat_per_vessel | C35: =contact_material/op_num_tanks -> 2.784832687 | D35: cubic feet
A36: Minimum volume of vessel | B36: vol_vessel | C36: =contact_mat_per_vessel*(1+bed_expansion) -> 4.177249031 | D36: cubic feet | E36: Volume required for media plus expansion, without freeboard or underdrain
A37: Minimum surface area of contact material | B37: SA | C37: =contact_mat_per_vessel/(bed_depth) -> 1.113933075 | D37: square feet
A39: Quantities based on user-specified vessel dimensions
A40: Final surface area of contact material | B40: comm_SA | C40: =IF(tank_geom=1,(comm_diam-(2*Vessel_thickness))^2*PI()/4,IF(tank_geom=2,(comm_diam-(2*Vessel_thickness))*comm_height_length)) -> 1.767145868 | D40: square feet
A41: Final surface loading rate | B41: comm_load_rate | C41: =(design_flow_rate/num_treat_lines)/comm_SA -> 5.894627522 | D41: gpm/square ft
A42: Resin volume per tank | B42: media_volume | C42: =IF(tank_geom=1,comm_SA*bed_depth,IF(tank_geom=2,comm_vol-underdrain_horiz_void-void_above)) -> 4.417864669 | D42: cubic feet
A43: Resin volume per tank in gallons | B43: media_volume_gal | C43: =media_volume*7.48 -> 33.04562772 | D43: gallons
A44: Resin mass per vessel | B44: media_per_vessel | C44: =media_volume*media_density -> 189.9681808 | D44: lbs/vessel
A45: Total resin | B45: total_media | C45: =media_per_vessel*final_num_tanks -> 379.9363615 | D45: lbs
A46: Resin volume when expanded | B46: media_volume_expanded | C46: =media_volume*(1+bed_expansion) -> 6.626797004 | D46: cubic feet
A47: Total vessel volume | B47: comm_vol | C47: =PI()*comm_diam^2/4*comm_height_length -> 7.952156404 | D47: cubic feet
A48: Total vessel volume in gallons | B48: comm_vol_gal | C48: =comm_vol*7.48 -> 59.4821299 | D48: gal
A50: Checks on user-specified dimensions
A51: Design dimensions for vertical vessels:
A52: Required height of vessel | B52: height | C52: =bed_depth*(1+bed_expansion)+free_board -> 4.25 | D52: feet
A53: Required vessel diameter (circular vessels) | B53: diameter | C53: =(SA*4/PI())^0.5+(2*Vessel_thickness) -> 1.19092554 | D53: feet
A54: Minimum commercial height given diameter | B54: min_comm_height | C54: =VLOOKUP(comm_diam,vessel_size_table_cl,2) -> 3 | D54: feet
A55: Maximum commercial height given diameter | B55: max_comm_height | C55: =VLOOKUP(comm_diam,vessel_size_table_cl,3) -> 6 | D55: feet
A57: Void space required for horizontal vessels:
A58: For freeboard | B58: freeboard_horiz_void | C58: =comm_height_length*(comm_diam*comm_diam/2*ASIN(SQRT(free_board/comm_diam))-(comm_diam/2-free_board)*SQRT((comm_diam-free_board)*free_board)) -> 2.320370896 | D58: cubic feet | E58: Volume of a horizontal slice taken out of a cylinder
A59: For underdrain | B59: underdrain_horiz_void | C59: =comm_height_length*(comm_diam*comm_diam/2*ASIN(SQRT(horiz_underdrain/comm_diam))-(comm_diam/2-horiz_underdrain)*SQRT((comm_diam-horiz_underdrain)*horiz_underdrain)) -> 7.952156404 | D59: cubic feet
A60: Total | B60: horiz_void | C60: =freeboard_horiz_void+underdrain_horiz_void -> 10.2725273 | D60: cubic feet
G61: `
A62: Volume available for media and expansion:
A63: Vertical vessel | B63: vert_vol_available | C63: =(comm_height_length-free_board)*PI()*comm_diam^2/4 -> 7.068583471 | D63: cubic feet
A64: Horizontal vessel | B64: horiz_vol_available | C64: =comm_vol-horiz_void -> -2.320370896 | D64: cubic feet
A65: For selected vessel geometry | B65: input_vol_vess | C65: =CHOOSE(tank_geom,vert_vol_available,horiz_vol_available) -> 7.068583471 | D65: cubic feet | E65: To be compared to vol_vessel, to determine whether vessel is oversized.
A67: Tolerance for oversized vessels | B67: vol_tol | C67: =CHOOSE(tank_geom,IF(ss_cat2=1,vol_tol_vert_small,vol_tol_vert_med),vol_tol_horiz) -> 0.5 | E67: Tolerance added to vol_vessel in checking for oversized vessels.

Sheet Regen Backwash
A1: Backwash and Regeneration Calculations
A3: Calculation | B3: Range Name | C3: Value | D3: Units | E3: Guidance
A4: From Inputs
A5: No backwash pumps | B5: no_backwash | C5: =IF(no_backwash_I="existing pumps",1,IF(no_backwash_I="new pumps","",IF(ss_cat2=1,1,""))) -> 1 | D5: <-- 1 = backwash using existing supply or treated water pumps, blank = include backwash pumps in costs
A6: No backwash tanks | B6: no_back_tank | C6: =IF(no_back_tank_I="existing storage",1,IF(no_back_tank_I="new storage","",IF(ss_cat2=2,"",1))) -> 1 | D6: <-- 1 = backwash from existing storage or supply, blank = include backwash tanks in costs
A8: Resin Regeneration
A9: Mass of resin in grams | B9: M | C9: =media_per_vessel*num_treat_lines*453.59 -> 172335.3342 | D9: grams | E9: For Freundlich calculation
A10: Flow rate in L/min | B10: QL | C10: =average_flow_rate*3.785 -> 18.39930556 | D10: L/min | E10: For Freundlich calculation
A11: Number of bed volumes before regeneration | B11: BV_regen | C11: =IF(regen_calc_type="",0,IF(regen_calc_type="calculate based on sulfate",ROUND(-606*LN(SO4_in)+3150,0),IF(regen_calc_type="manual entry",BV_regen_I,(M*freund_1*C_b^(1/freund_2)/(QL*(C_0-C_b)))/(media_volume_gal*num_treat_lines/average_flow_rate)))) -> 779 | D11: bed volumes
A12: Total resin volume | B12: resin_volume_total | C12: =final_num_tanks*media_volume -> 8.835729338 | D12: cubic feet
A13: Salt needed per vessel | B13: salt_regen | C13: =media_volume*salt_dose -> 35.34291735 | D13: lbs
A14: Volume of saturated brine per vessel | B14: vol_brine_sat | C14: =salt_regen/brine_conc_sat -> 11.40094108 | D14: gallons
A15: Volume of dilute brine needed per vessel | B15: vol_brine | C15: =salt_regen/brine_conc -> 70.68583471 | D15: gallons | E15: Slow rinse water serves to dilute the brine (Lowry Peer Review comments)
A16: Time for brine delivery | B16: time_regen | C16: =salt_dose/brine_conc/regen_rate -> 20 | D16: minutes | E16: Calculated based on salt input and regen_rate
A17: Dilute brine flow rate (gpm) | B17: brine_gpm | C17: =vol_brine/time_regen -> 3.534291735 | D17: gpm
A18: Regeneration per vessel frequency | B18: regen_days | C18: =((num_treat_lines*media_volume_gal*BV_regen)/(average_flow*1000000)) -> 7.355012571 | D18: days
A19: Number of regeneration washes per month | B19: regen_month | C19: =30/regen_days -> 4.078850948 | D19: washes/vessel/month
A20: Salt needed in storage | B20: salt_store | C20: =(regen_month*cstore_days/30)*salt_regen*num_treat_lines/(regen_reuse+1) -> 288.3169839 | D20: lbs
A22: Sodium Chloride Purchasing
A23: Quantity required for large quantity purchase | C23: =VLOOKUP("Sodium Chloride - Large Qty",chem_break_table_cl,2,FALSE) -> 27500 | D23: lbs | E23: #N/A indicates that price data do not depend on volume purchased.
A24: Quantity required for mid quantity purchase | C24: =VLOOKUP("Sodium Chloride - Mid Qty",chem_break_table_cl,2,FALSE) -> 5000 | D24: lbs | E24: #N/A indicates that price data do not depend on volume purchased.
A25: Quantity required for small quantity purchase | C25: =VLOOKUP("Sodium Chloride - Small Qty",chem_break_table_cl,2,FALSE) -> 0 | D25: lbs | E25: #N/A indicates that price data do not depend on volume purchased.
A26: Purchase Type | B26: salt_purchase | C26: =IF(AND(ISNA(C23),ISNA(C24),ISNA(C25)),"",IF(salt_store>=C23," - Large Qty",IF(salt_store>=C24," - Mid Qty"," - Small Qty"))) -> - Small Qty | E26: Returns descriptive term based on volume of each purchase for use in determining pricing. Blank indicates that price data do not depend on volume purchased.
A28: Brine Mixing Tanks
A29: Maximum chemical tank size | B29: max_chem_tank_size | C29: =MAX(VLOOKUP(10^6,pl_cst_cost_cl,1)-1,VLOOKUP(10^6,fg_cst_cost_cl,1)-1,VLOOKUP(10^6,ss_cst_cost_cl,1)-1) -> 30000 | D29: gallons | E29: The largest size for which costs are available.
A30: Maximum chemical storage tank size excluding stainless | B30: max_chem_tank_size_noSS | C30: =MAX(VLOOKUP(10^6,pl_cst_cost_cl,1)-1,VLOOKUP(10^6,fg_cst_cost_cl,1)-1) -> 30000 | D30: gallons | E30: The largest size for which costs are available, excluding stainless steel
A31: Brine tanks | B31: brine_tanks | C31: =IF(brine_method=2,0,IF(vol_brine_sat>max_chem_tank_size,ROUNDUP(vol_brine_sat/max_chem_tank_size,0)*regen_redun,regen_redun)) -> 1 | D31: units
A32: Brine tank volume | B32: brine_tank_vol | C32: =IF(brine_method=2,0,vol_brine_sat*regen_redun/brine_tanks) -> 11.40094108 | D32: gallons
A33: Number of mixers | B33: mixers | C33: =brine_tanks -> 1 | D33: units
A35: Salt Saturators
A36: Salt saturator size needed | B36: salt_box_need | C36: =IF(salt_store/cstore_days/2000>=min_saltbox,salt_store/cstore_days/2000,IF(salt_store/(cstore_days/7)/2000>=min_saltbox,salt_store/(cstore_days/7)/2000,salt_store/(cstore_days/30)/2000)) -> 0.144158492 | D36: tons | E36: Provides one day, one week, or one month of storage, depending on quantity needed
A37: Days of storage provided by salt saturator | B37: salt_box_days | C37: =IF(salt_store/cstore_days/2000>=min_saltbox,1,IF(salt_store/(cstore_days/7)/2000>=min_saltbox,7,30)) -> 30 | D37: days
A38: Additional salt storage needed | B38: add_salt_store | C38: =IF(cstore_days-salt_box_days>0,cstore_days-salt_box_days,0) -> 0 | D38: days | E38: Additonal storage to total at least as many days supply onsite as specified in CDAs
A39: Smallest size of salt saturator | B39: min_saltbox | C39: =MIN(VLOOKUP(0.001,fg_saltbox_cost_cl,2),VLOOKUP(0.001,pl_saltbox_cost_cl,2)) -> 5 | D39: tons | E39: The smallest size for which costs are available. Used to determine whether a system will store 1 month, 1 week, or 1 day of salt in the saturators.
A40: Maximum size of salt saturator | B40: max_saltbox | C40: =MAX(VLOOKUP(10^6,fg_saltbox_cost_cl,1)-1,VLOOKUP(10^6,pl_saltbox_cost_cl,1)-1) -> 79.1 | D40: tons | E40: The largest size for which costs are available.
A41: Number of salt saturators | B41: num_salt_box | C41: =ROUNDUP(salt_box_need/max_saltbox,0) -> 1 | D41: units
A42: Salt saturator size | B42: salt_box_size | C42: =IF(ROUNDUP(salt_box_need/num_salt_box,0)<min_saltbox,min_saltbox,ROUNDUP(salt_box_need/num_salt_box,0)) -> 5 | D42: tons
A44: Number of eductors | B44: eductors | C44: =IF(brine_method=1,brine_tanks,num_salt_box) -> 1 | D44: units
A46: Backwash
A47: Water flush rate (gpm) | B47: water_flush | C47: =ROUND(h2oflush_backwash_rate*comm_SA,0) -> 5 | D47: gpm
A48: Total water flush | B48: waterflush_vol | C48: =water_flush*backwash_time -> 60 | D48: gallons
A49: Slow rinse volume | B49: s_rinse_vol | C49: =MAX(media_volume_gal*s_rinse_bv,vol_brine-vol_brine_sat) -> 66.09125545 | D49: gallons
A50: Slow rinse rate (gpm) | B50: s_rinse_gpm | C50: =(vol_brine-vol_brine_sat)/time_regen -> 2.964244681 | D50: gpm | E50: To deliver dilution water during brining
A51: Slow rinse time | B51: s_rinse_time | C51: =s_rinse_vol/s_rinse_gpm -> 22.29615385 | D51: minutes | E51: Time to deliver total slow rinse water, overlaps with brine delivery time
A52: Fast rinse volume | B52: f_rinse_vol | C52: =media_volume_gal*f_rinse_bv -> 165.2281386 | D52: gallons
A53: Fast final rinse time | B53: f_rinse_time | C53: =f_rinse_vol/(f_rinse_rate*comm_SA) -> 31.16666667 | D53: minutes
A54: Fast rinse rate (gpm) | B54: f_rinse_gpm | C54: =f_rinse_vol/f_rinse_time -> 5.301437603 | D54: gpm
A55: Total backwash volume | B55: total_backwash | C55: =waterflush_vol+s_rinse_vol+f_rinse_vol -> 291.3193941 | D55: gal
A56: Maximum backwash tank size | B56: max_back_tank_size | C56: =MAX(VLOOKUP(10^6,st_bwt_cost_cl,1)-1,VLOOKUP(10^6,fg_bwt_cost_cl,1)-1,VLOOKUP(10^6,hdpe_bwt_cost_cl,1)-1) -> 289000 | D56: gallons | E56: The largest size for which costs are available.
A57: Backwash tanks | B57: back_tanks | C57: =IF(no_back_tank=1,0,ROUNDUP(total_backwash/max_back_tank_size,0)) -> 0 | D57: units
A58: Backwash tank volume | B58: back_tank_vol | C58: =IF(no_back_tank=1,0,total_backwash/back_tanks) -> 0 | D58: gal
A59: Backwashes per year per vessel | C59: =365/regen_days+IF(add_backwash_freq=0,0,365/add_backwash_freq) -> 49.62601987 | D59: backwash per year
A60: Total number of backwashes per year (all vessels) | B60: backwash_yr | C60: =C59*final_num_tanks -> 99.25203974 | D60: backwash per year | E60: Number of backwash events per year for all vessels includes redundancy
A62: Regeneration downtime | B62: regeneration_downtime | C62: =backwash_time+s_rinse_time+f_rinse_time -> 65.46282051 | D62: minutes
A63: Total days for full regeneration | B63: total_downtime | C63: =regeneration_downtime*final_num_tanks/(24*60) -> 0.09092058405 | D63: days
A64: Number of vessels regenerated at a time | B64: regen_redun | C64: =ROUNDUP(total_downtime/regen_days,0) -> 1

Sheet pH Adjust
A1: Calculations for adjusting pH of finished water
A3: Calculation | B3: Range Name | C3: Value | D3: Units | E3: Guidance
A4: pH adjust | B4: ph_adj | C4: =IF(pH_adj_I="yes",1,0) -> 0 | D4: <-- 1=yes 0=no | E4: From Input
A6: pH Adjustment Chemistry
A7: Ionic strength (I) | B7: I_ion_str | C7: =TDS_I/40000 -> 0.005 | D7: mol/L | E7: 40,000 converts TDS to ionic strength, Equation 4, Trussell 1998
A8: Temperature variance from 25 degrees centigrade | B8: t_minus25 | C8: =t_I-25 -> -15 | D8: degrees C | E8: For use in Equation S14, Trussell 1998
A9: Dielectric constant (D) | B9: D_dielectric | C9: =78.54*(1-0.004579*t_minus25+0.0000119*t_minus25^2+0.000000028*t_minus25^3) -> 84.13738872 | E9: Equation S14, Trussell 1998
A10: Temperature in degrees Kelvin | B10: T_K | C10: =t_I+273 -> 283 | D10: degrees K | E10: 273 converts degrees C to degrees K
A11: Limiting theoretical slope (A) | B11: A_slope_lim | C11: =1290000*(SQRT(2)/(D_dielectric*T_K)^1.5) -> 0.496525447 | E11: Equation S13, Trussell 1998
A12: Monovalent activity coefficient (-log form) | B12: log_gamma_1 | C12: =A_slope_lim*1^2*(SQRT(I_ion_str)/(1+SQRT(I_ion_str))-0.3*I_ion_str) -> 0.03204619055 | E12: Modified Davies equation, Equation S12, Trussell 1998
A13: Divalent activity coefficient (-log form) | B13: log_gamma_2 | C13: =A_slope_lim*2^2*(SQRT(I_ion_str)/(1+SQRT(I_ion_str))-0.3*I_ion_str) -> 0.1281847622 | E13: Modified Davies equation, Equation S12, Trussell 1998
A14: Monovalent activity coefficient (ɣ1) | B14: gamma_1 | C14: =10^-log_gamma_1 -> 0.9288675893
A15: Divalent activity coefficient (ɣ2) | B15: gamma_2 | C15: =10^-log_gamma_2 -> 0.7444152094
A16: Equilibrium constant for carbonic acid (H2CO3) (-log form) | B16: pK_1 | C16: =a1_K1+a2_K1/T_K+a3_K1*LOG10(T_K)+a4_K1*T_K+a5_K1/T_K^2 -> 6.476641144
A17: Equilibrium constant for bicarbonate (HCO3-) (-log form) | B17: pK_2 | C17: =a1_K2+a2_K2/T_K+a3_K2*LOG10(T_K)+a4_K2*T_K+a5_K2/T_K^2 -> 10.48853824
A18: Equilibrium constant for water (H2O) (-log form) | B18: pK_w | C18: =a1_Kw+a2_Kw/T_K+a3_Kw*LOG10(T_K)+a4_Kw*T_K+a5_Kw/T_K^2 -> 14.53856657
A19: Equilibrium constant for carbonic acid (H2CO3) (K1) | B19: K_1 | C19: =10^-pK_1 -> 3.337020356e-07
A20: Equilibrium constant for bicarbonate (HCO3-) (K2) | B20: K_2 | C20: =10^-pK_2 -> 3.246846499e-11
A21: Equilibrium constant for water (H2O) (Kw) | B21: K_w | C21: =10^-pK_w -> 2.893566232e-15
A22: Intermediate calculation | B22: term1_i | C22: =gamma_1*10^-pHo/K_1 -> 0.2783523893 | E22: ɣ110-pH / K1
A23: Intermediate calculation | B23: term2_i | C23: =(gamma_1*K_2)/(gamma_2*10^-pHo) -> 0.0004051355268 | E23: ɣ1K2 / ɣ210-pH
A24: Intermediate calculation | B24: term3_i | C24: =alk_i/50000 -> 0.0005 | D24: eq/L | E24: Alk / 50,000 (where 50,000 converts mg/L to eq/L)
A25: Intermediate calculation | B25: term4_i | C25: =K_w/(gamma_1*10^-pHo) -> 3.115154695e-08 | E25: Kw / ɣ110-pH
A26: Intermediate calculation | B26: term5_i | C26: =10^-pHo/gamma_1 -> 1.07657971e-07 | E26: 10-pH / ɣ1
A27: Intermediate calculation | B27: term6_i | C27: =(2*K_2*gamma_1)/(gamma_2*10^-pHo) -> 0.0008102710536 | E27: 2K2ɣ1 / ɣ210-pH
A28: Initial total inorganic carbon (CT) | B28: C_T_i | C28: =(1+term1_i+term2_i)*((term3_i-term4_i+term5_i)/(1+term6_i)) -> 0.0006389588657 | D28: mol/L | E28: Equation 15, Najm 2001
A29: Intermediate calculation | B29: term1_f | C29: =(2*K_2*gamma_1)/(gamma_2*10^-pHf) -> 0.01284193077 | E29: 2K2ɣ1 / ɣ210-pH
A30: Intermediate calculation | B30: term2_f | C30: =(gamma_1*10^-pHf)/K_1 -> 0.01756284844 | E30: ɣ110-pH / K1
A31: Intermediate calculation | B31: term3_f | C31: =(gamma_1*K_2)/(gamma_2*10^-pHf) -> 0.006420965384 | E31: ɣ1K2 / ɣ210-pH
A32: Intermediate calculation | B32: term4_f | C32: =K_w/(gamma_1*10^-pHf) -> 4.93718747e-07 | E32: Kw / ɣ110-pH
A33: Intermediate calculation | B33: term5_f | C33: =10^-pHf/gamma_1 -> 6.79275875e-09 | E33: 10-pH / ɣ1
A34: Treated water alkalinity | B34: alk_f | C34: =50000*((C_T_i*(1+term1_f))/(1+term2_f+term3_f)+term4_f-term5_f) -> 31.62466666 | D34: mg/L as CaCO3 | E34: Equation 17, Najm 2001, where 50,000 converts eq/L to mg/L
A35: Hydroxide (OH-) required | B35: OH_tot | C35: =(alk_f-alk_i)/50000 -> 0.0001324933332 | D35: mol/L | E35: Equation 20, Najm 2001, where 50,000 converts from mg/L to mol/L
A37: Chemical Usage
A38: NaOH dose required | B38: NaOH_tot | C38: =IF(ph_adj=0,0,39.997*OH_tot*1000) -> 0 | D38: mg/L | E38: 39.997 is molar mass of NaOH in g/mol, 1,000 converts g to mg
A39: NaOH concentration in lbs/gal | B39: caustic_conc_lb | C39: =VLOOKUP(NaOH_pct,NaOH_table_cl,2) -> 6.364 | D39: lbs/gal
A40: Pounds of pure NaOH needed per day | B40: lb_NaOH_day | C40: =1000000*3.7854*NaOH_tot*2.2*average_flow/1000000 -> 0 | D40: lbs
A41: Pounds of pure NaOH needed in storage | B41: lb_NaOH_store | C41: =ROUNDUP(lb_NaOH_day*cstore_days,0) -> 0 | D41: lbs
A42: Gallons of NaOH needed per day | B42: gal_NaOH_day | C42: =lb_NaOH_day/caustic_conc_lb -> 0 | D42: gal
A43: Gallons of NaOH needed in storage | B43: gal_NaOH_store | C43: =ROUNDUP(lb_NaOH_store/caustic_conc_lb,0) -> 0 | D43: gal
A44: Max NaOH flow (based on design flow) | B44: des_NaOH_flow | C44: =gal_NaOH_day/24*design_flow/average_flow -> 0 | D44: gph
A45: NaOH solution specific gravity | B45: NaOH_spgr | C45: =VLOOKUP(NaOH_pct,NaOH_table_cl,4) -> 1.525
A46: Total weight of bulk NaOH solution in storage | B46: NaOH_lbs | C46: =IF(gal_NaOH_store=0,0,ROUNDUP(gal_NaOH_store*NaOH_spgr*8.345,0)) -> 0 | D46: lbs
A48: Sodium Hydroxide Purchasing
A49: Quantity required for large quantity purchase | C49: =VLOOKUP("Sodium Hydroxide - Large Qty",chem_break_table_cl,2,FALSE) ->  | D49: lbs | E49: #N/A indicates that price data do not depend on volume purchased.
A50: Quantity required for mid quantity purchase | C50: =VLOOKUP("Sodium Hydroxide - Mid Qty",chem_break_table_cl,2,FALSE) ->  | D50: lbs | E50: #N/A indicates that price data do not depend on volume purchased.
A51: Quantity required for small quantity purchase | C51: =VLOOKUP("Sodium Hydroxide - Small Qty",chem_break_table_cl,2,FALSE) ->  | D51: lbs | E51: #N/A indicates that price data do not depend on volume purchased.
A52: Purchase Type | B52: NaOH_purchase | C52: =IF(AND(ISNA(C49),ISNA(C50),ISNA(C51)),"",IF(NaOH_lbs>=C49," - Large Qty",IF(NaOH_lbs>=C50," - Mid Qty"," - Small Qty"))) ->  | D52: lbs | E52: Returns descriptive term based on volume of each purchase for use in determining pricing. Blank indicates that price data do not depend on volume purchased.
A54: NaOH tanks
A55: NaOH tanks | B55: NaOH_tanks | C55: =IF(gal_NaOH_store=0,0,ROUNDUP(gal_NaOH_store/max_chem_tank_size,0)) -> 0 | D55: units
A56: NaOH tank volume | B56: NaOH_tank_vol | C56: =IF(gal_NaOH_store=0,0,ROUNDUP(gal_NaOH_store/NaOH_tanks,0)) -> 0 | D56: gallons
A57: Day tank storage volume required (based on design flow) | B57: day_tank_vol_needed | C57: =3.7854*NaOH_tot*2.2*design_flow/caustic_conc_lb -> 0 | D57: gallons
A58: Number of day tanks | B58: day_tanks | C58: =IF(day_tank_vol_needed<day_tank_needed,0,ROUNDUP(day_tank_vol_needed/max_chem_tank_size,0)) -> 0 | D58: units
A59: Volume of day tanks | B59: day_tank_vol | C59: =IF(day_tanks=0,0,ROUNDUP(day_tank_vol_needed/day_tanks,0)) -> 0 | D59: gallons
A61: Maximum chemical tank mixer horsepower | B61: cmix_hp_max | C61: =MAX(VLOOKUP(10^6,port_mix_cost_cl,1)-0.1,VLOOKUP(10^6,mount_mix_cost_cl,1)-0.1,VLOOKUP(10^6,imp_mix_cost_cl,1)-0.1) -> 30 | D61: hp
A62: Mixers per storage tank | B62: cmix_per_tank | C62: =IF(AND(include_cmix=1,NaOH_tanks<>0),ROUNDUP(NaOH_tank_vol/1000*cmix_hp_per/cmix_hp_max,0),0) -> 0 | D62: units
A63: Number of storage tank mixers | B63: cmixers | C63: =NaOH_tanks*cmix_per_tank -> 0 | D63: units
A64: Mixer size for storage tanks | B64: cmix_size | C64: =IF(cmixers<>0,MAX(min_cmix_hp,NaOH_tank_vol/1000*cmix_hp_per/cmix_per_tank),0) -> 0 | D64: hp
A65: Mixers per day tank | B65: dmix_per_tank | C65: =IF(AND(include_cmix=1,day_tanks<>0),ROUNDUP(day_tank_vol/1000*cmix_hp_per/cmix_hp_max,0),0) -> 0 | D65: units
A66: Number of day tank mixers | B66: dmixers | C66: =day_tanks*dmix_per_tank -> 0 | D66: units
A67: Mixer size for day tanks | B67: dmix_size | C67: =IF(dmixers<>0,MAX(min_cmix_hp,day_tank_vol/1000*cmix_hp_per/dmix_per_tank),0) -> 0 | D67: hp
A69: Secondary Containment for Storage Tanks
A70: Minimum volume required | B70: ct_cont_volume | C70: =MAX(NaOH_tanks*NaOH_tank_vol*sec_cont_pct_of_total,NaOH_tank_vol*sec_cont_pct_of_largest)/7.48 -> 0 | D70: cubic feet | E70: 7.48 converts gallons to cubic feet
A71: Footprint available | B71: ct_cont_fp | C71: =IF(NaOH_tanks=0,0,NaOH_tank_fp-NaOH_tanks*PI()*(ct_diam/2)^2) -> 0 | D71: square feet | E71: Total footprint minus displacement by tanks themselves
A72: Curb height required | B72: ct_curb_height | C72: =IF(NaOH_tanks=0,0,ct_cont_volume/ct_cont_fp+sec_cont_freeboard/12) -> 0 | D72: feet
A73: Curb thickness | B73: ct_curb_thick | C73: =IF(NaOH_tanks=0,0,MIN(sec_cont_max_thick,ct_curb_height)) -> 0 | D73: feet
A74: Curb length (long side) | B74: ct_curb_len_long | C74: =IF(NaOH_tanks=0,0,NaOH_tanks*ct_diam+2*space_ct+(NaOH_tanks-1)*space_ct+2*ct_curb_thick) -> 0 | D74: feet
A75: Curb length (short side) | B75: ct_curb_len_short | C75: =IF(NaOH_tanks=0,0,ct_diam+2*space_ct) -> 0 | D75: feet
A76: Curb concrete volume | B76: ct_curb_concrete | C76: =IF(NaOH_tanks=0,0,ROUNDUP((ct_curb_len_long*2+ct_curb_len_short*2)*ct_curb_height*ct_curb_thick/27,0)) -> 0 | D76: cubic yards | E76: 27 converts cubic feet to cubic yards
A77: Chemical resistant coating required | B77: ct_coating_gal | C77: =IF(NaOH_tanks=0,0,ROUNDUP((NaOH_tank_fp+2*(ct_curb_len_long-2*ct_curb_thick)*ct_curb_height+2*ct_curb_len_short*ct_curb_height)/sec_cont_coating_cvg,0)) -> 0 | D77: gallons | E77: Covers total footprint plus inside surface and top of curbs
A79: Secondary Containment for Day Tanks
A80: Minimum volume required | B80: dt_cont_volume | C80: =MAX(day_tanks*day_tank_vol*sec_cont_pct_of_total,day_tank_vol*sec_cont_pct_of_largest)/7.48 -> 0 | D80: cubic feet | E80: 7.48 converts gallons to cubic feet
A81: Footprint available | B81: dt_cont_fp | C81: =IF(day_tanks=0,0,day_tank_fp-day_tanks*PI()*(dt_diam/2)^2) -> 0 | D81: square feet | E81: Total footprint minus displacement by tanks themselves
A82: Curb height required | B82: dt_curb_height | C82: =IF(day_tanks=0,0,dt_cont_volume/dt_cont_fp+sec_cont_freeboard/12) -> 0 | D82: feet
A83: Curb thickness | B83: dt_curb_thick | C83: =IF(day_tanks=0,0,MIN(sec_cont_max_thick,dt_curb_height)) -> 0 | D83: feet
A84: Curb length (long side) | B84: dt_curb_len_long | C84: =IF(day_tanks=0,0,day_tanks*dt_diam+2*space_dt+(day_tanks-1)*space_dt+2*dt_curb_thick) -> 0 | D84: feet
A85: Curb length (short side) | B85: dt_curb_len_short | C85: =IF(day_tanks=0,0,dt_diam+2*space_dt) -> 0 | D85: feet
A86: Curb concrete volume | B86: dt_curb_concrete | C86: =IF(day_tanks=0,0,ROUNDUP((dt_curb_len_long*2+dt_curb_len_short*2)*dt_curb_height*dt_curb_thick/27,0)) -> 0 | D86: cubic yards | E86: 27 converts cubic feet to cubic yards
A87: Chemical resistant coating required | B87: dt_coating_gal | C87: =IF(day_tanks=0,0,ROUNDUP((day_tank_fp+2*(dt_curb_len_long-2*dt_curb_thick)*dt_curb_height+2*dt_curb_len_short*dt_curb_height)/sec_cont_coating_cvg,0)) -> 0 | D87: gallons | E87: Covers total footprint plus inside surface and top of curbs

Sheet Pumps Pipe Structure
A1: Pumps, Piping, and Structure Calculations
A3: Calculation | B3: Range Name | C3: Value | D3: Units | E3: Guidance
A4: Pump Design
A5: Maximum pump size | B5: max_pump_size | C5: =MAX(VLOOKUP(10^6,pump_cost_cl,1)-1,VLOOKUP(10^6,back_pump_cost_cl,1)-1) -> 10000 | D5: gpm | E5: The largest pump size for which costs are available. Applies to booster pumps and backwash pumps.
A6: Booster pump rating | B6: pump_rating | C6: =IF(lines_pump_I="",IF(ss_cat2=1,0,MIN(MAX(average_flow_rate+bp_flow_rate*average_flow_rate/design_flow_rate,(design_flow_rate+bp_flow_rate)/2)*(1+pump_safety_factor),max_pump_size)),IF(lines_pump_I=0,0,(design_flow_rate+bp_flow_rate)*(1+pump_safety_factor)/lines_pump_I)) -> 0 | D6: gpm | E6: Includes safety factor
A7: Number of booster pumps | B7: booster_pumps | C7: =IF(pump_rating=0,0,ROUNDUP((design_flow_rate+bp_flow_rate)*(1+pump_safety_factor)/pump_rating,0)) -> 0 | D7: units
A8: Total booster pumps | B8: total_booster_pumps | C8: =IF(booster_pumps=0,0,booster_pumps+NRD_pumps) -> 0 | D8: units
A10: Number of backwash pumps | B10: backwash_pumps | C10: =IF(no_backwash=1,0, ROUNDUP(water_flush*(1+pump_safety_factor)/max_pump_size,0)+NRD_back_pumps) -> 0 | D10: pumps | E10: Includes one pump for redundancy
A11: Backwash pump rating | B11: back_pump_rating | C11: =IF(backwash_pumps=0,0,water_flush*(1+pump_safety_factor)/(backwash_pumps-NRD_back_pumps)) -> 0 | D11: gpm | E11: Includes safety factor
A13: Additional pumps for pH adjustment
A14: Metering flow needed for caustic | B14: pH_pump flow_total | C14: =MAX(min_chem_flow,des_NaOH_flow*(1+pump_safety_factor)) -> 0.13 | D14: gph
A15: Maximum chemical metering pump size | B15: max_cm_pump_size | C15: =MAX(VLOOKUP(10^6,ss_empump_cost_cl,1)-0.01,VLOOKUP(10^6,ss_mmpump_cost_cl,1)-0.01,VLOOKUP(10^6,pvc_empump_cost_cl,1)-0.01,VLOOKUP(10^6,pvc_mmpump_cost_cl,1)-0.01) -> 132 | D15: gph | E15: The largest pump size for which costs are available.
A16: Maximum chemical metering pump size excluding stainless | B16: max_cm_pump_size_noSS | C16: =MAX(VLOOKUP(10^6,pvc_empump_cost_cl,1)-0.01,VLOOKUP(10^6,pvc_mmpump_cost_cl,1)-0.01) -> 132 | D16: gph | E16: The largest size for which costs are available, excluding stainless steel
A17: Metering pumps for caustic | B17: pH_pumps | C17: =IF(ph_adj=1,ROUNDUP(des_NaOH_flow/max_cm_pump_size,0)+NRD_pH_pumps,0) -> 0 | D17: pumps | E17: Includes one pump for redundancy
A18: Metering pump rating for caustic | B18: pH_pump_rating | C18: =IF(pH_pumps=0,0,pH_pump_flow_total/(pH_pumps-NRD_pH_pumps)) -> 0 | D18: gph | E18: Includes safety factor
A20: Piping Design
A21: Influent and treated water pipe length | B21: in_out_pipe_length | C21: =in_out_pipe_mult*facil_length -> 20 | D21: linear feet
A22: Process piping length | B22: proc_pipe_length | C22: =proc_pipe_mult*facil_length -> 20 | D22: linear feet
A23: Backwash piping length | B23: back_pipe_length | C23: =back_pipe_mult*facil_length -> 25 | D23: linear feet
A24: Bypass piping length | B24: bp_pipe_length | C24: =IF(bp_pct>0,bp_pipe_mult*back_pipe_length,0) -> 0 | D24: linear feet
A25: Brine/regeneration piping length | B25: brine_pipe_length | C25: =chem_pipe_mult*facil_length -> 10 | D25: linear feet
A26: Caustic piping length | B26: caustic_pipe_length | C26: =IF(NaOH_tot=0,0,chem_pipe_mult*facil_length) -> 0 | D26: linear feet | E26: With pH adjustment only
A27: Ferric chloride addition pipe length | B27: coag_pipe_length | C27: =IF(coag_day_gal=0,0,chem_pipe_mult*facil_length) -> 0 | D27: linear feet
A28: Polymer addition pipe length | B28: polymer_pipe_length | C28: =IF(polymer_day=0,0,chem_pipe_mult*facil_length) -> 0 | D28: linear feet
A29: Influent and treated water pipe flow | B29: in_out_pipe_flow | C29: =design_flow_rate+bp_flow_rate -> 20.83333333 | D29: gpm
A30: Influent piping diameter | B30: in_out_pipe_diam | C30: =VLOOKUP(in_out_pipe_flow,pipe_size_table_cl,2) -> 1.5 | D30: inches
A31: Process pipe flow | B31: proc_pipe_flow | C31: =flow_per_vessel -> 16.52281386 | D31: gpm
A32: Process pipe diameter | B32: proc_pipe_diam | C32: =VLOOKUP(proc_pipe_flow,pipe_size_table_cl,2) -> 1.5 | D32: inches
A33: Backwash pipe flow | B33: back_pipe_flow | C33: =MAX(water_flush,f_rinse_gpm) -> 5.301437603 | D33: gpm
A34: Backwash pipe diameter | B34: back_pipe_diam | C34: =MAX(min_res_pipe_size,VLOOKUP(back_pipe_flow,pipe_size_table_cl,2)) -> 1 | D34: inches
A35: Brine pipe flow | B35: brine_pipe_flow | C35: =brine_gpm -> 3.534291735 | D35: gpm
A36: Brine pipe diameter | B36: brine_pipe_diam | C36: =VLOOKUP(brine_pipe_flow,pipe_size_table_cl,2) -> 0.75 | D36: inches
A37: Bypass pipe flow | B37: bp_pipe_flow | C37: =bp_flow_rate -> 0 | D37: gpm
A38: Bypass pipe diameter | B38: bp_pipe_diam | C38: =IF(bp_pct>0,VLOOKUP(bp_pipe_flow,pipe_size_table_cl,2),0) -> 0 | D38: inches
A39: Caustic pipe flow | B39: caustic_pipe_flow | C39: =des_NaOH_flow*60 -> 0 | D39: gpm
A40: Caustic pipe diameter | B40: caustic_pipe_diam | C40: =IF(des_NaOH_flow>0,VLOOKUP(caustic_pipe_flow,pipe_size_table_cl,2),0) -> 0 | D40: inches
A41: Ferric chloride pipe flow | B41: coag_pipe_flow | C41: =coag_rate/60 -> 0 | D41: gpm
A42: Ferric chloride pipe diameter | B42: coag_pipe_diam | C42: =IF(coag_day_gal=0,0,VLOOKUP(coag_pipe_flow,pipe_size_table_cl,2)) -> 0 | D42: inches
A43: Polymer pipe flow | B43: polymer_pipe_flow | C43: =polymer_rate/60 -> 0 | D43: gpm
A44: Polymer pipe diameter | B44: polymer_pipe_diam | C44: =IF(polymer_day=0,0,VLOOKUP(polymer_pipe_flow,pipe_size_table_cl,2)) -> 0 | D44: inches
A46: Building Structure
A47: Backwash tank diameter | B47: bt_diam | C47: =ROUNDUP(2*(MAX((2*back_tank_vol/7.48/PI())^(1/3),(4*back_tank_vol/7.48/PI()/(Building_height-ceiling_clearance))^(1/2))),0)/2 -> 0 | D47: feet
A48: Brine tank diameter | B48: st_diam | C48: =ROUNDUP(2*(MAX((2*brine_tank_vol/7.48/PI())^(1/3),(4*brine_tank_vol/7.48/PI()/(Building_height-ceiling_clearance))^(1/2))),0)/2 -> 1 | D48: feet
A49: Salt saturator diameter | B49: ss_diam | C49: =ROUNDUP(VLOOKUP(salt_box_size,saltbox_dim_table_cl,3),0) -> 8 | D49: feet
A50: Residuals holding tank diameter | B50: ht_diam | C50: =ROUNDUP(2*(MAX((2*htank_vol/7.48/PI())^(1/3),(4*htank_vol/7.48/PI()/(Building_height-ceiling_clearance))^(1/2))),0)/2 -> 0 | D50: feet
A51: NaOH tank diameter | B51: ct_diam | C51: =ROUNDUP(2*(MAX((2*NaOH_tank_vol/7.48/PI())^(1/3),(4*NaOH_tank_vol/7.48/PI()/(Building_height-ceiling_clearance))^(1/2))),0)/2 -> 0 | D51: feet
A52: Day tank diameter | B52: dt_diam | C52: =ROUNDUP(2*(MAX((2*day_tank_vol/7.48/PI())^(1/3),(4*day_tank_vol/7.48/PI()/(Building_height-ceiling_clearance))^(1/2))),0)/2 -> 0 | D52: feet
A53: Ferric chloride storage tank diameter | B53: coag_st_diam | C53: =ROUNDUP(2*(MAX((2*coag_tank_vol/7.48/PI())^(1/3),(4*coag_tank_vol/7.48/PI()/(Building_height-ceiling_clearance))^(1/2))),0)/2 -> 0 | D53: feet
A54: Polymer storage tank diameter | B54: polymer_st_diam | C54: =ROUNDUP(2*(MAX((2*polymer_tank_vol/7.48/PI())^(1/3),(4*polymer_tank_vol/7.48/PI()/(Building_height-ceiling_clearance))^(1/2))),0)/2 -> 0 | D54: feet
A55: Maximum access space per vessel or tank | B55: max_space_vessels | C55: =IF(ss_cat2=1,max_space_vessels_pre,max_space_vessels_cust) -> 1 | D55: feet
A56: Access space per vessel | B56: space_vessels | C56: =IF(tank_geom=2,max_space_vessels,IF(comm_diam>max_space_vessels,max_space_vessels,comm_diam)) -> 1 | D56: feet
A57: Access space per backwash tank | B57: space_bt | C57: =IF(bt_diam>max_space_vessels,max_space_vessels,bt_diam) -> 0 | D57: feet
A58: Access space per brine tank | B58: space_st | C58: =IF(st_diam>max_space_vessels,max_space_vessels,st_diam) -> 1 | D58: feet
A59: Access space per salt saturator | B59: space_ss | C59: =IF(ss_diam>max_space_vessels,max_space_vessels,ss_diam) -> 1 | D59: feet
A60: Access space per residuals holding tank | B60: space_ht | C60: =IF(ht_diam>max_space_vessels,max_space_vessels,ht_diam) -> 0 | D60: feet
A61: Access space per NaOH tank | B61: space_ct | C61: =IF(ct_diam>max_space_vessels,max_space_vessels,ct_diam) -> 0 | D61: feet
A62: Access space per day tank | B62: space_dt | C62: =IF(dt_diam>max_space_vessels,max_space_vessels,dt_diam) -> 0 | D62: feet
A63: Access space per ferric chloride storage tank | B63: space_coag_st | C63: =IF(coag_st_diam>max_space_vessels,max_space_vessels,coag_st_diam) -> 0 | D63: feet
A64: Access space per polymer storage tank | B64: space_polymer_st | C64: =IF(polymer_st_diam>max_space_vessels,max_space_vessels,polymer_st_diam) -> 0 | D64: feet
A65: Access space per pump | B65: space_pumps | C65: =IF(ss_cat2=1,space_pumps_pre,space_pumps_cust) -> 0 | D65: feet
A66: Footprint for vessels (large system assumptions) | C66: =IF(tank_geom=1,ROUNDUP(((comm_diam+2*space_vessels)^2+(final_num_tanks-1)*(comm_diam+2*space_vessels)*(comm_diam+space_vessels)),0),IF(tank_geom=2,ROUNDUP((comm_diam+2*space_vessels)*(comm_height_length+2*space_vessels)+(final_num_tanks-1)*(comm_height_length+2*space_vessels)*(comm_diam+space_vessels),0))) -> 21 | D66: square feet
A67: Footprint for vessels (skid mounted small system) | C67: =IF(tank_geom=1,ROUNDUP(((comm_diam+2*space_vessels)^2+(final_num_tanks-1)*(comm_diam+2*space_vessels)*(comm_diam+space_vessels/2)),0),IF(tank_geom=2,ROUNDUP((comm_diam+2*space_vessels)*(comm_height_length+2*space_vessels)+(final_num_tanks-1)*(comm_height_length+2*space_vessels)*(comm_diam+space_vessels/2),0))) -> 20 | D67: square feet | E67: Space between skid mounted vessels is reduced, outside access space remains the same
A68: Footprints for vessels | B68: vessel_fp | C68: =IF(ss_cat2=1,C67,C66) -> 20 | D68: square feet
A69: Footprint for backwash tank | B69: back_tank_fp | C69: =IF(back_tanks=0,0,ROUNDUP((bt_diam+2*space_bt)^2+(back_tanks-1)*(bt_diam+2*space_bt)*(bt_diam+space_bt),0)) -> 0 | D69: square feet
A70: Booster pump footprint | C70: =IF(total_booster_pumps=0,0,ROUNDUP((VLOOKUP(pump_rating,pump_dim_table_cl,3)+space_pumps)*(VLOOKUP(pump_rating,pump_dim_table_cl,4)+2*space_pumps)+(total_booster_pumps-1)*(VLOOKUP(pump_rating,pump_dim_table_cl,3)+space_pumps)*(VLOOKUP(pump_rating,pump_dim_table_cl,4)+space_pumps),0)) -> 0 | D70: square feet
A71: Backwash pump footprint | C71: =IF(backwash_pumps=0,0,ROUNDUP((VLOOKUP(back_pump_rating,pump_dim_table_cl,3)+space_pumps)*(VLOOKUP(back_pump_rating,pump_dim_table_cl,4)+2*space_pumps)+(backwash_pumps-1)*(VLOOKUP(back_pump_rating,pump_dim_table_cl,3)+space_pumps)*(VLOOKUP(back_pump_rating,pump_dim_table_cl,4)+space_pumps),0)) -> 0 | D71: square feet
A72: Residuals pump footprint | C72: =IF(res_pumps=0,0,ROUNDUP((VLOOKUP(res_pump_rating,pump_dim_table_cl,3)+space_pumps)*(VLOOKUP(res_pump_rating,pump_dim_table_cl,4)+2*space_pumps)+(res_pumps-1)*(VLOOKUP(res_pump_rating,pump_dim_table_cl,3)+space_pumps)*(VLOOKUP(res_pump_rating,pump_dim_table_cl,4)+space_pumps),0)) -> 0 | D72: square feet
A73: Residual solids transfer equipment footprint | C73: =IF(res_transfer_method=1,ROUNDUP(IF(res_transfer_rate<40000,99.152*res_transfer_rate^0.0434,0.8761*res_transfer_rate^0.49),0),0) -> 0 | D73: square feet | E73: If slurry pumps are used
A74: Footprint for pumps | B74: pump_fp | C74: =SUM(C70:C73) -> 0 | D74: square feet
A75: Footprint for chemical storage | B75: brine_store_fp | C75: =IF(brine_method=1,ROUNDUP(salt_store/salt_density/storage_height,0),ROUNDUP((salt_store*add_salt_store/cstore_days)/salt_density/storage_height,0)) -> 1 | D75: square feet
A76: Footprint for brine tank/salt saturator | B76: brine_fp | C76: =IF(brine_method=1,ROUNDUP((st_diam+2*space_st)^2+(brine_tanks-1)*(st_diam+2*space_st)*(st_diam+space_st),0),ROUNDUP((VLOOKUP(salt_box_size,saltbox_dim_table_cl,3)+2*space_ss)^2+(num_salt_box-1)*(VLOOKUP(salt_box_size,saltbox_dim_table_cl,3)+2*space_ss)*(VLOOKUP(salt_box_size,saltbox_dim_table_cl,3)+space_ss),0)) -> 9 | D76: square feet
A77: Residuals holding tank footprint | B77: htank_fp | C77: =IF(OR(res_holding<>"tanks",htanks=0),0,ROUNDUP((ht_diam+2*space_ht)^2+(htanks-1)*(ht_diam+2*space_ht)*(ht_diam+space_ht),0)) -> 0 | D77: square feet
A78: Residuals holding basin footprint | B78: hbasin_fp | C78: =IF(res_holding<>"basins",0,ROUNDUP(hbasins*hbasin_length*hbasin_width*2,0)) -> 0 | D78: square feet
A79: NaOH tank footprint | B79: NaOH_tank_fp | C79: =ROUNDUP((ct_diam+2*space_ct)^2+(NaOH_tanks-1)*(ct_diam+2*space_ct)*(ct_diam+space_ct),0) -> 0 | D79: square feet
A80: Day tank footprint | B80: day_tank_fp | C80: =ROUNDUP((dt_diam+2*space_dt)^2+(day_tanks-1)*(dt_diam+2*space_dt)*(dt_diam+space_dt),0) -> 0 | D80: square feet
A81: Ferric chloride storage tank footprint | B81: coag_fp | C81: =IF(coag_tanks=0,0,ROUNDUP((coag_st_diam+2*space_coag_st)^2+(coag_tanks-1)*(coag_st_diam+2*space_coag_st)*(coag_st_diam+space_coag_st),0)) -> 0 | D81: square feet
A82: Polymer storage tank footprint | B82: polymer_fp | C82: =IF(polymer_tanks=0,0,ROUNDUP((polymer_st_diam+2*space_polymer_st)^2+(polymer_tanks-1)*(polymer_st_diam+2*space_polymer_st)*(polymer_st_diam+space_polymer_st),0)) -> 0 | D82: square feet
A83: Office space | B83: office_fp | C83: =VLOOKUP(design_flow,labor_table_cl,3)*IF(ss_cat2=1,space_office_small,space_office) -> 0 | D83: square feet
A84: Exact building footprint required | B84: fp_required | C84: =pump_fp+brine_store_fp+vessel_fp+back_tank_fp+brine_fp+office_fp+htank_fp+hbasin_fp+NaOH_tank_fp+day_tank_fp+polymer_fp+coag_fp -> 30 | D84: square feet
A85: Footprint of building 1 | B85: build1_fp | C85: =ROUNDUP(IF(fp_required<add_2nd_building,fp_required,vessel_fp),-1) -> 30 | D85: square feet | E85: If total footprint is large, building 1 contains vessels only. If total footprint is small, building 1 contains all equipment.
A86: Footprint of building 2 | B86: build2_fp | C86: =ROUNDUP(IF(fp_required< add_2nd_building,0,back_tank_fp+pump_fp+brine_store_fp+office_fp+brine_fp+htank_fp+hbasin_fp+NaOH_tank_fp+day_tank_fp+polymer_fp+coag_fp),-1) -> 0 | D86: square feet | E86: If total footprint is large, a second building is used for pumps, backwash, and chemical storage
A87: Actual total building footprint | B87: total_fp | C87: =build1_fp+build2_fp -> 30 | D87: square feet
A88: Concrete Class A for vessel and pumps padding | B88: concrete | C88: =ROUNDUP((fp_required-office_fp)*IF(ss_cat2=1,pad_thick_small,pad_thick)/27,0) -> 1 | D88: cubic yards
A89: Facility dimension assumed square | B89: facil_length | C89: =ROUNDUP(total_fp^0.5,-1) -> 10 | D89: feet
A90: Additional footprint for evaporation pond | B90: ep_fp | C90: =IF(ep_cells=0,0,ROUNDUP((ep_cell_side+2*non_fire_buffer)^2+(ep_cells-1)*(ep_cell_side+2*non_fire_buffer)*(ep_cell_side+non_fire_buffer),0)) -> 0 | D90: square feet
A91: Land needed | B91: land_required | C91: =ROUNDUP(((build1_fp)^0.5+(2*non_fire_buffer))*((build1_fp)^0.5+(non_fire_buffer+fire_buffer))+IF(build2_fp=0,0,((build2_fp)^0.5+(2*non_fire_buffer))*((build2_fp)^0.5+(non_fire_buffer+fire_buffer)))+ep_fp+sept_fp+solids_pad_area,-2)/43560 -> 0.03443526171 | D91: acres
A93: Land acquisition cost | B93: land_cost | C93: =VLOOKUP(design_flow,land_cost_cl,3) -> 21165.71325 | D93: /acre

Sheet Instrumentation and Control
A1: Instrumentation and Control Calculations
A3: Calculation | B3: Range Name | C3: Value | D3: Units | E3: Guidance
A4: From Inputs
A5: Component level | B5: component_level | C5: =IF(component_level_I="high cost",2,IF(component_level_I="mid cost",1,"")) ->  | D5: blank = low cost, 1 = mid cost, 2 = high cost
A6: Manual system controls | B6: manual | C6: =IF(manual_I="manual",1,IF(manual_I="semi-automated",2,IF(manual_I="fully automated",3,IF(component_level="",1,IF(component_level=2,3,CHOOSE(ss_cat2,3,3,3)))))) -> 3 | D6: 1 = fully manual system, 2 = semi-automated system, 3 = fully automated system. | E6: Based on system size and component level (see cell comment), unless user overrides on input sheet
A8: Control Valves and Instrumentation
A9: Size of valves for influent and treated water lines | B9: in_valve_size | C9: =in_out_pipe_diam -> 1.5 | D9: inches
A10: Size of valves for vessel pipe line | B10: tank_valve_size | C10: =proc_pipe_diam -> 1.5 | D10: inches
A11: Size of valves for backwash line | B11: back_valve_size | C11: =back_pipe_diam -> 1 | D11: inches
A12: Size of valves for brine pipe line | B12: brine_valve_size | C12: =brine_pipe_diam -> 0.75 | D12: inches
A13: Size of valves for caustic line | B13: caustic_valve_size | C13: =caustic_pipe_diam -> 0 | D13: inches
A14: Size of valves for bypass line | B14: bypass_valve_size | C14: =bp_pipe_diam -> 0 | D14: inches
A15: Size of valves for ferric chloride line | B15: coag_valve_size | C15: =coag_pipe_diam -> 0 | D15: inches
A16: Size of valves for polymer line | B16: polymer_valve_size | C16: =polymer_pipe_diam -> 0 | D16: inches
A18: Number of MOVs on process line per vessel | B18: proc_MOV_vessel | C18: =VLOOKUP(IF(Num_tanks=1,"proc_mov_vessel_par","proc_mov_vessel_ser"),valve_table,manual+1,FALSE) -> 2 | D18: valves/vessel | E18: Depends on whether system is operated in parallel or series (lead/lag)
A19: Number of MOVs for process line | B19: tot_proc_MOVs | C19: =final_num_tanks*proc_MOV_vessel+total_booster_pumps*VLOOKUP("proc_MOV_pump",valve_table,manual+1,FALSE) -> 4 | D19: valves
A20: Number of MOVs for backwash line | B20: tot_back_MOVs | C20: =final_num_tanks*VLOOKUP("back_MOV_vessel",valve_table,manual+1,FALSE)+backwash_pumps*VLOOKUP("back_MOV_pump",valve_table,manual+1,FALSE)+back_tanks*VLOOKUP("back_MOV_tank",valve_table,manual+1,FALSE)+IF(brine_method=1,brine_tanks,num_salt_box)*VLOOKUP("back_MOV_brine",valve_table,manual+1,FALSE)+VLOOKUP("back_MOV_add",valve_table,manual+1,FALSE)+eductors*VLOOKUP("back_MOV_eductor",valve_table,manual+1,FALSE) -> 7 | D20: valves
A21: Number of MOVs for brine line | B21: tot_brine_MOVs | C21: =IF(brine_method=1,brine_tanks,num_salt_box)*VLOOKUP("brine_MOV_tank",valve_table,manual+1,FALSE)+final_num_tanks*VLOOKUP("brine_MOV_vessel",valve_table,manual+1,FALSE) -> 5 | D21: valves
A22: Number of MOVs for bypass line | B22: tot_bp_MOVs | C22: =IF(bp_pct=0,0,VLOOKUP("tot_bp_movs",valve_table,manual+1,FALSE)) -> 0 | D22: valves
A23: Number of MOVs for caustic line | B23: tot_caustic_MOVs | C23: =IF(caustic_pipe_length=0,0,pH_pumps*VLOOKUP("caustic_MOV_pump",valve_table,manual+1,FALSE))+VLOOKUP("chem_MOV_day",valve_table,manual+1,FALSE)*day_tanks -> 0 | D23: valves | E23: Applies only with pH adjustment
A24: Number of MOVs for ferric chloride line | B24: tot_coag_MOVs | C24: =IF(coag_day_gal=0,0,(cm_pumps_coag)*VLOOKUP("chem_MOV_pump",valve_table,manual+1,FALSE)) -> 0 | D24: valves
A25: Number of MOVs for polymer line | B25: tot_polymer_MOVs | C25: =IF(polymer_day=0,0,(cm_pumps_polymer)*VLOOKUP("chem_MOV_pump",valve_table,manual+1,FALSE)) -> 0 | D25: valves
A26: Total number of MOVs | B26: tot_MOVs | C26: =tot_proc_MOVs+tot_back_MOVs+tot_brine_MOVs+tot_bp_MOVs+tot_caustic_MOVs+total_res_MOVs+tot_polymer_MOVs+tot_coag_MOVs -> 16 | D26: valves
A27: Number of manual valves on process line per vessel | B27: proc_man_vessel_cont | C27: =VLOOKUP(IF(Num_tanks=1,"proc_man_vessel_par","proc_man_vessel_ser"),valve_table,manual+1,FALSE) -> 0 | D27: valves/vessel | E27: Depends on whether system is operated in parallel or series (lead/lag)
A28: Number of manual valves for process line | B28: tot_proc_man | C28: =(proc_man_vessel_cont+proc_man_vessel)*final_num_tanks+total_booster_pumps*VLOOKUP("proc_man_pump",valve_table,manual+1,FALSE) -> 2 | D28: valves
A29: Number of manual valves for backwash line | B29: tot_back_man | C29: =final_num_tanks*VLOOKUP("back_man_vessel",valve_table,manual+1,FALSE)+backwash_pumps*VLOOKUP("back_man_pump",valve_table,manual+1,FALSE)+back_tanks*VLOOKUP("back_man_tank",valve_table,manual+1,FALSE)+IF(brine_method=1,brine_tanks,num_salt_box)*VLOOKUP("back_man_brine",valve_table,manual+1,FALSE)+VLOOKUP("back_man_add",valve_table,manual+1,FALSE)+eductors*VLOOKUP("back_man_eductor",valve_table,manual+1,FALSE) -> 0 | D29: valves
A30: Number of manual valves for brine line | B30: tot_brine_man | C30: =IF(brine_method=1,brine_tanks,num_salt_box)*VLOOKUP("brine_man_tank",valve_table,manual+1,FALSE)+final_num_tanks*VLOOKUP("brine_man_vessel",valve_table,manual+1,FALSE) -> 0 | D30: valves
A31: Number of manual valves for bypass line | B31: tot_bp_man | C31: =IF(bp_pct=0,0,VLOOKUP("tot_bp_man",valve_table,manual+1,FALSE)) -> 0 | D31: valves
A32: Number of manual valves for caustic line | B32: tot_caustic_man | C32: =IF(caustic_pipe_length=0,0,pH_pumps*VLOOKUP("caustic_man_pump",valve_table,manual+1,FALSE))+VLOOKUP("chem_man_day",valve_table,manual+1,FALSE)*day_tanks -> 0 | D32: valves | E32: Applies only with pH adjustment
A33: Number of manual valves for ferric chloride line | B33: tot_coag_man | C33: =IF(coag_day_gal=0,0,(cm_pumps_coag)*VLOOKUP("chem_man_pump",valve_table,manual+1,FALSE)) -> 0 | D33: valves
A34: Number of manual valves for polymer line | B34: tot_polymer_man | C34: =IF(polymer_day=0,0,(cm_pumps_polymer)*VLOOKUP("chem_man_pump",valve_table,manual+1,FALSE)) -> 0 | D34: valves
A35: Number of check valves backwash line | B35: tot_back_chv | C35: =back_chv_pump*backwash_pumps -> 0 | D35: valves
A36: Number of check valves caustic line | B36: tot_caustic_chv | C36: =caustic_chv_pump*pH_pumps -> 0 | D36: valves | E36: Applies only with pH adjustment
A37: Number of check valves for ferric chloride line | B37: tot_coag_chv | C37: =coag_chv_pump*cm_pumps_coag -> 0 | D37: valves
A38: Number of check valves polymer line | B38: tot_polymer_chv | C38: =polymer_chv_pump*cm_pumps_polymer -> 0 | D38: valves
A40: Size of flow meters for influent line | B40: in_meter_size | C40: =in_out_pipe_diam -> 1.5 | D40: inches
A41: Size of flow meters for process line | B41: proc_meter_size | C41: =proc_pipe_diam -> 1.5 | D41: inches
A42: Size of flow meters for backwash line | B42: back_meter_size | C42: =back_pipe_diam -> 1 | D42: inches
A43: Number of flow meters for process line | B43: tot_fm_proc | C43: =fm_proc*final_num_tanks -> 0 | D43: units
A45: Total nitrate analyzers | B45: tot_N_analyzer | C45: =IF(contam=2,N_analyzer,0) -> 0 | D45: units
A46: Total level switch/alarms | B46: tot_level_switch | C46: =final_num_tanks*IF(ss_cat2=1,level_switch_small,level_switch) -> 0 | D46: units
A47: Total high/low alarms for backwash | B47: tot_back_alarm | C47: =back_tanks*alarm_back -> 0 | D47: units
A48: Total high/low alarms for brine | B48: tot_brine_alarm | C48: =alarm_brine*IF(brine_method=1,brine_tanks,0) -> 1 | D48: units
A49: Total high/low alarms for NaOH tanks | B49: tot_caustic_alarm | C49: =alarm_caustic*(NaOH_tanks+day_tanks) -> 0 | D49: units
A50: Total turbidity meters | B50: tot_turb_meters | C50: =IF(ss_cat2=1,turb_tank_small*final_num_tanks+add_turb_small,turb_tank*final_num_tanks+add_turb) -> 0 | D50: units
A51: Total conductivity meters | B51: tot_cond_meters | C51: =cond_tank*final_num_tanks+add_cond -> 0 | D51: units
A52: Total pH meters | B52: pH_controls | C52: =IF(ph_adj=1,pH_corr,pH_nocorr) -> 0 | D52: units
A53: Total head loss sensors | B53: tot_head_sens | C53: =IF(ss_cat2=1,head_tank_small,head_tank)*final_num_tanks -> 0 | D53: units
A54: Sampling ports | B54: ports | C54: =ports_tank*final_num_tanks+add_ports+IF(bp_pct>0,ports_bp,0) -> 9 | D54: units
A55: Total drive controllers | B55: tot_switches | C55: =IF(manual=2,0,S_booster_pump*total_booster_pumps+S_back_pump*backwash_pumps+S_res_pump*(res_pumps+cm_pumps_coag+cm_pumps_polymer)+S_eductor*(eductors+res_eductors)+S_mixer*(mixers+cmixers+dmixers+hmixers+polymer_cmixers+coag_cmixers)) -> 1 | D55: units
A57: System Controls
A58: Flow meter lookup code - influent and treated water | B58: fm_lkp_io | C58: =IF(OUTPUT!L244=1,"flow_op",IF(OUTPUT!L245=1,"flow_prop",IF(OUTPUT!L246=1,"flow_ven","flow_mag"))) -> flow_prop | E58: These codes are used to look up SCADA requirements, which depend on the type of flow meter selected.
A59: Flow meter lookup code - process | B59: fm_lkp_proc | C59: =IF(OUTPUT!L249=1,"flow_op",IF(OUTPUT!L250=1,"flow_prop",IF(OUTPUT!L251=1,"flow_ven","flow_mag"))) -> flow_mag
A60: Flow meter lookup code - backwash | B60: fm_lkp_back | C60: =IF(OUTPUT!L254=1,"flow_op",IF(OUTPUT!L255=1,"flow_prop",IF(OUTPUT!L256=1,"flow_ven","flow_mag"))) -> flow_prop
A61: Flow meter lookup code - residuals | B61: fm_lkp_res | C61: =IF(OUTPUT!L259=1,"flow_op",IF(OUTPUT!L260=1,"flow_prop",IF(OUTPUT!L261=1,"flow_ven","flow_mag"))) -> flow_prop
A62: Total discrete inputs | B62: discrete_inputs | C62: =VLOOKUP(fm_lkp_io,port_table,2,FALSE)*tot_fm_in+VLOOKUP(fm_lkp_proc,port_table,2,FALSE)*tot_fm_proc+VLOOKUP(fm_lkp_back,port_table,2,FALSE)*tot_fm_back+VLOOKUP(fm_lkp_res,port_table,2,FALSE)*tot_fm_res+VLOOKUP("alarm",port_table,2,FALSE)*(tot_level_switch+tot_back_alarm+tot_caustic_alarm+tot_brine_alarm+tot_res_alarm)+VLOOKUP("orp",port_table,2,FALSE)*ORP_sensor+VLOOKUP("ph",port_table,2,FALSE)*pH_controls+VLOOKUP("temp",port_table,2,FALSE)*IF(ss_cat2=1,temp_meters_small,temp_meters)+VLOOKUP("cond",port_table,2,FALSE)*tot_cond_meters+VLOOKUP("turb",port_table,2,FALSE)*tot_turb_meters+VLOOKUP("head",port_table,2,FALSE)*tot_head_sens+VLOOKUP("port",port_table,2,FALSE)*ports+VLOOKUP("switch",port_table,2,FALSE)*tot_switches+VLOOKUP("valve",port_table,2,FALSE)*tot_MOVs+VLOOKUP("nitrate",port_table,2,FALSE)*tot_N_analyzer -> 13 | D62: units
A63: Total discrete outputs | B63: discrete_outputs | C63: =IF(manual=2,0,VLOOKUP(fm_lkp_io,port_table,3,FALSE)*tot_fm_in+VLOOKUP(fm_lkp_proc,port_table,3,FALSE)*tot_fm_proc+VLOOKUP(fm_lkp_back,port_table,3,FALSE)*tot_fm_back+VLOOKUP(fm_lkp_res,port_table,3,FALSE)*tot_fm_res+VLOOKUP("alarm",port_table,3,FALSE)*(tot_level_switch+tot_back_alarm+tot_caustic_alarm+tot_brine_alarm+tot_res_alarm)+VLOOKUP("orp",port_table,3,FALSE)*ORP_sensor+VLOOKUP("ph",port_table,3,FALSE)*pH_controls+VLOOKUP("temp",port_table,3,FALSE)*IF(ss_cat2=1,temp_meters_small,temp_meters)+VLOOKUP("cond",port_table,3,FALSE)*tot_cond_meters+VLOOKUP("turb",port_table,3,FALSE)*tot_turb_meters+VLOOKUP("head",port_table,3,FALSE)*tot_head_sens+VLOOKUP("port",port_table,3,FALSE)*ports+VLOOKUP("switch",port_table,3,FALSE)*tot_switches+VLOOKUP("valve",port_table,3,FALSE)*tot_MOVs+VLOOKUP("nitrate",port_table,3,FALSE)*tot_N_analyzer) -> 2 | D63: units
A64: Total analog inputs | B64: analog_inputs | C64: =VLOOKUP(fm_lkp_io,port_table,4,FALSE)*tot_fm_in+VLOOKUP(fm_lkp_proc,port_table,4,FALSE)*tot_fm_proc+VLOOKUP(fm_lkp_back,port_table,4,FALSE)*tot_fm_back+VLOOKUP(fm_lkp_res,port_table,4,FALSE)*tot_fm_res+VLOOKUP("alarm",port_table,4,FALSE)*(tot_level_switch+tot_back_alarm+tot_caustic_alarm+tot_brine_alarm+tot_res_alarm)+VLOOKUP("orp",port_table,4,FALSE)*ORP_sensor+VLOOKUP("ph",port_table,4,FALSE)*pH_controls+VLOOKUP("temp",port_table,4,FALSE)*IF(ss_cat2=1,temp_meters_small,temp_meters)+VLOOKUP("cond",port_table,4,FALSE)*tot_cond_meters+VLOOKUP("turb",port_table,4,FALSE)*tot_turb_meters+VLOOKUP("head",port_table,4,FALSE)*tot_head_sens+VLOOKUP("port",port_table,4,FALSE)*ports+VLOOKUP("switch",port_table,4,FALSE)*tot_switches+VLOOKUP("valve",port_table,4,FALSE)*tot_MOVs+VLOOKUP("nitrate",port_table,4,FALSE)*tot_N_analyzer -> 19 | D64: units
A65: Total analog outputs | B65: analog_outputs | C65: =IF(manual=2,0,VLOOKUP(fm_lkp_io,port_table,5,FALSE)*tot_fm_in+VLOOKUP(fm_lkp_proc,port_table,5,FALSE)*tot_fm_proc+VLOOKUP(fm_lkp_back,port_table,5,FALSE)*tot_fm_back+VLOOKUP(fm_lkp_res,port_table,5,FALSE)*tot_fm_res+VLOOKUP("alarm",port_table,5,FALSE)*(tot_level_switch+tot_back_alarm+tot_caustic_alarm+tot_brine_alarm+tot_res_alarm)+VLOOKUP("orp",port_table,5,FALSE)*ORP_sensor+VLOOKUP("ph",port_table,5,FALSE)*pH_controls+VLOOKUP("temp",port_table,5,FALSE)*IF(ss_cat2=1,temp_meters_small,temp_meters)+VLOOKUP("cond",port_table,5,FALSE)*tot_cond_meters+VLOOKUP("turb",port_table,5,FALSE)*tot_turb_meters+VLOOKUP("head",port_table,5,FALSE)*tot_head_sens+VLOOKUP("port",port_table,5,FALSE)*ports+VLOOKUP("switch",port_table,5,FALSE)*tot_switches+VLOOKUP("valve",port_table,5,FALSE)*tot_MOVs+VLOOKUP("nitrate",port_table,5,FALSE)*tot_N_analyzer) -> 16 | D65: units
A66: I/O Discrete Output Modules | B66: plc_discrete_output | C66: =ROUNDUP(discrete_outputs/32,0) -> 1 | D66: units
A67: I/O Discrete Input Modules | B67: plc_discrete_input | C67: =ROUNDUP(discrete_inputs/32,0) -> 1 | D67: units
A68: I/O Combination Analog Modules | B68: plc_combination_analog | C68: =ROUNDUP((analog_inputs + analog_outputs)/12,0) -> 3 | D68: units
A69: Total number of PLC slots used | B69: plc_slots | C69: =plc_cpu + plc_ethernet + plc_discrete_input + plc_discrete_output + plc_combination_analog -> 9 | D69: units
A70: Expansions required | B70: plc_expansions | C70: =IF(plc_slots<=9,0,ROUNDUP((plc_slots-9)/8,0)) -> 0 | D70: units
A71: PLC Rack/Power Supplies | B71: plc_rack | C71: =1+plc_expansions -> 1 | D71: units
A72: Base Expansion Modules | B72: plc_base_expansion | C72: =plc_expansions -> 0 | D72: units
A73: Base Expansion Controller Modules | B73: plc_base_expansion_controller | C73: =plc_expansions -> 0 | D73: units
A74: Number of computer workstations | B74: workstations | C74: =ROUNDUP(Operator_LOE/2080/shifts_day/workstation_ratio,0) -> 1 | D74: units
A75: Number of printers | B75: printers | C75: =ROUNDUP(workstations/printer_ratio,0) -> 1 | D75: units

Sheet Residuals Management
A1: Residuals Management Calculations
A3: Calculation | B3: Range Name | C3: Value | D3: Units | E3: Guidance
A4: From Inputs
A5: Brine delivery method | B5: brine_method | C5: =IF(brine_method_I="brine mixing tanks",1,2) -> 1 | D5: <-- 1 for brine mixing tanks, 2 for salt saturator
A6: Discharge option for spent brine | B6: res_s2_opt | C6: =IF(res_s2_opt_I="surface water",1,IF(res_s2_opt_I="POTW",2,IF(res_s2_opt_I="evaporation pond",3,IF(res_s2_opt_I="septic system",4,5)))) -> 2 | D6: <-- 1 for direct discharge to surface water, 2 for discharge to POTW, 3 for evaporation pond, 4 for septic system. 5 for hazardous waste disposal
A7: Holding tank for spent brine | B7: res_s1_opt | C7: =IF(OR(res_s2_opt=3,res_s2_opt=4),2,IF(res_s2_opt=5,1,IF(res_s1_opt_I="holding tank",1,2))) -> 2 | D7: <-- 1 for holding tank, 2 for no holding tank
A8: Characteristics of spent resin | B8: media_haz | C8: =IF(media_haz_I="","",IF(media_haz_I="hazardous",2,IF(media_haz_I="radioactive",3,IF(media_haz_I="radioactive hazardous",4,1)))) -> 1 | D8: <-- 1 for non-hazardous, 2 for hazardous, 3 for radioactive, 4 for radioactive hazardous
A9: Characteristics of evaporation pond or holding tank solids | B9: solids_haz | C9: =IF(res_s2_opt=4,1,IF(solids_haz_I="hazardous",2,IF(solids_haz_I="radioactive",3,IF(solids_haz_I="radioactive hazardous",4,1)))) -> 1 | D9: <-- 1 for non-hazardous, 2 for hazardous, 3 for radioactive, 4 for radioactive hazardous
A11: Spent Brine
A12: Single event volume | B12: res_vol | C12: =(total_backwash+vol_brine_sat/(regen_reuse+1)) -> 302.7203352 | D12: gal | E12: Regenerating one vessel
A13: Single out-of-cycle backwash event volume | B13: res_outcycle_vol | C13: =IF(add_backwash_freq=0,0,total_backwash) -> 0 | D13: gal | E13: Backwashing one vessel
A14: Time between events | B14: res_stagger_time | C14: =IF(regen_redun>1,"NA",regen_days*24*60/num_treat_lines) -> 5295.609051 | D14: minutes | E14: NA if continuous regeneration is required
A15: Time between out-of-cycle backwash events | B15: res_outcycle_stagger_time | C15: =add_backwash_freq*24*60/final_num_tanks -> 0 | D15: minutes | E15: Zero indicates no out-of-cycle backwash
A16: Actual residuals discharge flow rate | B16: res_flow_actual | C16: =IF(regen_redun>1,res_vol*regen_redun/regeneration_downtime,IF(res_s1_opt=1,res_vol/res_stagger_time,res_vol*regen_redun/regeneration_downtime)) -> 4.624309383 | D16: gpm | E16: Accounts for flow equalization if holding tanks used
A17: Actual out-of-cycle backwash discharge flow rate | B17: res_outcycle_flow_actual | C17: =IF(add_backwash_freq=0,0,IF(AND(res_s1_opt=1,res_s2_opt<>3),res_outcycle_vol/res_outcycle_stagger_time,total_backwash/backwash_time)) -> 0 | D17: gpm | E17: Accounts for flow equalization if holding tanks used
A18: Design residuals discharge flow rate | B18: res_flow | C18: =IF(regen_redun>1,res_flow_actual,IF(res_s1_opt=1,res_cap_factor*res_vol/res_stagger_time,res_flow_actual)) -> 4.624309383 | D18: gpm | E18: Accounts for less than perfect staggering if holding tanks are used
A19: Design out-of-cycle residuals discharge flow rate | B19: res_outcycle_flow | C19: =IF(add_backwash_freq=0,0,IF(AND(res_s1_opt=1,res_s2_opt<>3),res_cap_factor*res_outcycle_vol/res_outcycle_stagger_time,res_outcycle_flow_actual)) -> 0 | D19: gpm | E19: Accounts for less than perfect staggering if holding tanks are used
A20: Annual residuals dischage | B20: res_flow_annual | C20: =IF(regen_redun>1,res_flow*365*24*60,res_vol*final_num_tanks*(365/regen_days))+IF(add_backwash_freq=0,0,res_outcycle_vol*final_num_tanks*(365/add_backwash_freq)) -> 30045.61074 | D20: gal | E20: Total including any out-of-cycle backwash
A21: Brine portion of annual residuals discharge | B21: brine_flow_annual | C21: =IF(regen_redun>1,(vol_brine/(regen_reuse+1)*regen_redun/regeneration_downtime)*365*24*60,vol_brine/(regen_reuse+1)*final_num_tanks*(365/regen_days)) -> 7015.713276 | D21: gal
A23: Evaporation Pond or Holding Tank Solids
A24: TSS in residuals (influent TSS removal contribution) | C24: =IF(regen_redun=1,(influent_TSS-effluent_TSS)*average_flow*1000000*regen_days/(res_vol*final_num_tanks),influent_TSS*average_flow_rate/res_flow) -> 127.5560691 | D24: ppm
A25: TSS in residuals (media attrition contribution) | C25: =resin_loss_vol_annual*media_density*453590/(res_flow_annual*3.78) -> 68.28322246 | D25: ppm
A26: TSS in residuals | B26: TSS_residuals | C26: =SUM(C24:C25) -> 195.8392916 | D26: ppm
A27: Evaporation pond TSS accumulation | C27: =IF(res_s2_opt=3,TSS_residuals*res_flow_annual*3.785/1000/453.59/dredging_freq,0) -> 0 | D27: lbs
A28: Evaporation pond TDS (brine) accumulation | C28: =IF(res_s2_opt=3,brine_conc*brine_flow_annual/dredging_freq,0) -> 0 | D28: lbs
A29: Contaminant in residuals | B29: cont_conc_res | C29: =IF(regen_redun=1,C_0*average_flow*1000000*regen_days/(res_vol*final_num_tanks),C_0*average_flow_rate/res_flow) -> 4.251868971 | D29: ppm
A30: Evaporation pond contaminant accumulation | C30: =IF(res_s2_opt=3,cont_conc_res*res_flow_annual*3.785/1000/453.59/dredging_freq,0) -> 0 | D30: lbs
A31: Total evaporation pond solids accumulation | B31: ep_solids | C31: =C30+C28+C27 -> 0 | D31: lbs | E31: Conservative estimate assumes all TSS removed in regeneration, no brine loss during regeneration, 100% influent contaminant removal, and 100% removal of contaminant during regeneration.
A32: Holding/septic tank annual TSS accumulation | C32: =IF(OR(res_holding<>"none",num_sept_tanks<>0),TSS_residuals*IF(coag_res=1,coag_TSSrem,htank_TSSrem)*res_flow_annual*3.785/1000/453.59,0) -> 0 | D32: lbs/year
A33: Holding tank annual coagulant accumulation | C33: =IF(AND(res_holding<>"none",coag_res=1),IF(coag_type<>1,coag_dose*coag_spf*8.34*res_flow_annual/10^6,0)+IF(coag_type<>2,polymer_dose*polymer_spf*8.34*res_flow_annual/10^6,0),0) -> 0 | D33: lbs/year
A34: Holding tank annual solids accumulation | B34: ht_solids | C34: =SUM(C32:C33) -> 0 | D34: lbs/year
A35: Holding tank cleaning frequency | B35: ht_clean_freq | C35: =IF(res_holding="none",0,ROUNDUP((ht_solids/ht_solids_density*7.48)/(IF(res_holding="tanks",htanks*htank_vol,hbasins*hbasin_vol)*htank_clean_pct),0)) -> 0 | D35: times per year
A36: Septic tank cleaning frequency | B36: septic_disp_freq | C36: =IF(num_sept_tanks=0,0,(ht_solids/ht_solids_density*7.48)/(num_sept_tanks*sept_tank_vol*htank_clean_pct)) -> 0 | D36: times per year
A37: Residual solids quantity (total per event) | B37: res_solids | C37: =IF(res_s2_opt=3,ep_solids,IF(ht_solids=0,0,IF(res_s2_opt=4,ht_solids/septic_disp_freq,ht_solids/ht_clean_freq)))/2000 -> 0 | D37: tons
A38: Residual solids disposal frequency | B38: sol_disp_freq | C38: =IF(res_s2_opt=3,dredging_freq,IF(res_s2_opt=4,septic_disp_freq,IF(res_s1_opt=1,ht_clean_freq,0))) -> 0 | D38: times per year
A40: Spent Media
A41: Replacement/disposal frequency | B41: disp_freq | C41: =1/resin_life -> 0.1428571429 | D41: times per year
A42: Spent resin quantity (total per event) | B42: spent_media | C42: =(total_media-resin_loss_vol_annual*media_density)/2000 -> 0.1814196126 | D42: tons | E42: Reduced by one year's resin loss, assuming disposal takes place before adding loss replacement for the year
A43: Spent resin quantity (average per year) | B43: spent_media_yr | C43: =spent_media*disp_freq -> 0.02591708752 | D43: tons
A45: Capital Items
A46: Holding tanks (for flow equalization)
A47: Maximum holding tank/basin size | B47: max_htank_size | C47: =MAX(VLOOKUP(10^6,st_bwt_cost_cl,1)-1,VLOOKUP(10^6,fg_bwt_cost_cl,1)-1,VLOOKUP(10^6,hdpe_bwt_cost_cl,1)-1) -> 289000 | D47: gal | E47: The largest size for which costs are available.
A48: Number of holding tanks | B48: htanks | C48: =IF(coag_res=1,0,IF(OR(regen_redun>1,res_s1_opt<>1),0,ROUNDUP(regen_redun*res_cap_factor*res_vol/max_htank_size,0))) -> 0 | D48: units | E48: Use basins, instead of tanks, when cogulant is added
A49: Holding tank volume | B49: htank_vol | C49: =IF(htanks=0,0,res_cap_factor*MAX(regen_redun*res_vol,res_outcycle_vol)/htanks) -> 0 | D49: gal
A51: Holding basins (for flow equalization)
A52: Holding basin redundancy factor | B52: hbasin_redun | C52: =IF(coag_res=1,ROUNDUP(res_coag_settle_time/res_stagger_time,0),1) -> 1 | E52: To account for minumum coagulation time, when concrete basins are used, rather than tanks
A53: Number of holding basins | B53: hbasins | C53: =IF(OR(regen_redun>1,res_s1_opt<>1),0,hbasins_default*hbasin_redun) -> 0 | D53: units | E53: If concrete basins are used, rather than tanks
A54: Total residuals storage volume in cubic feet | B54: total_hvol_ft | C54: =IF(hbasins=0,0,res_cap_factor*res_vol*hbasin_redun/7.48) -> 0 | D54: cubic feet | E54: If concrete basins are used, rather than tanks
A55: Residuals storage volume per basin in cubic feet | B55: hvol_ft | C55: =IF(hbasins=0,0,total_hvol_ft/hbasins) -> 0 | D55: cubic feet | E55: If concrete basins are used, rather than tanks
A56: Residuals basin operating depth | B56: hbasin_op_depth | C56: =IF(hbasins=0,0,ROUNDUP(hvol_ft^(1/3)*holding_ratio,0)) -> 0 | D56: ft | E56: If concrete basins are used, rather than tanks
A57: Residuals basin width | B57: hbasin_width | C57: =IF(hbasins=0,0,ROUNDUP((hvol_ft/hbasin_op_depth)^0.5,0)) -> 0 | D57: ft | E57: If concrete basins are used, rather than tanks
A58: Residuals basin length | B58: hbasin_length | C58: =hbasin_width -> 0 | D58: ft | E58: If concrete basins are used, rather than tanks
A59: Residuals basin depth including freeboard | B59: hbasin_depth | C59: =IF(hbasins=0,0,hbasin_op_depth+holding_freeboard) -> 0 | D59: ft | E59: If concrete basins are used, rather than tanks
A60: Residuals basin volume | B60: hbasin_vol | C60: =ROUND(hbasin_width*hbasin_length*hbasin_depth*7.48,0) -> 0 | D60: gal | E60: If concrete basins are used, rather than tanks
A61: Concrete volume | B61: hconc_vol | C61: =(2*(hbasin_width*hbasins+conc_thick*(hbasins+1))*hbasin_depth*conc_thick+(hbasins+1)*hbasin_length*hbasin_depth*conc_thick+(hbasin_length+2*conc_thick)*(hbasin_width*hbasins+conc_thick*(hbasins+1))*conc_thick)/27 -> 0.07407407407 | D61: cubic yards | E61: If concrete basins are used, rather than tanks
A62: Excavation volume | B62: hexcavation_vol | C62: =IF(hbasins=0,0,((hbasins*hbasin_width+(hbasins+1)*conc_thick+overexcavate)*(hbasin_length+2*conc_thick+overexcavate)*(hbasin_depth+conc_thick+overexcavate)+0.5*(3*(hbasin_depth+conc_thick+overexcavate)*(hbasin_depth+conc_thick+overexcavate)*(hbasin_length+2*conc_thick+overexcavate)))/27) -> 0 | D62: cubic yards | E62: If concrete basins are used, rather than tanks
A63: Backfill volume | B63: hbackfill_vol | C63: =IF(hbasins=0,0,hexcavation_vol-(hbasins*hbasin_width+(hbasins+1)*conc_thick)*(hbasin_length+2*conc_thick)*(hbasin_depth+conc_thick)/27) -> 0 | D63: cubic yards | E63: If concrete basins are used, rather than tanks
A64: Railing length | B64: hrailing | C64: =IF(hbasins=0,0,2*(hbasins*hbasin_width+2*conc_thick/2+(hbasins-1)*conc_thick)+2*(hbasin_length+2*conc_thick/2)) -> 0 | D64: lf | E64: If concrete basins are used, rather than tanks
A66: Residuals holding type selected | B66: res_holding | C66: =IF(AND(hbasins<>0,coag_res=1),"basins",IF(OUTPUT!L66=1,"basins",IF(OR(OUTPUT!L67=1,OUTPUT!L68=1,OUTPUT!L69=1),"tanks","none"))) -> none | E66: Basins when coagulant is added; otherwise based on priority lookups on the output sheet
A68: Holding Tank Mixers (if coagulant is used)
A69: Max holding tank mixer horsepower | B69: hmix_hp_max | C69: =VLOOKUP(10^6,imp_mix_cost_cl,1)-0.1 -> 30 | D69: hp | E69: The largest impeller mixer size available
A70: Mixers per holding tank | B70: hmix_per_tank | C70: =IF(AND(res_holding<>"none",coag_res=1),ROUNDUP(IF(res_holding="tanks",htank_vol,hbasin_vol)/1000*hmix_hp_per/hmix_hp_max,0),0) -> 0 | D70: units
A71: Number of holding tank mixers | B71: hmixers | C71: =IF(AND(res_holding<>"none",coag_res=1),IF(res_holding="tanks",htanks,hbasins)*hmix_per_tank,0) -> 0 | D71: units
A72: Mixer size for holding tanks | B72: hmix_size | C72: =IF(AND(res_holding<>"none",coag_res=1),MAX(min_hmix_hp,IF(res_holding="tanks",htank_vol,hbasin_vol)/1000*hmix_hp_per/hmix_per_tank),0) -> 0 | D72: hp
A74: Ferric Chloride Addition
A75: Pounds of pure ferric chloride needed per event | B75: coag_day_lbs | C75: =IF(AND(res_holding<>"none",coag_res=1,coag_type<>1),coag_dose*8.34*MAX(res_vol,res_outcycle_vol)/10^6,0) -> 0 | D75: lbs
A76: Gallons of solution needed per event | B76: coag_day_gal | C76: =coag_day_lbs/coag_pct/coag_density -> 0 | D76: gal
A77: Pounds of pure ferric chloride in storage | B77: coag_storage_lbs | C77: =IF(AND(res_holding<>"none",coag_res=1,coag_type<>1),coag_dose*8.34*res_flow_annual/10^6/365*cstore_days,0) -> 0 | D77: lbs
A78: Ferric chloride storage in gallons | B78: coag_storage_gal | C78: =coag_storage_lbs/coag_pct/coag_density -> 0 | D78: gal
A79: Number of ferric chloride storage tanks | B79: coag_tanks | C79: =ROUNDUP(coag_storage_gal/max_chem_tank_size_noSS,0) -> 0 | D79: units
A80: Ferric chloride storage tank size | B80: coag_tank_vol | C80: =IF(coag_tanks>0,ROUNDUP(coag_storage_gal/coag_tanks,0),0) -> 0 | D80: gal
A81: Mixers per ferric chloride storage tank | B81: coag_cmix_per_tank | C81: =IF(AND(include_cmix=1,coag_tanks<>0),ROUNDUP(coag_tank_vol/1000*cmix_hp_per/cmix_hp_max,0),0) -> 0 | D81: units
A82: Number of ferric chloride storage tank mixers | B82: coag_cmixers | C82: =IF(AND(res_holding<>"none",coag_res=1,coag_type<>1),coag_tanks*coag_cmix_per_tank,0) -> 0 | D82: units
A83: Mixer size for storage tanks | B83: coag_cmix_size | C83: =IF(coag_cmixers<>0,MAX(min_cmix_hp,coag_tank_vol/1000*cmix_hp_per/coag_cmix_per_tank),0) -> 0 | D83: hp
A84: Ferric chloride solution feed rate | B84: coag_rate | C84: =IF(coag_day_gal=0,0,coag_dose*8.34*MAX(res_vol/regeneration_downtime,res_outcycle_vol/backwash_time)/10^6/coag_density) -> 0 | D84: gph
A85: Number of ferric chloride metering pumps | B85: cm_pumps_coag | C85: =IF(coag_day_gal=0,0,ROUNDUP(coag_rate/max_cm_pump_size_noSS,0)+NRD_cm_pump) -> 0 | D85: units
A86: Ferric chloride metering pump rating | B86: cm_pump_rating_coag | C86: =IF(coag_day_gal=0,0,MAX(min_chem_flow,coag_rate*(1+pump_safety_factor))/(cm_pumps_coag-NRD_cm_pump)) -> 0 | D86: gph
A87: Pounds of bulk ferric chloride solution in storage | B87: coag_storage_lbs_bulk | C87: =coag_storage_gal*coag_density -> 0 | D87: lbs
A89: Secondary Containment for Ferric Chloride
A90: Minimum volume required | B90: coag_cont_volume | C90: =MAX(coag_tanks*coag_tank_vol*sec_cont_pct_of_total,coag_tank_vol*sec_cont_pct_of_largest)/7.48 -> 0 | D90: cubic feet | E90: 7.48 converts gallons to cubic feet
A91: Footprint available | B91: coag_cont_fp | C91: =IF(coag_tanks=0,0,coag_fp-coag_tanks*PI()*(coag_st_diam/2)^2) -> 0 | D91: square feet | E91: Total footprint minus displacement by tanks themselves
A92: Curb height required | B92: coag_curb_height | C92: =IF(coag_tanks=0,0,coag_cont_volume/coag_cont_fp+sec_cont_freeboard/12) -> 0 | D92: feet
A93: Curb thickness | B93: coag_curb_thick | C93: =IF(coag_tanks=0,0,MIN(sec_cont_max_thick,coag_curb_height)) -> 0 | D93: feet
A94: Curb length (long side) | B94: coag_curb_len_long | C94: =IF(coag_tanks=0,0,coag_tanks*coag_st_diam+2*space_coag_st+(coag_tanks-1)*space_coag_st+2*coag_curb_thick) -> 0 | D94: feet
A95: Curb length (short side) | B95: coag_curb_len_short | C95: =IF(coag_tanks=0,0,coag_st_diam+2*space_coag_st) -> 0 | D95: feet
A96: Curb concrete volume | B96: coag_curb_concrete | C96: =IF(coag_tanks=0,0,ROUNDUP((coag_curb_len_long*2+coag_curb_len_short*2)*coag_curb_height*coag_curb_thick/27,0)) -> 0 | D96: cubic yards | E96: 27 converts cubic feet to cubic yards
A97: Chemical resistant coating required | B97: coag_coating_gal | C97: =IF(coag_tanks=0,0,ROUNDUP((coag_fp+2*(coag_curb_len_long-2*coag_curb_thick)*coag_curb_height+2*coag_curb_len_short*coag_curb_height)/sec_cont_coating_cvg,0)) -> 0 | D97: gallons | E97: Covers total footprint plus inside surface and top of curbs
A99: Polymer Addition
A100: Polymer needed per event | B100: polymer_day | C100: =IF(AND(res_holding<>"none",coag_res=1,coag_type<>2),polymer_dose*8.34*MAX(res_vol,res_outcycle_vol)/10^6/polymer_density,0) -> 0 | D100: gal
A101: Polymer storage in gallons | B101: polymer_storage | C101: =IF(AND(res_holding<>"none",coag_res=1,coag_type<>2),polymer_dose*8.34*res_flow_annual/10^6/polymer_density/365*cstore_days,0) -> 0 | D101: gal
A102: Polymer storage in pounds | B102: polymer_storage_lbs | C102: =IF(AND(res_holding<>"none",coag_res=1,coag_type<>2),polymer_dose*8.34*res_flow_annual/10^6/365*cstore_days,0) -> 0 | D102: lbs
A103: Number of chemical storage tanks | B103: polymer_tanks | C103: =ROUNDUP(polymer_storage/max_chem_tank_size,0) -> 0 | D103: units
A104: Polymer storage tank size | B104: polymer_tank_vol | C104: =IF(polymer_tanks>0,ROUNDUP(polymer_storage/polymer_tanks,0),0) -> 0 | D104: gal
A105: Mixers per storage tank | B105: polymer_cmix_per_tank | C105: =IF(AND(include_cmix=1,polymer_tanks<>0),ROUNDUP(polymer_tank_vol/1000*cmix_hp_per/cmix_hp_max,0),0) -> 0 | D105: units
A106: Number of storage tank mixers | B106: polymer_cmixers | C106: =IF(AND(res_holding<>"none",coag_res=1,coag_type<>2),polymer_tanks*polymer_cmix_per_tank,0) -> 0 | D106: units
A107: Mixer size for storage tanks | B107: polymer_cmix_size | C107: =IF(polymer_cmixers<>0,polymer_tank_vol/1000*cmix_hp_per/polymer_cmix_per_tank,0) -> 0 | D107: hp
A108: Solution feed rate | B108: polymer_rate | C108: =IF(polymer_day=0,0,polymer_dose*8.34*MAX(res_vol/regeneration_downtime,res_outcycle_vol/backwash_time)/10^6/polymer_density) -> 0 | D108: gph
A109: Number of chemical metering pumps | B109: cm_pumps_polymer | C109: =IF(polymer_day=0,0,ROUNDUP(polymer_rate/max_cm_pump_size,0)+NRD_cm_pump) -> 0 | D109: units
A110: Chemical metering pump rating | B110: cm_pump_rating_polymer | C110: =IF(polymer_day=0,0,MAX(min_chem_flow,polymer_rate*(1+pump_safety_factor)/(cm_pumps_polymer-NRD_cm_pump))) -> 0 | D110: gph
A112: Pumps
A113: Number of pumps | B113: res_pumps | C113: =IF(res_holding<>"none",ROUNDUP(MAX(res_flow,res_outcycle_flow)*(1+pump_safety_factor)/max_pump_size,0)+NRD_res_pump,0) -> 0 | D113: units
A114: Pump design rating | B114: res_pump_rating | C114: =IF(res_holding<>"none",MAX(res_flow,res_outcycle_flow)*(1+pump_safety_factor)/(res_pumps-NRD_res_pump),0) -> 0 | D114: gpm
A116: Solids transfer for holding tanks
A117: Transfer rate required | B117: res_transfer_rate | C117: =res_solids*2000/transfer_time -> 0 | D117: lbs/hr
A118: Transfer rate in gallons | B118: res_transfer_rate_gal | C118: =res_transfer_rate/(ht_solids_density/7.48*60) -> 0 | D118: gpm
A119: Number of slurry pump systems | B119: res_slurry_pumps | C119: =IF(res_transfer_method=1,1,0) -> 0 | D119: units
A120: Maximum eductor size | B120: max_eductor_size | C120: =VLOOKUP(10^6,eductor_size_table_cl,1) -> 53.5 | D120: gpm | E120: The largest size for which costs are available.
A121: Number of eductors | B121: res_eductors | C121: =IF(res_transfer_method<>2,0,ROUNDUP(res_transfer_rate_gal/max_eductor_size,0)) -> 0 | D121: units
A122: Effective transfer rate | B122: res_eff_transfer_rate | C122: =IF(res_eductors=0,0,res_transfer_rate_gal/res_eductors) -> 0 | D122: gpm
A123: Eductor size | B123: res_eductor_size | C123: =IF(res_transfer_method=2,VLOOKUP(res_eff_transfer_rate,eductor_size_table_cl,2),"NA") -> NA | D123: inches
A125: Solids drying pad
A126: Area required | B126: solids_pad_area | C126: =IF(res_s2_opt=4,0,ROUNDUP(res_solids*2000/ht_solids_density/solids_storage_height,-1)) -> 0 | D126: square ft
A127: Concrete | B127: solids_pad_concrete | C127: =ROUNDUP(solids_pad_area*IF(ss_cat2=1,pad_thick_small,pad_thick)/27,0) -> 0 | D127: cubic yds
A129: Evaporation Ponds
A130: Total open surface area required | B130: ep_total_sa | C130: =IF(res_s2_opt=3,(res_flow_annual/7.48)*ep_safety_factor/((pan_evap*evap_ratio-precip)*0.0328),0) -> 0 | D130: square feet
A131: Required depth for solids accumulation | B131: ep_solids_depth | C131: =IF(res_s2_opt=3,ep_solids/ep_solids_density/ep_total_sa,0) -> 0 | D131: feet
A132: Required depth for liquid accumulation | B132: ep_water_depth | C132: =IF(res_s2_opt=3,(res_flow_annual/7.48)*winter_days/365/ep_total_sa,0) -> 0 | D132: feet
A133: Total excavated depth | B133: ep_depth | C133: =IF(res_s2_opt=3,ep_solids_depth+ep_water_depth+ep_freeboard,0) -> 0 | D133: feet | E133: Additional freeboard provided above grade by dike
A134: Number of cells | B134: ep_cells | C134: =IF(res_s2_opt=3,IF(ROUNDUP(ep_total_sa/(max_ep_cell_area*43560),0)<min_ep_cells,min_ep_cells,ROUNDUP(ep_total_sa/(max_ep_cell_area*43560),0)),0) -> 0 | D134: cells
A135: Cell side length | B135: ep_cell_side | C135: =IF(res_s2_opt=3,SQRT(ep_total_sa/ep_cells),0) -> 0 | D135: feet
A136: Total excavation volume | B136: ep_excavation_vol | C136: =IF(res_s2_opt=3,ROUNDUP(((ep_cell_side+ep_overexcavate)^2*(ep_depth+ep_overexcavate)+0.5*(3*(ep_depth+ep_overexcavate)*(ep_cell_side+ep_overexcavate)*(ep_depth+ep_overexcavate)))*ep_cells/27,0),0) -> 0 | D136: cubic yards
A137: Total backfill volume | B137: ep_backfill_vol | C137: =IF(res_s2_opt=3,ROUNDUP(ep_excavation_vol-(ep_cell_side^2*ep_depth*ep_cells)/27,0),0) -> 0 | D137: cubic yards
A138: Dike volume | B138: dike_volume | C138: =IF(res_s2_opt=3,ep_cells*ep_cell_side*4*dike_xsection/27,0) -> 0 | D138: cubic yards
A139: Liner area | B139: liner_area | C139: =(ep_cell_side^2+ep_cell_side*(ep_depth+2)*4)*ep_cells -> 0 | D139: square feet | E139: Assumes liner extends 2 feet up dike side slope
A141: Piping
A142: Pipe length | B142: res_pipe_length | C142: =res_pipe_mult*facil_length+add_res_pipe_length -> 50 | D142: ft
A143: Pipe diameter | B143: res_pipe_diam | C143: =MAX(min_res_pipe_size,VLOOKUP(MAX(res_flow,res_outcycle_flow),pipe_size_table_cl,2)) -> 1 | D143: inches
A144: Buried pipe length | B144: buried_res_pipe_length | C144: =IF(res_s2_opt=5,0,add_res_pipe_length) -> 40 | D144: ft
A145: Trench depth to top of pipe | B145: res_trn_depth | C145: =MAX(frost,min_trench_depth) -> 38 | D145: in. diam
A146: Thrust force | B146: res_thrust_force | C146: =VLOOKUP(res_pipe_diam,thrust_block_table_cl,2)*2.2 -> 764.7983868 | D146: inches
A147: Bearing Area (L x H) | B147: res_bearing_area | C147: =1.5*res_thrust_force/(soil_dens*(res_trn_depth/12+res_pipe_diam/12)*Coeff_Kp*Reduction) -> 2.597436815 | D147: lbs
A148: L | C148: =res_bearing_area/C149 -> 2.279226542 | D148: square ft
A149: H | C149: =(res_bearing_area/2)^0.5 -> 1.139613271 | D149: ft
A150: F | C150: =MAX(0.5,res_pipe_diam/12) -> 0.5 | D150: ft
A151: T | C151: =C148/2 -> 1.139613271 | D151: ft
A152: Thrust block volume | B152: res_block_vol | C152: =IF(OR(buried_res_pipe_length=0,res_pipe_diam=0),0,(C151+(C144/12)/2)*(C148+C150)/2*C149/27) -> 0.1645957732 | D152: cy
A153: Trench cross-section area | B153: res_trench_area | C153: =IF(res_pipe_diam=0,0,(res_pipe_diam/12+2)*(bedding_depth/12+res_pipe_diam/12+res_trn_depth/12)+(bedding_depth/12+res_pipe_diam/12+res_trn_depth/12)^2*TAN(trench_angle)) -> 21.875 | D153: cy
A154: Trench volume to discharge point | C154: =res_trench_area*buried_res_pipe_length/27 -> 32.40740741 | D154: square ft
A155: Trench volume total | B155: res_trench_vol | C155: =IF(OR(buried_res_pipe_length=0,res_pipe_diam=0),0,C154+res_block_vol) -> 32.57200318 | D155: cy
A156: Bedding cross sectional surface area | C156: =IF(res_pipe_diam=0,0,(res_pipe_diam/12+2)*(bedding_depth/12+res_pipe_diam/12*bedding_pct)+(bedding_depth/12+res_pipe_diam/12*bedding_pct)^2*TAN(trench_angle)-((res_pipe_diam/12/2)^2*ACOS((res_pipe_diam/12/2-bedding_pct*res_pipe_diam/12)/(res_pipe_diam/12/2))-(res_pipe_diam/12/2-res_pipe_diam/12*bedding_pct)*((2*res_pipe_diam/12/2*res_pipe_diam/12*bedding_pct-(res_pipe_diam/12*bedding_pct)^2)^0.5))) -> 1.355270512 | D156: square ft
A157: Bedding volume | B157: res_pipe_bedding_vol | C157: =C156*buried_res_pipe_length/2/27 -> 1.003904083 | D157: cy
A159: Valves and instrumentation
A160: Residuals valve size | B160: res_valve_size | C160: =res_pipe_diam -> 1 | D160: inches
A161: Number of MOVs for residuals line | B161: total_res_MOVs | C161: =VLOOKUP("res_MOV_pump",valve_table,manual+1,FALSE)*res_pumps+VLOOKUP("res_MOV_tank",valve_table,manual+1,FALSE)*IF(res_holding="tanks",htanks,IF(res_holding="basins",hbasins,0))+VLOOKUP("res_MOV_ep",valve_table,manual+1,FALSE)*ep_cells -> 0 | D161: valves
A162: Number of manual valves for residuals line | B162: total_res_man | C162: =VLOOKUP("res_man_pump",valve_table,manual+1,FALSE)*res_pumps+VLOOKUP("res_man_tank",valve_table,manual+1,FALSE)*IF(res_holding="tanks",htanks,IF(res_holding="basins",hbasins,0))+VLOOKUP("res_man_ep",valve_table,manual+1,FALSE)*ep_cells -> 0 | D162: valves
A163: Number of check valves for residuals line | B163: tot_res_chv | C163: =res_chv_pump*res_pumps+IF(res_pumps=0,res_chv_no_pump,0) -> 1 | D163: valves
A164: Total high/low alarms | B164: tot_res_alarm | C164: =IF(res_holding="tanks",htanks,IF(res_holding="basins",hbasins,0))*alarm_res -> 0 | D164: units
A165: Residuals flow meter size | B165: res_meter_size | C165: =res_pipe_diam -> 1 | D165: inches
A167: Septic System
A168: Maximum septic tank volume | B168: max_sept_tank_vol | C168: =VLOOKUP(10^6,septic_tank_cost_cl,1)-1 -> 100000 | D168: gal | E168: The largest size for which costs are available
A169: Number of septic tanks | B169: num_sept_tanks | C169: =IF(res_s2_opt<>4,0,ROUNDUP(res_vol*sept_tank_sf/max_sept_tank_vol,0)) -> 0 | D169: units
A170: Septic tank volume | B170: sept_tank_vol | C170: =IF(num_sept_tanks=0,0,MAX(res_vol*sept_tank_sf,min_sept_tank_vol)/num_sept_tanks) -> 0 | D170: gal
A171: Septic discharge design flow | B171: sept_design_flow | C171: =IF(num_sept_tanks=0,0,IF(regen_redun>1,res_flow_actual*60*24,res_vol*sept_tank_sf/MIN(min_sept_disch_time,res_stagger_time/(24*60)))) -> 0 | D171: gpd
A172: Inflitration area required | B172: sept_infil_area | C172: =sept_design_flow/sept_LTAR -> 0 | D172: sq ft
A173: Trench bottom area required | B173: sept_trench_bot_area | C173: =sept_infil_area*sept_trench_w/(sept_trench_w+2*sept_gravel_d_below) -> 0 | D173: sq ft | E173: Typical state/local regulations allow trench sides below pipe to be counted as part of infiltration area
A174: Number of trenches required | B174: sept_trenches | C174: =IF(num_sept_tanks=0,0,MAX(sept_min_trenches,ROUNDUP(sept_trench_bot_area/(sept_trench_w*sept_max_trench_l),0))) -> 0
A175: Trench length | B175: sept_trench_l | C175: =IF(num_sept_tanks=0,0,sept_trench_bot_area/(sept_trenches*sept_trench_w)) -> 0 | D175: feet
A176: Drain field gravel required | B176: sept_gravel_vol | C176: =sept_trench_l*sept_trenches*sept_trench_w*sept_gravel_d/27 -> 0 | D176: cu yd
A177: Trench excavation required | B177: sept_trench_excav_vol | C177: =sept_trench_l*sept_trenches*sept_trench_d*sept_trench_w/27 -> 0 | D177: cu yd
A178: Septic tank side length | B178: sept_tank_side | C178: =(sept_tank_vol/7.48)^(1/3) -> 0 | D178: feet | E178: Assumes cube shape for simplicity
A179: Tank excavation required | B179: sept_tank_exav_vol | C179: =num_sept_tanks*(sept_tank_vol/7.48+(sept_tank_side+sept_overexcav*2)^2*sept_overexcav+(sept_tank_side+sept_overexcav*2)*sept_tank_side*2*sept_overexcav+sept_tank_side^2*2*sept_overexcav)/27 -> 0 | D179: cu yd
A180: Number of distribution boxes | B180: sept_dist_boxes | C180: =ROUNDUP(sept_trenches/sept_dist_connections,0) -> 0
A181: Septic distribution pipe length | B181: sept_pipe_length | C181: =sept_trenches*sept_trench_l -> 0 | D181: feet | E181: Assumes piping to septic tank and laterals between trenches are accounted for by existing residuals piping cost
A182: Drain field land area required | B182: sept_fp | C182: =IF(num_sept_tanks=0,0,((sept_trench_l+sept_buffer*2)*(sept_trenches*sept_trench_w+(sept_trenches-1)*sept_trench_dist+sept_buffer*2))+sept_tank_side^2) -> 0 | D182: sq ft
A184: O&M Items
A185: Pumps
A186: Pump operating horsepower | C186: =IF(res_pumps=0,0,MAX(res_flow_actual,res_outcycle_flow_actual)*res_pump_psi/(res_pumps-NRD_res_pump)/booster_pump_efficiency/14.7*33.9*8.34/550/60) -> 0 | D186: hp
A187: Energy per pump | C187: =C186*0.7457/1000*24*365 -> 0 | D187: MWh/yr
A188: Energy for all active pumps | B188: res_pump_energy | C188: =IF(res_pumps=0,0,C187*(res_pumps-NRD_res_pump)) -> 0 | D188: MWh/yr
A189: Residuals pump material cost | B189: res_pump_mtl | C189: =IF(res_pumps=0,0,OUTPUT!J196*booster_pump_maintenance) -> 0 | D189: /yr
A191: Coagulant Use
A192: Annual ferric chloride use (lbs bulk solution) | B192: coag_yr | C192: =IF(AND(res_holding<>"none",coag_res=1),coag_dose*8.34*res_flow_annual/10^6,0)/coag_pct -> 0 | D192: lbs
A193: Annual polymer use | B193: polymer_yr | C193: =IF(AND(res_holding<>"none",coag_res=1, coag_type<>2),polymer_dose*8.34*res_flow_annual/10^6,0) -> 0 | D193: lbs
A195: Ferric Chloride Purchasing
A196: Quantity required for large quantity purchase | C196: =VLOOKUP("Ferric Chloride - Large Qty",chem_break_table_cl,2,FALSE) ->  | D196: lbs | E196: #N/A indicates that price data do not depend on volume purchased.
A197: Quantity required for mid quantity purchase | C197: =VLOOKUP("Ferric Chloride - Mid Qty",chem_break_table_cl,2,FALSE) ->  | D197: lbs | E197: #N/A indicates that price data do not depend on volume purchased.
A198: Quantity required for small quantity purchase | C198: =VLOOKUP("Ferric Chloride - Small Qty",chem_break_table_cl,2,FALSE) ->  | D198: lbs | E198: #N/A indicates that price data do not depend on volume purchased.
A199: Purchase Type | B199: coag_purchase | C199: =IF(AND(ISNA(C196),ISNA(C197),ISNA(C198)),"",IF(coag_storage_lbs_bulk>=C196," - Large Qty",IF(coag_storage_lbs_bulk>=C197," - Mid Qty"," - Small Qty"))) ->  | E199: Returns descriptive term based on volume of each purchase for use in determining pricing. Blank indicates that price data do not depend on volume purchased.
A201: Polymer Purchasing
A202: Quantity required for large quantity purchase | C202: =VLOOKUP("Polymers - Large Qty",chem_break_table_cl,2,FALSE) ->  | D202: lbs | E202: #N/A indicates that price data do not depend on volume purchased.
A203: Quantity required for mid quantity purchase | C203: =VLOOKUP("Polymers - Mid Qty",chem_break_table_cl,2,FALSE) ->  | D203: lbs | E203: #N/A indicates that price data do not depend on volume purchased.
A204: Quantity required for small quantity purchase | C204: =VLOOKUP("Polymers - Small Qty",chem_break_table_cl,2,FALSE) ->  | D204: lbs | E204: #N/A indicates that price data do not depend on volume purchased.
A205: Purchase Type | B205: polymer_purchase | C205: =IF(AND(ISNA(C202),ISNA(C203),ISNA(C204)),"",IF(polymer_storage_lbs>=C202," - Large Qty",IF(polymer_storage_lbs>=C203," - Mid Qty"," - Small Qty"))) ->  | E205: Returns descriptive term based on volume of each purchase for use in determining pricing. Blank indicates that price data do not depend on volume purchased.
A207: POTW Discharge Fees
A208: TSS in discharged residuals | B208: TSS_residuals_dis | C208: =IF(res_holding<>"none",TSS_residuals*(1-IF(coag_res=1,coag_TSSrem,htank_TSSrem)),TSS_residuals) -> 195.8392916 | D208: ppm
A209: Total TSS in excess of POTW limit (if applicable) | B209: ex_TSS_total | C209: =IF((TSS_residuals_dis-POTW_TSS_limit)*res_flow_annual*3.785/1000/453.59>0,(TSS_residuals_dis-POTW_TSS_limit)*res_flow_annual*3.785/1000/453.59,0) -> 0 | D209: lbs/year
A210: Annual POTW base fee | C210: =IF(res_s2_opt=2,IF(POTW_rate_type=1,POTW_base_cost_avg_cl,IF(POTW_base_fee=1,POTW_base_cost_typ_cl,0))*12,0) -> 206.4101995 | D210: $/year
A211: Annual POTW volume fee | C211: =IF(res_s2_opt=2,IF(POTW_rate_type=1,POTW_vol_cost_avg_cl,IF(POTW_volume_fee=1,POTW_vol_cost_typ_cl,0))*res_flow_annual/1000,0) -> 166.9743863 | D211: $/year
A212: Annual POTW TSS fee | C212: =IF(POTW_rate_type=1,POTW_TSS_cost_avg_cl,IF(POTW_TSS_fee=1,POTW_TSS_cost_typ_cl,0))*ex_TSS_total -> 0 | D212: $/year
A213: Total annual POTW discharge fee | B213: POTW_fee | C213: =SUM(C210:C212) -> 373.3845857 | D213: $/year
A215: Liquid Hazardous Waste Disposal
A216: Disposal | C216: =IF(res_s2_opt=5,lhaz_disposal_cost_cl*res_flow_annual,0) -> 0 | D216: $/year
A217: Disposal frequency | C217: =IF(res_s2_opt=5,365*24*60/res_stagger_time,0) -> 0 | D217: times per year
A218: Out of cycle backwash disposal frequency | C218: =+IF(res_outcycle_stagger_time=0,0,365*24*60/res_outcycle_stagger_time) -> 0 | D218: times per year
A219: Shipments per year | C219: =IF(res_vol>max_lhaz_ship,ROUNDUP(res_vol/max_lhaz_ship,0)*C217,C217)+IF(res_outcycle_vol>max_lhaz_ship,ROUNDUP(res_outcycle_vol/max_lhaz_ship,0)*C218,C218) -> 0
A220: Transportation | C220: =IF(res_s2_opt=5,MAX(C219*lhaz_trans_min_cost_cl,res_flow_annual*haz_miles*lhaz_transportation_cost_cl),0) -> 0 | D220: $/year
A221: Total annual liquid hazardous waste disposal fee | B221: lhaz_fee | C221: =C220+C216 -> 0 | D221: $/year
A223: Spent Media Disposal Fees
A224: Disposal | C224: =spent_media*disp_freq*CHOOSE(media_haz,nonhaz_disposal_cost_cl,haz_disposal_cost_cl,rad_disposal_cost_cl,hazrad_disposal_cost_cl) -> 2.851849419 | D224: $/year
A225: Shipments per year | B225: disposal_shipments | C225: =CHOOSE(media_haz,disp_freq,IF(spent_media>max_haz_ship,ROUNDUP(spent_media/max_haz_ship,0)*disp_freq,disp_freq),IF(spent_media>max_rad_ship,ROUNDUP(spent_media/max_rad_ship,0)*disp_freq,disp_freq),IF(spent_media>max_hazrad_ship,ROUNDUP(spent_media/max_hazrad_ship,0)*disp_freq,disp_freq)) -> 0.1428571429
... 17 more rows

Sheet O&M
A1: Operation and Maintenance Calculations
A3: Calculation | B3: Range Name | C3: Value | D3: Units | E3: Guidance
A4: Materials
A5: Booster pump materials | B5: pump_mtl | C5: =IF(total_booster_pumps=0,0,OUTPUT!J194*booster_pump_maintenance) -> 0 | D5: /yr
A6: Backwash pump materials | B6: back_pump_mtl | C6: =IF(regen_yr>=52,IF(ISNUMBER(OUTPUT!J195),booster_pump_maintenance*OUTPUT!J195,0),0) -> 0 | D6: /yr
A8: Chemicals and Resin
A9: Salt needed per year | B9: salt_year | C9: =365*salt_store/cstore_days -> 3507.856638 | D9: lbs
A10: NaOH needed per year | B10: NaOH_year | C10: =365*NaOH_lbs/cstore_days -> 0 | D10: lbs
A11: Resin loss replacement | B11: resin_loss_vol_annual | C11: =media_volume*op_num_tanks*resin_loss_annual -> 0.3976078202 | D11: cf
A12: Complete bed replacement (averaged over resin life) | B12: resin_yr | C12: =(total_media/media_density-resin_loss_vol_annual)/resin_life -> 1.205445931 | D12: cf | E12: Reduced by one year's attrition loss to avoid double counting (no attrition replacement needed in the year you completely replace the bed)
A14: Labor
A15: General Labor
A16: Number of process instruments for operation | B16: tot_inst | C16: =tot_fm_in+tot_fm_proc+tot_level_switch+tot_turb_meters+tot_head_sens+pH_controls+IF(ss_cat2=1,temp_meters_small,temp_meters)+ORP_sensor+tot_cond_meters+tot_N_analyzer -> 1 | E16: Instruments requiring daily observation
A17: Total number of instruments for maintenance | B17: tot_inst_maint | C17: =tot_fm_in+tot_fm_proc+tot_level_switch+tot_turb_meters+tot_head_sens+pH_controls+IF(ss_cat2=1,temp_meters_small,temp_meters)+ORP_sensor+tot_cond_meters+tot_fm_res+tot_fm_back+tot_N_analyzer -> 3 | E17: All instruments for preventative maintenance
A18: Number of process pumps for operation | B18: tot_pumps | C18: =booster_pumps+MAX(0,pH_pumps-NRD_pH_pumps) -> 0 | E18: Pumps requiring daily observation/adjustment
A19: Total number of pumps for maintenance | B19: tot_pumps_maint | C19: =booster_pumps+res_pumps+IF(regen_yr>=52,backwash_pumps) -> 0 | E19: Large, frequently operated pumps require preventative maintenance
A20: Number of process valves | B20: tot_valves | C20: =tot_proc_MOVs+tot_proc_man+tot_bp_man+tot_bp_MOVs -> 6 | E20: Main process valves require frequent operation and preventative maintenance
A21: Number of chemical supplies | B21: tot_chem | C21: =NaOH_tanks+brine_tanks+num_salt_box+polymer_tanks+coag_tanks -> 2
A22: Regenerations per year | B22: regen_yr | C22: =365/regen_days*num_treat_lines -> 99.25203974
A23: Additional out-of-cycle backwashes per year | B23: add_backwash_yr | C23: =IF(add_backwash_freq<>0,365/add_backwash_freq*final_num_tanks,0) -> 0
A24: Quantity of resin handled per year | B24: media_changes_cf | C24: =spent_media_yr*2000/media_density+resin_loss_vol_annual+resin_yr -> 2.808499683 | D24: cf | E24: Incorporates both removal and refill
A26: Record system operating parameters (includes routine sampling) | C26: =IF(manual=1,tot_inst*uloe_inst*365/60,uloe_inst_auto*365/60) -> 30.41666667 | D26: hr/yr
A27: Preventative maintenance and calibration of instruments | C27: =tot_inst_maint*uloe_inst_maint*12/60 -> 6 | D27: hr/yr
A28: Verify/adjust pump operating parameters | C28: =IF(OR(manual=1,manual=2),tot_pumps*uloe_pump*365/60,0) -> 0 | D28: hr/yr
A29: Preventative maintenance of pumps | C29: =tot_pumps_maint*uloe_pump_maint -> 0 | D29: hr/yr
A30: Verify/adjust valve positions | C30: =IF(OR(manual=1,manual=2),tot_valves*uloe_valve*52/60,0) -> 0 | D30: hr/yr
A31: Preventative maintenance and inspection of valves | C31: =tot_valves*uloe_valve_maint/60 -> 0.5 | D31: hr/yr
A32: Visual inspection of facility | C32: =total_fp/100*uloe_fp*365/60 -> 1.825 | D32: hr/yr
A33: Maintain/inspect chemical supply | C33: =tot_chem*uloe_chem_maint*12/60 -> 48 | D33: hr/yr
A34: General Operator Labor | B34: General_Oper_Labor | C34: =SUM(C26:C33) -> 86.74166667 | D34: hr/yr
A36: Technology-specific Labor
A37: Managing regeneration | C37: =IF(OR(manual=1,manual=2),regen_yr*regeneration_downtime/60+add_backwash_yr*backwash_time/60,(regen_yr+add_backwash_yr)*uloe_autoregen/60) -> 16.54200662 | D37: hr/yr
A38: Managing resin changeouts | C38: =media_changes_cf*uloe_throwaway -> 0.0416074027 | D38: hr/yr
A39: Managing residual solids | C39: =IF(OR(res_s2_opt=3,res_transfer_method=3),res_solids*2000/ht_solids_density*sol_disp_freq*uloe_throwaway,sol_disp_freq*transfer_time) -> 0 | D39: hr/yr
A41: Annual Operator LOE | B41: Operator_LOE | C41: =General_Oper_Labor+SUM(C37:C39) -> 103.3252807 | D41: hr/yr
A42: Annual Manager LOE | B42: Manager_LOE | C42: =Operator_LOE*Manager_percent -> 10.33252807 | D42: hr/yr | E42: Based on general operator labor and percentages in critical design assumptions
A43: Annual Administrative LOE | B43: Clerical_LOE | C43: =Operator_LOE*Clerical_percent -> 10.33252807 | D43: hr/yr | E43: Based on general operator labor and percentages in critical design assumptions
A45: Building and HVAC Maintenance
A46: Cost excluding heating and cooling | C46: =IF(include_buildings=0,0,building_matl_rate_cl*total_fp) -> 194.3708561 | D46: /yr | E46: Labor and materials; includes routine in-house maintenance and major repairs
A47: Cost to maintain heating system, building 1 | C47: =build1_need_heat*heating_matl_rate_cl*build1_fp -> 0 | D47: /yr
A48: Cost to maintain cooling system, building 1 | C48: =build1_need_cool*cooling_matl_rate_cl*build1_fp -> 0 | D48: /yr
A49: Cost to maintain heating system, building 2 | C49: =build2_need_heat*heating_matl_rate_cl*build2_fp -> 0 | D49: /yr
A50: Cost to maintain cooling system, building 2 | C50: =build2_need_cool*cooling_matl_rate_cl*build2_fp -> 0 | D50: /yr
A51: Total annual building and HVAC maintenance | B51: bldg_maint_cost | C51: =SUM(C46:C50) -> 194.3708561 | E51: Includes labor and materials
A53: Energy
A54: Booster Pumps | E54: Other pumps and mechanical equipment used infrequently. Therefore, these energy costs may be assumed covered by overall process and building energy costs.
A55: Booster pump operating horsepower | B55: pump_hp | C55: =IF(booster_pumps=0,0,(average_flow_rate/IF(bp_pct>0,bp_pct,1))*booster_pump_head/booster_pumps/booster_pump_efficiency/14.7*33.9*8.34/550/60) -> 0 | D55: hp
A56: Energy per booster pump | C56: =pump_hp*0.7457/1000*24*365 -> 0 | D56: MWh/yr
A57: Energy for all active booster pumps | B57: pump_energy | C57: =C56*booster_pumps -> 0 | D57: MWh/yr
A59: Backwash Pumps
A60: Backwash pump operating horsepower (all pumps) | B60: back_pump_hp | C60: =water_flush*backwash_pump_head/booster_pump_efficiency/14.7*33.9*8.34/550/60 -> 0.05711636364 | D60: hp
A61: Backwash pumping time | B61: back_pump_op_hours | C61: =backwash_yr*backwash_time/60 -> 19.85040795 | D61: hours/yr
A62: Energy for all backwash pumps | B62: back_pump_energy | C62: =back_pump_hp*0.7457/1000*C61 -> 0.0008454620716 | D62: MWh/yr
A64: Building Lighting
A65: Lighting power per sf, building 1 | B65: lighting_energy_1 | C65: =IF(OR(build1_fp<500,component_level=""),lighting_power_low,CHOOSE(component_level,lighting_power_mid,lighting_power_high))*24*365/1000 -> 2.628 | D65: kWh/sf/yr
A66: Lighting power per sf, building 2 | B66: lighting_energy_2 | C66: =IF(OR(build2_fp<500,component_level=""),lighting_power_low,CHOOSE(component_level,lighting_power_mid,lighting_power_high))*24*365/1000 -> 2.628 | D66: kWh/sf/yr
A67: Lighting | B67: lighting | C67: =IF(include_buildings=0,0,MIN(1,Operator_LOE/(24*365))*(build1_fp*lighting_energy_1+build2_fp*lighting_energy_2)/1000) -> 0.0009299275262 | D67: MWh/yr
A69: HVAC
A70: Heating energy usage for:
A71: Electric resistance | B71: heating | C71: =IF(build1_heat=A71,VLOOKUP(A71,build1_heat_options, 7,FALSE),0)+IF(build2_heat=A71,VLOOKUP(A71,build2_heat_options, 7,FALSE),0) -> 0 | D71: MWh/yr
A72: Natural gas non-condensing furnace | B72: heating_gas_non | C72: 0 | D72: therms/yr
A73: Natural gas condensing furnace | B73: heating_gas | C73: 0 | D73: therms/yr
A74: Standard efficiency oil furnace | B74: heating_diesel_non | C74: 0 | D74: gal/yr
A75: Mid-efficiency oil furnace | B75: heating_diesel | C75: 0 | D75: gal/yr
A76: Heat pump | B76: heating_hp | C76: 0 | D76: MWh/yr
A78: Cooling energy usage for:
A79: Air conditioner | B79: cooling | C79: =IF(build1_cool=A79,VLOOKUP(A79,build1_cool_options, 7,FALSE),0)+IF(build2_cool=A79,VLOOKUP(A79,build2_cool_options, 7,FALSE),0) -> 0 | D79: MWh/yr
A80: Heat pump | B80: cooling_hp | C80: =IF(build1_cool=A80,VLOOKUP(A80,build1_cool_options, 7,FALSE),0)+IF(build2_cool=A80,VLOOKUP(A80,build2_cool_options, 7,FALSE),0) -> 0 | D80: MWh/yr

Sheet HVAC
A1: Building Heating, Ventilating, and Air Conditioning Calculations
A3: Calculation | B3: Range Name | C3: Value | D3: Units | E3: Guidance
A4: General information | E4: ss_cat2 is used to select ventilation requirements and building type
A5: System size | B5: ss_cat2 | C5: =IF(design_flow<1,1,IF(design_flow<10,2,3)) -> 1 | D5: 1 indicates small system, 2 indicates medium, 3 indicates large
A6: Building height | B6: Building_height | C6: =IF(tank_geom=1,comm_height_length,comm_diam)+Top_bottom_Vessel_space -> 10.5 | D6: ft
A7: Buiding 1 length and width | B7: build1_side | C7: =build1_fp^0.5 -> 5.477225575 | D7: ft
A8: Building 2 length and width | B8: build2_side | C8: =build2_fp^0.5 -> 0 | D8: ft
A9: Include HVAC? | B9: include_HVAC | C9: =IF(include_HVAC_I="no",0,IF(include_HVAC_I="yes",1,2)) -> 2 | D9: 0 = always exclude, 1 = always include, 2 = use model default
A11: Ventilation
A12: Building 1 weighted average air changes | B12: air_changes_build1 | C12: =IF(build2_fp=0,(air_changes_contactor*(vessel_fp+back_tank_fp+htank_fp+hbasin_fp)+air_changes_pump*pump_fp+air_changes_chem_storage*(brine_store_fp+brine_fp+NaOH_tank_fp+day_tank_fp+polymer_fp+coag_fp)+air_changes_office*office_fp)/build1_fp,air_changes_contactor) -> 2.666666667 | D12: air changes/hr
A13: Building 2 weighted average air changes | B13: air_changes_build2 | C13: =IF(build2_fp=0,0,(air_changes_contactor*(back_tank_fp+htank_fp+hbasin_fp)+air_changes_pump*pump_fp+air_changes_chem_storage*(brine_store_fp+brine_fp+NaOH_tank_fp+day_tank_fp+polymer_fp+coag_fp)+air_changes_office*office_fp)/build2_fp) -> 0 | D13: air changes/hr
A14: Building 1 ventilation | C14: =CHOOSE(ss_cat2,fan_days_build1_small,fan_days_build1_medium,fan_days_build1_large)*24*0.746*fan_pressure_drop*build1_fp*Building_height*air_changes_build1/33000 -> 10.25410909 | D14: kWh/yr
A15: Building 2 ventilation | C15: =CHOOSE(ss_cat2,fan_days_build2_small,fan_days_build2_medium,fan_days_build2_large)*24*0.746*fan_pressure_drop*build2_fp*Building_height*air_changes_build2/33000 -> 0 | D15: kWh/yr
A16: Total ventilation | B16: ventilation | C16: =IF(include_HVAC=0,0,SUM(C14:C15)/1000) -> 0.01025410909 | D16: MWh/yr
A18: Building 1 air exchange rate | B18: build1_cfm | C18: =build1_fp*Building_height*air_changes_build1/60 -> 14 | D18: cfm
A19: Building 2 air exchange rate | B19: build2_cfm | C19: =build2_fp*Building_height*air_changes_build2/60 -> 0 | D19: cfm
A21: Heating and Cooling
A22: Include heating for building 1 | B22: build1_need_heat | C22: =IF(include_HVAC=0,0,IF(include_HVAC=1,1,VLOOKUP(IF(component_level_I="","low cost",component_level_I),IF(build1_fp<500,heating_table_shed,heating_table),ss_cat2+2,FALSE))) -> 0 | D22: 1 for yes, 0 for no | E22: Based on system size, building floorplan, and inputs
A23: Include cooling for building 1 | B23: build1_need_cool | C23: =IF(include_HVAC=0,0,IF(include_HVAC=1,1,VLOOKUP(IF(component_level_I="","low cost",component_level_I),IF(build1_fp<500,cooling_table_shed,cooling_table),ss_cat2+2,FALSE))) -> 0 | D23: 1 for yes, 0 for no
A24: Include heating for building 2 | B24: build2_need_heat | C24: =IF(build2_fp=0,0,IF(include_HVAC=0,0,IF(include_HVAC=1,1,VLOOKUP(IF(component_level_I="","low cost",component_level_I),IF(build2_fp<500,heating_table_shed,heating_table),ss_cat2+2,FALSE)))) -> 0 | D24: 1 for yes, 0 for no
A25: Include cooling for building 2 | B25: build2_need_cool | C25: =IF(build2_fp=0,0,IF(include_HVAC=0,0,IF(include_HVAC=1,1,VLOOKUP(IF(component_level_I="","low cost",component_level_I),IF(build2_fp<500,cooling_table_shed,cooling_table),ss_cat2+2,FALSE)))) -> 0 | D25: 1 for yes, 0 for no
A27: Heating Requirements
A28: Building 1 side conductance heat loss | C28: =4*build1_side*Building_height*heat_DD*24/R_wall -> 940785.7919 | D28: BTU/yr
A29: Buiding 1 ceiling conductance heat loss | C29: =build1_fp*heat_DD*24/R_ceiling -> 62595.91837 | D29: BTU/yr
A30: Building 1 air exchange heat loss | C30: =build1_cfm*heat_viload -> 2361506 | D30: BTU/yr
A31: Building 1 total annual heat loss | B31: build1_heat_loss_yr | C31: =SUM(C28:C30) -> 3364887.71 | D31: BTU/yr
A32: Building 1 heating requirement in thousand BTU/hr | B32: build1_heat_mbh | C32: =build1_heat_loss_yr/365.25/24/1000 -> 0.3838566861 | D32: MBH | E32: thousands of BTU per hour
A33: Building 1 number of heating zones | B33: build1_heat_zones | C33: =ROUNDUP(build1_heat_mbh/max_heat_cl,0) -> 1
A35: Building 2 side conductance heat loss | C35: =4*build2_side*Building_height*heat_DD*24/R_wall -> 0 | D35: BTU/yr
A36: Buiding 2 ceiling conductance heat loss | C36: =build2_fp*heat_DD*24/R_ceiling -> 0 | D36: BTU/yr
A37: Building 2 air exchange heat loss | C37: =build2_cfm*heat_viload -> 0 | D37: BTU/yr
A38: Building 2 total annual heat loss | B38: build2_heat_loss_yr | C38: =SUM(C35:C37) -> 0 | D38: BTU/yr
A39: Building 2 heating requirement in thousand BTU/hr | B39: build2_heat_mbh | C39: =build2_heat_loss_yr/365.25/24/1000 -> 0 | D39: MBH
A40: Building 2 number of heating zones | B40: build2_heat_zones | C40: =ROUNDUP(build2_heat_mbh/max_heat_cl,0) -> 0
A42: Cooling Requirements
A43: Power lost: booster pumps | B43: eloss_pumps | C43: =booster_pumps*pump_hp*(1-booster_pump_efficiency)*0.7457 -> 0 | D43: kW
A44: Waste heat: booster pumps | B44: waste_heat_pumps | C44: =eloss_pumps*3415 -> 0 | D44: BTU/hr
A45: Power lost: backwash pumps | B45: eloss_bw_pumps | C45: =back_pump_hp*(1-booster_pump_efficiency)*0.7457 -> 0.01064791809 | D45: kW
A46: Waste heat: backwash pumps | B46: waste_heat_bw_pumps | C46: =eloss_bw_pumps*3415 -> 36.36264028 | D46: BTU/hr
A48: Building 1 side conductance cooling loss | C48: =4*build1_side*Building_height*cool_DD*24/R_wall -> 312491.0553 | D48: BTU/yr
A49: Buiding 1 ceiling conductance cooling loss | C49: =build1_fp*cool_DD*24/R_ceiling -> 20791.83673 | D49: BTU/yr
A50: Building 1 air exchange cooling loss | C50: =build1_cfm*cool_viload -> 724794 | D50: BTU/yr
A51: Building 1 total annual cooling loss | B51: build1_cooling_loss_yr | C51: =SUM(C48:C50) -> 1058076.892 | D51: BTU/yr
A52: Building 1 cooling loss per hour | B52: build1_cooling_loss_hr | C52: =build1_cooling_loss_yr/365.25/24 -> 120.7023605 | D52: BTU/hr
A54: Building 1 total cooling requirement | B54: build1_cooling_req | C54: =build1_cooling_loss_hr+IF(fp_required<add_2nd_building,waste_heat_pumps+waste_heat_bw_pumps,0) -> 157.0650008 | D54: BTU/hr
A55: Building 1 annual cooling requirement | B55: build1_cooling_yr | C55: =build1_cooling_loss_hr*365.25*24+IF(fp_required<add_2nd_building,waste_heat_pumps*365.25*24+waste_heat_bw_pumps*back_pump_op_hours,0) -> 1058798.705 | D55: BTU/yr
A56: Building 1 total cooling requirement in tons | B56: build1_cooling_tons | C56: =build1_cooling_req/12000 -> 0.01308875006 | D56: tons | E56: 1 ton cooling = 12,000 BTU/hr
A57: Building 1 number of cooling zones | B57: build1_cool_zones | C57: =ROUNDUP(build1_cooling_tons/max_cool_cl,0) -> 1
A59: Building 2 side conductance cooling loss | C59: =4*build2_side*Building_height*cool_DD*24/R_wall -> 0 | D59: BTU/yr
A60: Buiding 2 ceiling conductance cooling loss | C60: =build2_fp*cool_DD*24/R_ceiling -> 0 | D60: BTU/yr
A61: Building 2 air exchange cooling loss | C61: =build2_cfm*cool_viload -> 0 | D61: BTU/yr
A62: Building 2 total annual cooling loss | B62: build2_cooling_loss_yr | C62: =SUM(C59:C61) -> 0 | D62: BTU/yr
A63: Building 2 cooling loss per hour | B63: build2_cooling_loss_hr | C63: =build2_cooling_loss_yr/365.25/24 -> 0 | D63: BTU/hr
A65: Building 2 total cooling requirement | B65: build2_cooling_req | C65: =build2_cooling_loss_hr+IF(fp_required<add_2nd_building,0,waste_heat_pumps+waste_heat_bw_pumps) -> 0 | D65: BTU/hr
A66: Building 2 annual cooling requirement | B66: build2_cooling_yr | C66: =build2_cooling_req*365.25*24+IF(fp_required<add_2nd_building,0,waste_heat_pumps*365.25*24+waste_heat_bw_pumps*back_pump_op_hours) -> 0 | D66: BTU/yr
A67: Building 2 total cooling requirement in tons | B67: build2_cooling_tons | C67: =build2_cooling_req/12000 -> 0 | D67: tons | E67: 1 ton cooling = 12,000 BTU/hr
A68: Building 2 number of cooling zones | B68: build2_cool_zones | C68: =ROUNDUP(build2_cooling_tons/max_cool_cl,0) -> 0
A70: Heating Options
A72: Building 1 number of HVAC zones | B72: build1_zones | C72: =MAX(build1_heat_zones, build1_cool_zones) -> 1
A73: Building 2 number of HVAC zones | B73: build2_zones | C73: =MAX(build2_heat_zones, build2_cool_zones) -> 0
A75: Heat pump OK for building 1? | B75: hp_ok_1 | C75: =AND(build1_heat_mbh<=hp_max_heat_cl,build1_cooling_tons<=hp_max_cool_cl) -> TRUE | E75: For heat pumps, we check both heating and cooling capacities.
A76: Heat pump OK for building 2? | B76: hp_ok_2 | C76: =AND(build2_heat_mbh<=hp_max_heat_cl,build2_cooling_tons<=hp_max_cool_cl) -> TRUE
A78: Building 1 | B78: build1_heat_options
A79: Option | B79: Size needed per zone (MBH) | C79: Size selected (MBH) | D79: Direct Cost Per Zone | E79: Useful Life (yrs) | F79: Annualized Capital Cost, All Zones | G79: Energy/Yr | I79: Energy Unit Cost | K79: Annual Energy Cost | L79: Total Annual Cost
A80: Electric resistance | B80: =build1_heat_mbh/build1_zones -> 0.3838566861 | C80: =IF(curve=1,B80,VLOOKUP(B80,hvac_elec_cost_cl,2)) -> 0.3838566861 | D80: =IF(curve=1,hvac_elec_eq_1,VLOOKUP(B80,hvac_elec_cost_cl,3)) -> 547.8707331 | E80: =VLOOKUP(B80,hvac_elec_cost_cl,IF(ss_cat="large",4,5)) -> 20 | F80: =IF(D80="contact vendor","n/a",-PMT(Discount_rate,E80,D80)*build1_zones) -> 51.71512142 | G80: =build1_heat_loss_yr/3412000/resist_eff -> 1.006318549 | H80: MWh/yr | I80: =energy_cost_cl -> 0.1100175092 | J80: /kwh | K80: =I80*G80*1000 -> 110.7126602 | L80: =IF(OR(F80="n/a",K80="n/a"),"n/a",F80+K80) -> 162.4277817
A81: Heat pump | B81: capital costs are in the cooling table | F81: n/a | G81: =IF(hp_ok_1,build1_heat_loss_yr/3412000/COP,"n/a") -> 0.2988461144 | H81: MWh/yr | I81: =energy_cost_cl -> 0.1100175092 | J81: /kwh | K81: =IF(G81="n/a","n/a",I81*G81*1000) -> 32.87830516 | L81: n/a
A82: Natural gas non-condensing furnace | B82: =build1_heat_mbh/build1_zones -> 0.3838566861 | C82: =IF(curve=1,B82,VLOOKUP(B82,hvac_gas_non_cost_cl,2)) -> 0.3838566861 | D82: =IF(curve=1,hvac_gas_non_eq_1,VLOOKUP(B82,hvac_gas_non_cost_cl,3)) -> 431.3104817 | E82: =VLOOKUP(B82,hvac_gas_non_cost_cl,IF(ss_cat="large",4,5)) -> 20 | F82: =IF(D82="contact vendor","n/a",-PMT(Discount_rate,E82,D82)*build1_zones) -> 40.71265827 | G82: =build1_heat_loss_yr/100000/gas_non_eff -> 39.58691424 | H82: therms/yr | I82: =gas_cost_cl -> 0.5785614035 | J82: /therm | K82: =I82*G82 -> 22.90346066 | L82: 63.61611893
A83: Natural gas condensing furnace | B83: =build1_heat_mbh/build1_zones -> 0.3838566861 | C83: =IF(curve=1,B83,VLOOKUP(B83,hvac_gas_cost_cl,2)) -> 0.3838566861 | D83: =IF(curve=1,hvac_gas_eq_1,VLOOKUP(B83,hvac_gas_cost_cl,3)) -> 431.3104817 | E83: =VLOOKUP(B83,hvac_gas_cost_cl,IF(ss_cat="large",4,5)) -> 20 | F83: =IF(D83="contact vendor","n/a",-PMT(Discount_rate,E83,D83)*build1_zones) -> 40.71265827 | G83: =build1_heat_loss_yr/100000/gas_eff -> 37.38764123 | H83: therms/yr | I83: =gas_cost_cl -> 0.5785614035 | J83: /therm | K83: =I83*G83 -> 21.63104618 | L83: 62.34370445
A84: Standard efficiency oil furnace | B84: =build1_heat_mbh/build1_zones -> 0.3838566861 | C84: =IF(curve=1,B84,VLOOKUP(B84,hvac_oil_std_cost_cl,2)) -> 0.3838566861 | D84: =IF(curve=1,hvac_oil_std_eq_1,VLOOKUP(B84,hvac_oil_std_cost_cl,3)) -> 584.3062043 | E84: =VLOOKUP(B84,hvac_oil_std_cost_cl,IF(ss_cat="large",4,5)) -> 20 | F84: =IF(D84="contact vendor","n/a",-PMT(Discount_rate,E84,D84)*build1_zones) -> 55.15437215 | G84: =build1_heat_loss_yr/diesel_heat_content/diesel_non_eff -> 29.52173811 | H84: gal/yr | I84: =diesel_cost_cl -> 3.829500772 | J84: /gal | K84: =I84*G84 -> 113.0535189 | L84: 168.2078911
A85: Mid-efficiency oil furnace | B85: =build1_heat_mbh/build1_zones -> 0.3838566861 | C85: =IF(curve=1,B85,VLOOKUP(B85,hvac_oil_mid_cost_cl,2)) -> 0.3838566861 | D85: =IF(curve=1,hvac_oil_mid_eq_1,VLOOKUP(B85,hvac_oil_mid_cost_cl,3)) -> 584.3062043 | E85: =VLOOKUP(B85,hvac_oil_mid_cost_cl,IF(ss_cat="large",4,5)) -> 20 | F85: =IF(D85="contact vendor","n/a",-PMT(Discount_rate,E85,D85)*build1_zones) -> 55.15437215 | G85: =build1_heat_loss_yr/diesel_heat_content/diesel_eff -> 26.89758362 | H85: gal/yr | I85: =diesel_cost_cl -> 3.829500772 | J85: /gal | K85: =I85*G85 -> 103.0043172 | L85: 158.1586894
A87: Building 2 | B87: build2_heat_options
A88: Option | B88: Size needed per zone (MBH) | C88: Size selected (MBH) | D88: Direct Cost Per Zone | E88: Useful Life (yrs) | F88: Annualized Capital Cost, All Zones | G88: Energy/Yr | I88: Energy Unit Cost | K88: Annual Energy Cost | L88: Total Annual Cost
A89: Electric resistance | B89: =build2_heat_mbh/build2_zones ->  | C89: =IF(curve=1,B89,VLOOKUP(B89,hvac_elec_cost_cl,2)) ->  | D89: =IF(curve=1,hvac_elec_eq_2,VLOOKUP(B89,hvac_elec_cost_cl,3)) ->  | E89: =VLOOKUP(B89,hvac_elec_cost_cl,IF(ss_cat="large",4,5)) ->  | F89: =IF(D89="contact vendor","n/a",-PMT(Discount_rate,E89,D89)*build2_zones) ->  | G89: =build2_heat_loss_yr/3412000/resist_eff -> 0 | H89: MWh/yr | I89: =energy_cost_cl -> 0.1100175092 | J89: /kwh | K89: =I89*G89*1000 -> 0 | L89: =IF(F89="n/a","n/a",F89+K89) -> 
A90: Heat pump | B90: capital costs are in the cooling table | F90: n/a | G90: =IF(hp_ok_2,build2_heat_loss_yr/3412000/COP,"n/a") -> 0 | H90: MWh/yr | I90: =energy_cost_cl -> 0.1100175092 | J90: /kwh | K90: =IF(G90="n/a","n/a",I90*G90*1000) -> 0 | L90: =IF(OR(F90="n/a",K90="n/a"),"n/a",F90+K90) -> n/a
A91: Natural gas non-condensing furnace | B91: =build2_heat_mbh/build2_zones ->  | C91: =IF(curve=1,B91,VLOOKUP(B91,hvac_gas_non_cost_cl,2)) ->  | D91: =IF(curve=1,hvac_gas_non_eq_2,VLOOKUP(B91,hvac_gas_non_cost_cl,3)) ->  | E91: =VLOOKUP(B91,hvac_gas_non_cost_cl,IF(ss_cat="large",4,5)) ->  | F91: =IF(D91="contact vendor","n/a",-PMT(Discount_rate,E91,D91)*build2_zones) ->  | G91: =build2_heat_loss_yr/100000/gas_non_eff -> 0 | H91: therms/yr | I91: =gas_cost_cl -> 0.5785614035 | J91: /therm | K91: =I91*G91 -> 0 | L91: =IF(F91="n/a","n/a",F91+K91) -> 
A92: Natural gas condensing furnace | B92: =build2_heat_mbh/build2_zones ->  | C92: =IF(curve=1,B92,VLOOKUP(B92,hvac_gas_cost_cl,2)) ->  | D92: =IF(curve=1,hvac_gas_eq_2,VLOOKUP(B92,hvac_gas_cost_cl,3)) ->  | E92: =VLOOKUP(B92,hvac_gas_cost_cl,IF(ss_cat="large",4,5)) ->  | F92: =IF(D92="contact vendor","n/a",-PMT(Discount_rate,E92,D92)*build2_zones) ->  | G92: =build2_heat_loss_yr/100000/gas_eff -> 0 | H92: therms/yr | I92: =gas_cost_cl -> 0.5785614035 | J92: /therm | K92: =I92*G92 -> 0 | L92: =IF(F92="n/a","n/a",F92+K92) -> 
A93: Standard efficiency oil furnace | B93: =build2_heat_mbh/build2_zones ->  | C93: =IF(curve=1,B93,VLOOKUP(B93,hvac_oil_std_cost_cl,2)) ->  | D93: =IF(curve=1,hvac_oil_std_eq_2,VLOOKUP(B93,hvac_oil_std_cost_cl,3)) ->  | E93: =VLOOKUP(B93,hvac_oil_std_cost_cl,IF(ss_cat="large",4,5)) ->  | F93: =IF(D93="contact vendor","n/a",-PMT(Discount_rate,E93,D93)*build2_zones) ->  | G93: =build2_heat_loss_yr/diesel_heat_content/diesel_non_eff -> 0 | H93: gal/yr | I93: =diesel_cost_cl -> 3.829500772 | J93: /gal | K93: =I93*G93 -> 0 | L93: =IF(F93="n/a","n/a",F93+K93) -> 
A94: Mid-efficiency oil furnace | B94: =build2_heat_mbh/build2_zones ->  | C94: =IF(curve=1,B94,VLOOKUP(B94,hvac_oil_mid_cost_cl,2)) ->  | D94: =IF(curve=1,hvac_oil_mid_eq_2,VLOOKUP(B94,hvac_oil_mid_cost_cl,3)) ->  | E94: =VLOOKUP(B94,hvac_oil_mid_cost_cl,IF(ss_cat="large",4,5)) ->  | F94: =IF(D94="contact vendor","n/a",-PMT(Discount_rate,E94,D94)*build2_zones) ->  | G94: =build2_heat_loss_yr/diesel_heat_content/diesel_eff -> 0 | H94: gal/yr | I94: =diesel_cost_cl -> 3.829500772 | J94: /gal | K94: =I94*G94 -> 0 | L94: =IF(F94="n/a","n/a",F94+K94) -> 
A96: Cooling Options
A97: Building 1 | B97: build1_cool_options
A98: Option | B98: Size needed per zone (tons) | C98: Size selected (tons) | D98: Direct Cost Per Zone | E98: Useful Life (yrs) | F98: Annualized Capital Cost, All Zones | G98: Energy/Yr | I98: Energy Unit Cost | K98: Annual Energy Cost | L98: Total Annual Cost
A99: Air conditioner | B99: =build1_cooling_tons/build1_zones -> 0.01308875006 | C99: =IF(curve=1,B99,VLOOKUP(B99,hvac_ac_cost_cl,2)) -> 0.01308875006 | D99: =IF(curve=1,hvac_ac_eq_1,VLOOKUP(B99,hvac_ac_cost_cl,3)) -> 19.54676371 | E99: =VLOOKUP(B99,hvac_ac_cost_cl,IF(ss_cat="large",4,5)) -> 20 | F99: =IF(D99="contact vendor","n/a",-PMT(Discount_rate,E99,D99)*build1_zones) -> 1.845076216 | G99: =build1_cooling_yr/EER/10^6 -> 0.08972870384 | H99: MWh/yr | I99: =energy_cost_cl -> 0.1100175092 | J99: /kwh | K99: =I99*G99*1000 -> 9.871728504 | L99: =IF(F99="n/a","n/a",F99+K99) -> 11.71680472
A100: Heat pump | B100: =build1_cooling_tons/build1_zones -> 0.01308875006 | C100: =IF(hp_ok_1,IF(curve=1,B100,VLOOKUP(B100,hvac_hp_cost_cl,2)),"n/a") -> 0.01308875006 | D100: =IF(C100="n/a","n/a",IF(curve=1,hvac_hp_eq_1,VLOOKUP(B100,hvac_hp_cost_cl,3))) -> 366.3621562 | E100: =IF(C100="n/a","n/a",VLOOKUP(B100,hvac_hp_cost_cl,IF(ss_cat="large",4,5))) -> 20 | F100: =IF(OR(D100="contact vendor",D100="n/a"),"n/a",-PMT(Discount_rate,E100,D100)*build1_zones) -> 34.58199581 | G100: =IF(C100="n/a","n/a",build1_cooling_yr/hp_EER/10^6) -> 0.08972870384 | H100: MWh/yr | I100: =energy_cost_cl -> 0.1100175092 | J100: /kwh | K100: =IF(C100="n/a","n/a",I100*G100*1000) -> 9.871728504 | L100: =IF(F100="n/a","n/a",F100+K100) -> 44.45372431
A102: Building 2 | B102: build2_cool_options
A103: Option | B103: Size needed per zone (tons) | C103: Size selected (tons) | D103: Direct Cost Per Zone | E103: Useful Life (yrs) | F103: Annualized Capital Cost, All Zones | G103: Energy/Yr | I103: Energy Unit Cost | K103: Annual Energy Cost | L103: Total Annual Cost
A104: Air conditioner | B104: =build2_cooling_tons/build2_zones ->  | C104: =IF(curve=1,B104,VLOOKUP(B104,hvac_ac_cost_cl,2)) ->  | D104: =IF(curve=1,hvac_ac_eq_2,VLOOKUP(B104,hvac_ac_cost_cl,3)) ->  | E104: =VLOOKUP(B104,hvac_ac_cost_cl,IF(ss_cat="large",4,5)) ->  | F104: =IF(D104="contact vendor","n/a",-PMT(Discount_rate,E104,D104)*build2_zones) ->  | G104: =build2_cooling_yr/EER/10^6 -> 0 | H104: MWh/yr | I104: =energy_cost_cl -> 0.1100175092 | J104: /kwh | K104: =I104*G104*1000 -> 0 | L104: =IF(F104="n/a","n/a",F104+K104) -> 
